Workbook

Sheet Calculation
B2: Barton Consultancy
A4: Client name | E4: Instructions
E5: 1 | F5: Input valuation date.
A6: Long service leave data | E6: 2 | F6: Count records to be included in this spreadsheet remembering to include former employees for the last three years. | V6: This version created 15 Dec 2015
E7: 3 | F7: Make room for required number of records by clicking button to the right
E8: 4 | F8: Read comments describing input data.
A9: Valuation date | C9: 2016-12-31 | E9: 5 | F9: Populate input data | V9: Changes made in this version
A10: Last year | C10: =EOMONTH(ValDate,-12) -> 2015-12-31 | E10: 6 | F10: Check totals, maximum and minimum for reasonableness. | V10: Allow for background leave utilisation
E11: 7 | F11: Correct if necessary, guided by minimum and maximum rows . | V11: Allow for specification of previous and next anniversary
E12: 8 | F12: Check and print Data summary | V12: Allow for current LS leave to be split into next year and subsequent
E13: 9 | F13: Send to Barton@Actuary.com.au
A15: Data summary
C17: All | D17: Minimum | E17: Maximum | F17: Average | H17: Year end | I17: =EOMONTH(ValDate,-48) -> 2012-12-31 | J17: =EOMONTH(ValDate,-36) -> 2013-12-31 | K17: =EOMONTH(ValDate,-24) -> 2014-12-31 | L17: =EOMONTH(ValDate,-12) -> 2015-12-31 | M17: =ValDate -> 2016-12-31 | N17: All | O17: Crude
A18: Records | C18: =B474 -> 358 | H18: Begin | I18: =SUM(IF($E$116:$E$473<=EOMONTH(I$17,-12),1,0)*IF($F$116:$F$473=0,1,0)) + SUM(IF($E$116:$E$473<=EOMONTH(I$17,-12),1,0)*IF($F$116:$F$473>EOMONTH(I$17,-12),1,0)) -> 211 | J18: =SUM(IF($E$116:$E$473<=EOMONTH(J$17,-12),1,0)*IF($F$116:$F$473=0,1,0)) + SUM(IF($E$116:$E$473<=EOMONTH(J$17,-12),1,0)*IF($F$116:$F$473>EOMONTH(J$17,-12),1,0)) -> 243 | K18: =SUM(IF($E$116:$E$473<=EOMONTH(K$17,-12),1,0)*IF($F$116:$F$473=0,1,0)) + SUM(IF($E$116:$E$473<=EOMONTH(K$17,-12),1,0)*IF($F$116:$F$473>EOMONTH(K$17,-12),1,0)) -> 263 | L18: =SUM(IF($E$116:$E$473<=EOMONTH(L$17,-12),1,0)*IF($F$116:$F$473=0,1,0)) + SUM(IF($E$116:$E$473<=EOMONTH(L$17,-12),1,0)*IF($F$116:$F$473>EOMONTH(L$17,-12),1,0)) -> 297 | M18: =SUM(IF($E$116:$E$473<=EOMONTH(M$17,-12),1,0)*IF($F$116:$F$473=0,1,0)) + SUM(IF($E$116:$E$473<=EOMONTH(M$17,-12),1,0)*IF($F$116:$F$473>EOMONTH(M$17,-12),1,0)) -> 328 | N18: =I18 -> 211
A19: ="VALUATION DATE " & UPPER(TEXT(ValDate,"MMM YYYY")) & " CURRENT EMPLOYEES" -> VALUATION DATE DEC 2016 CURRENT EMPLOYEES | H19: New | I19: =SUM(IF($E$116:$E$473>EOMONTH(I$17,-12),1,0)*IF($E$116:$E$473<=I$17,1,0)) -> 32 | J19: =SUM(IF($E$116:$E$473>EOMONTH(J$17,-12),1,0)*IF($E$116:$E$473<=J$17,1,0)) -> 20 | K19: =SUM(IF($E$116:$E$473>EOMONTH(K$17,-12),1,0)*IF($E$116:$E$473<=K$17,1,0)) -> 34 | L19: =SUM(IF($E$116:$E$473>EOMONTH(L$17,-12),1,0)*IF($E$116:$E$473<=L$17,1,0)) -> 31 | M19: =SUM(IF($E$116:$E$473>EOMONTH(M$17,-12),1,0)*IF($E$116:$E$473<=M$17,1,0)) -> 30 | N19: =SUM(I19:M19) -> 147
A20: Number and Age | C20: =INDEX(LiveAllRow,$T20) -> 71 | F20: =AG$482 -> 50.63712833 | H20: Death | I20: =SUM(IF($F$116:$F$473>EOMONTH(I$17,-12),1,0)*IF($F$116:$F$473<=I$17,1,0)* IF($G$116:$G$473=$V20,1,0)) -> 0 | J20: =SUM(IF($F$116:$F$473>EOMONTH(J$17,-12),1,0)*IF($F$116:$F$473<=J$17,1,0)* IF($G$116:$G$473=$V20,1,0)) -> 0 | K20: =SUM(IF($F$116:$F$473>EOMONTH(K$17,-12),1,0)*IF($F$116:$F$473<=K$17,1,0)* IF($G$116:$G$473=$V20,1,0)) -> 0 | L20: =SUM(IF($F$116:$F$473>EOMONTH(L$17,-12),1,0)*IF($F$116:$F$473<=L$17,1,0)* IF($G$116:$G$473=$V20,1,0)) -> 0 | M20: =SUM(IF($F$116:$F$473>EOMONTH(M$17,-12),1,0)*IF($F$116:$F$473<=M$17,1,0)* IF($G$116:$G$473=$V20,1,0)) -> 0 | N20: 0 | O20: =N20/(N$26+N20/2) -> 0 | T20: =COLUMN(AG115) -> 33 | V20: 1
A21: Masculinity | F21: =AG$483 -> 0.4788732394 | H21: Incapacity | I21: =SUM(IF($F$116:$F$473>EOMONTH(I$17,-12),1,0)*IF($F$116:$F$473<=I$17,1,0)* IF($G$116:$G$473=$V21,1,0)) -> 0 | J21: =SUM(IF($F$116:$F$473>EOMONTH(J$17,-12),1,0)*IF($F$116:$F$473<=J$17,1,0)* IF($G$116:$G$473=$V21,1,0)) -> 0 | K21: =SUM(IF($F$116:$F$473>EOMONTH(K$17,-12),1,0)*IF($F$116:$F$473<=K$17,1,0)* IF($G$116:$G$473=$V21,1,0)) -> 0 | L21: =SUM(IF($F$116:$F$473>EOMONTH(L$17,-12),1,0)*IF($F$116:$F$473<=L$17,1,0)* IF($G$116:$G$473=$V21,1,0)) -> 0 | M21: =SUM(IF($F$116:$F$473>EOMONTH(M$17,-12),1,0)*IF($F$116:$F$473<=M$17,1,0)* IF($G$116:$G$473=$V21,1,0)) -> 0 | N21: 0 | O21: =N21/(N$26+N21/2) -> 0 | V21: 2
A22: =INDEX(HeaderRow,$T22) -> Initial qualifying | C22: =INDEX(LiveAllRow,$T22) -> 497 | D22: =INDEX(LiveMinRow,$T22) -> 7 | E22: =INDEX(LiveMaxRow,$T22) -> 7 | F22: =INDEX(LiveAvRow,$T22) -> 7 | H22: Retire | I22: =SUM(IF($F$116:$F$473>EOMONTH(I$17,-12),1,0)*IF($F$116:$F$473<=I$17,1,0)* IF($G$116:$G$473=$V22,1,0)) -> 0 | J22: =SUM(IF($F$116:$F$473>EOMONTH(J$17,-12),1,0)*IF($F$116:$F$473<=J$17,1,0)* IF($G$116:$G$473=$V22,1,0)) -> 0 | K22: =SUM(IF($F$116:$F$473>EOMONTH(K$17,-12),1,0)*IF($F$116:$F$473<=K$17,1,0)* IF($G$116:$G$473=$V22,1,0)) -> 0 | L22: =SUM(IF($F$116:$F$473>EOMONTH(L$17,-12),1,0)*IF($F$116:$F$473<=L$17,1,0)* IF($G$116:$G$473=$V22,1,0)) -> 0 | M22: =SUM(IF($F$116:$F$473>EOMONTH(M$17,-12),1,0)*IF($F$116:$F$473<=M$17,1,0)* IF($G$116:$G$473=$V22,1,0)) -> 0 | N22: 0 | O22: =N22/(N$26+N22/2) -> 0 | T22: =COLUMN(H$474) -> 8 | V22: 3
A23: Subsequent qualifying | C23: 497 | D23: 7 | E23: 7 | F23: 7 | H23: Retrench | I23: =SUM(IF($F$116:$F$473>EOMONTH(I$17,-12),1,0)*IF($F$116:$F$473<=I$17,1,0)* IF($G$116:$G$473=$V23,1,0)) -> 0 | J23: =SUM(IF($F$116:$F$473>EOMONTH(J$17,-12),1,0)*IF($F$116:$F$473<=J$17,1,0)* IF($G$116:$G$473=$V23,1,0)) -> 0 | K23: =SUM(IF($F$116:$F$473>EOMONTH(K$17,-12),1,0)*IF($F$116:$F$473<=K$17,1,0)* IF($G$116:$G$473=$V23,1,0)) -> 0 | L23: =SUM(IF($F$116:$F$473>EOMONTH(L$17,-12),1,0)*IF($F$116:$F$473<=L$17,1,0)* IF($G$116:$G$473=$V23,1,0)) -> 0 | M23: =SUM(IF($F$116:$F$473>EOMONTH(M$17,-12),1,0)*IF($F$116:$F$473<=M$17,1,0)* IF($G$116:$G$473=$V23,1,0)) -> 0 | N23: 0 | O23: =N23/(N$26+N23/2) -> 0 | T23: =COLUMN(I$474) -> 9 | V23: 4
A24: Initial rate | C24: 17.75 | D24: 0.25 | E24: 0.25 | F24: 0.25 | H24: Other | I24: =SUM(IF($F$116:$F$473>EOMONTH(I$17,-12),1,0)*IF($F$116:$F$473<=I$17,1,0)* IF($G$116:$G$473=$V24,1,0)) -> 0 | J24: =SUM(IF($F$116:$F$473>EOMONTH(J$17,-12),1,0)*IF($F$116:$F$473<=J$17,1,0)* IF($G$116:$G$473=$V24,1,0)) -> 0 | K24: =SUM(IF($F$116:$F$473>EOMONTH(K$17,-12),1,0)*IF($F$116:$F$473<=K$17,1,0)* IF($G$116:$G$473=$V24,1,0)) -> 0 | L24: =SUM(IF($F$116:$F$473>EOMONTH(L$17,-12),1,0)*IF($F$116:$F$473<=L$17,1,0)* IF($G$116:$G$473=$V24,1,0)) -> 0 | M24: =SUM(IF($F$116:$F$473>EOMONTH(M$17,-12),1,0)*IF($F$116:$F$473<=M$17,1,0)* IF($G$116:$G$473=$V24,1,0)) -> 0 | N24: 0 | O24: =N24/(N$26+N24/2) -> 0 | T24: =COLUMN(J$474) -> 10 | V24: 5
A25: Subsequent rate | C25: 17.75 | D25: 0.25 | E25: 0.25 | F25: 0.25 | H25: End | I25: =SUM(IF($E$116:$E$473<=I$17,1,0)*IF($F$116:$F$473=0,1,0)) + SUM(IF($E$116:$E$473<=I$17,1,0)*IF($F$116:$F$473>I$17,1,0)) -> 243 | J25: =SUM(IF($E$116:$E$473<=J$17,1,0)*IF($F$116:$F$473=0,1,0)) + SUM(IF($E$116:$E$473<=J$17,1,0)*IF($F$116:$F$473>J$17,1,0)) -> 263 | K25: =SUM(IF($E$116:$E$473<=K$17,1,0)*IF($F$116:$F$473=0,1,0)) + SUM(IF($E$116:$E$473<=K$17,1,0)*IF($F$116:$F$473>K$17,1,0)) -> 297 | L25: =SUM(IF($E$116:$E$473<=L$17,1,0)*IF($F$116:$F$473=0,1,0)) + SUM(IF($E$116:$E$473<=L$17,1,0)*IF($F$116:$F$473>L$17,1,0)) -> 328 | M25: =SUM(IF($E$116:$E$473<=M$17,1,0)*IF($F$116:$F$473=0,1,0)) + SUM(IF($E$116:$E$473<=M$17,1,0)*IF($F$116:$F$473>M$17,1,0)) -> 358 | N25: =M25 -> 358 | T25: =COLUMN(K$474) -> 11
A26: Salary (Full time) | C26: 6268555.93 | D26: 0 | E26: 142609 | F26: 88289.52014 | H26: Central | I26: =(I25+I18)/2 -> 227 | J26: =(J25+J18)/2 -> 253 | K26: =(K25+K18)/2 -> 280 | L26: =(L25+L18)/2 -> 312.5 | M26: =(M25+M18)/2 -> 343 | N26: 1415.5 | T26: =COLUMN(L$474) -> 12
A27: Full time proportion accrued | C27: 62.9138 | D27: 0 | E27: 1 | F27: 0.8861098592 | T27: =COLUMN(M$474) -> 13
A28: Full time proportion accruing | C28: 62.9138 | D28: 0 | E28: 1 | F28: 0.8861098592 | I28: =IF(I18+I19-SUM(I20:I24) = I25,"ok","Problem") -> ok | J28: ok | K28: ok | L28: ok | M28: ok | N28: ok | T28: =COLUMN(N$474) -> 14
A29: =Q114 -> Entitlement years before FTE adjustment
A30: =INDEX(HeaderRow,$T30) -> Preconditional | C30: =INDEX(LiveAllRow,$T30) -> 4.714562266 | D30: =INDEX(LiveMinRow,$T30) -> 0 | E30: =INDEX(LiveMaxRow,$T30) -> 0.247643994 | F30: =INDEX(LiveAvRow,$T30) -> 0.06640228543 | T30: =COLUMN(Q$474) -> 17
A31: =INDEX(HeaderRow,$T31) -> Unconditional | C31: =INDEX(LiveAllRow,$T31) ->  | D31: =INDEX(LiveMinRow,$T31) ->  | E31: =INDEX(LiveMaxRow,$T31) ->  | F31: =INDEX(LiveAvRow,$T31) ->  | T31: =COLUMN(R$474) -> 18
A32: =INDEX(HeaderRow,$T32) -> Conditional | C32: =INDEX(LiveAllRow,$T32) ->  | D32: =INDEX(LiveMinRow,$T32) ->  | E32: =INDEX(LiveMaxRow,$T32) ->  | F32: =INDEX(LiveAvRow,$T32) ->  | T32: =COLUMN(S$474) -> 19
A33: =INDEX(HeaderRow,$T33) -> Face value | C33: =INDEX(LiveAllRow,$T33) ->  | D33: =INDEX(LiveMinRow,$T33) ->  | E33: =INDEX(LiveMaxRow,$T33) ->  | F33: =INDEX(LiveAvRow,$T33) ->  | T33: =COLUMN(AI$474) -> 35
A34: =INDEX(HeaderRow,$T34) -> On cost proportion | C34: =INDEX(LiveAllRow,$T34) -> 0 | D34: =INDEX(LiveMinRow,$T34) -> 0 | E34: =INDEX(LiveMaxRow,$T34) -> 0 | F34: =INDEX(LiveAvRow,$T34) -> 0 | T34: =COLUMN(Y$474) -> 25
A35: ="LAST YEAR "& UPPER(TEXT(LastYear,"MMM YYYY")) -> LAST YEAR DEC 2015
A36: Number and Age | C36: =INDEX(LiveAllRow,$T36) -> 64 | F36: =AL$482 -> 49.74327257 | T36: =COLUMN(AL130) -> 38
A37: Masculinity | F37: =AL$483 -> 0.484375
A38: =INDEX(HeaderRow,$T38) -> Salary (Full time) | C38: =INDEX(LiveAllRow,$T38) -> 1982203 | D38: =INDEX(LiveMinRow,$T38) -> 0 | E38: =INDEX(LiveMaxRow,$T38) -> 54486 | F38: =INDEX(LiveAvRow,$T38) -> 27918.35211 | T38: =COLUMN(Z$474) -> 26
A39: =INDEX(HeaderRow,$T39) -> Full time proportion accrued | C39: =INDEX(LiveAllRow,$T39) -> 70 | D39: =INDEX(LiveMinRow,$T39) -> 0 | E39: =INDEX(LiveMaxRow,$T39) -> 1 | F39: =INDEX(LiveAvRow,$T39) -> 0.985915493 | T39: =COLUMN(AA$474) -> 27
A40: =INDEX(HeaderRow,$T40) -> Full time proportion accruing | C40: =INDEX(LiveAllRow,$T40) -> 70 | D40: =INDEX(LiveMinRow,$T40) -> 0 | E40: =INDEX(LiveMaxRow,$T40) -> 1 | F40: =INDEX(LiveAvRow,$T40) -> 0.985915493 | T40: =COLUMN(AB$474) -> 28
A41: =A29 -> Entitlement years before FTE adjustment
A42: =INDEX(HeaderRow,$T42) -> Preconditional | C42: =INDEX(LiveAllRow,$T42) -> 1.703811688 | D42: =INDEX(LiveMinRow,$T42) -> 0 | E42: =INDEX(LiveMaxRow,$T42) -> 0.2543478261 | F42: =INDEX(LiveAvRow,$T42) -> 0.02399734772 | T42: =COLUMN(AC$474) -> 29
A43: =INDEX(HeaderRow,$T43) -> Unconditional | C43: =INDEX(LiveAllRow,$T43) -> 1.480462027 | D43: =INDEX(LiveMinRow,$T43) -> 0 | E43: =INDEX(LiveMaxRow,$T43) -> 0.25 | F43: =INDEX(LiveAvRow,$T43) -> 0.02085157784 | T43: =COLUMN(AD$474) -> 30
A44: =INDEX(HeaderRow,$T44) -> Conditional | C44: =INDEX(LiveAllRow,$T44) -> 1.774844165 | D44: =INDEX(LiveMinRow,$T44) -> 0 | E44: =INDEX(LiveMaxRow,$T44) -> 0.2543478261 | F44: =INDEX(LiveAvRow,$T44) -> 0.02499780515 | T44: =COLUMN(AE$474) -> 31
A45: =INDEX(HeaderRow,$T45) -> On cost proportion | C45: =INDEX(LiveAllRow,$T45) -> 6.643 | D45: =INDEX(LiveMinRow,$T45) -> 0 | E45: =INDEX(LiveMaxRow,$T45) -> 0.0949 | F45: =INDEX(LiveAvRow,$T45) -> 0.09356338028 | T45: =COLUMN(AF$474) -> 32
M113: Valuation date information | AA113: Previous valuation date information | AG113: Live records
Q114: Entitlement years before FTE adjustment | AC114: Entitlement years before FTE adjustment | AG114: Valuation | AL114: Previous
A115: Name | B115: Reference | C115: Sex | D115: Birth date | E115: Entry date | F115: Exit date | G115: Exit mode | H115: Initial qualifying | I115: Subsequent qualifying | J115: Initial rate | K115: Subsequent rate | L115: Salary (Full time) | M115: Full time proportion accrued | N115: Full time proportion accruing | O115: Last vesting date | P115: Next vesting date | Q115: Preconditional | R115: Unconditional | S115: Conditional | T115: Accrued annual leave | U115: Annual leave accrual rate | V115: Superannuation proportion | W115: Workers compensation proportion | X115: Payroll tax proportion | Y115: On cost proportion | Z115: Salary (Full time) | AA115: Full time proportion accrued | AB115: Full time proportion accruing | AC115: Preconditional | AD115: Unconditional | AE115: Conditional | AF115: On cost proportion | AG115: Number | AH115: Age | AI115: Face value | AJ115: Service | AK115: Accrual | AL115: Number | AM115: Age
A116: =[1]Sheet1!A2 -> Abbott, Lisa | B116: =[1]Sheet1!B2 -> 8000000 | C116: =[1]Sheet1!C2 -> f | D116: =[1]Sheet1!D2 -> 1981-01-20 | E116: =[1]Sheet1!L2 -> 2007-01-01 | F116: 2099-12-31 | H116: 7 | I116: 7 | J116: 0.25 | K116: 0.25 | L116: =[1]Sheet1!K2 -> 64256 | M116: =[1]Sheet1!I2 -> 0.6 | N116: =M116 -> 0.6 | O116: =[1]Sheet1!M2 -> 2014-04-27 | P116: =[1]Sheet1!R2 -> 2021-04-27 | Q116: =IF(AJ116>0, IF(AJ116<H116, [1]Sheet1!Q2/L116/M116, 0),0) -> 0 | R116: =IF(AJ116>0, IF(AJ116>=H116, [1]Sheet1!O2/L116/M116 -S116, 0),0) -> 0.09379169451 | S116: =IF(AJ116>H116, [1]Sheet1!Q2/L116/M116, 0) -> 0.09790159872 | T116: =VLOOKUP(B116, [2]Sheet1!$A$2:$K$359, 11, FALSE) -> 4.895839201 | Z116: 54486 | AA116: 1 | AB116: 1 | AC116: 0 | AD116: 0.2491988768 | AE116: 0 | AF116: 0.0949 | AG116: =IF($E116<=ValDate,1,0) * IF($F116>ValDate,1,IF($F116=0,1,0)) -> 1 | AH116: =AG116*YEARFRAC($D116,ValDate) -> 35.94722222 | AI116: =L116*M116*SUM(Q116:S116) -> 7390.46655 | AJ116: =AG116*YEARFRAC(E116,VaDate) -> 10 | AK116: =AG116*SUM(Q116:S116) -> 0.1916932932 | AL116: =IF($E116<=LastYear,1,0) * IF($F116>LastYear,1,IF($F116=0,1,0)) -> 1 | AM116: =AL116*YEARFRAC($D116,LastYear) -> 34.94722222
A117: =[1]Sheet1!A3 -> Abdullah, Maree L | B117: =[1]Sheet1!B3 -> 8000001 | C117: =[1]Sheet1!C3 -> f | D117: =[1]Sheet1!D3 -> 1977-05-05 | E117: =[1]Sheet1!L3 -> 2003-01-29 | F117: 2099-12-31 | H117: 7 | I117: 7 | J117: 0.25 | K117: 0.25 | L117: =[1]Sheet1!K3 -> 57376 | M117: =[1]Sheet1!I3 -> 1 | N117: =M117 -> 1 | O117: =[1]Sheet1!M3 -> 2010-05-03 | P117: =[1]Sheet1!R3 -> 2017-05-03 | Q117: =IF(AJ117>0, IF(AJ117<H117, [1]Sheet1!Q3/L117/M117, 0),0) -> 0 | R117: =IF(AJ117>0, IF(AJ117>=H117, [1]Sheet1!O3/L117/M117 -S117, 0),0) -> -0.2373345555 | S117: =IF(AJ117>H117, [1]Sheet1!Q3/L117/M117, 0) -> 0.2373345555 | Z117: 42306 | AA117: 1 | AB117: 1 | AC117: 0 | AD117: 0 | AE117: 0.07103247766 | AF117: 0.0949 | AG117: 1 | AH117: 39.65555556 | AI117: 0 | AJ117: 13.92222222 | AK117: 0 | AL117: 1 | AM117: 38.65555556
A118: =[1]Sheet1!A4 -> Adams, Kathrine J | B118: =[1]Sheet1!B4 -> 8000003 | C118: =[1]Sheet1!C4 -> f | D118: =[1]Sheet1!D4 -> 1958-05-31 | E118: =[1]Sheet1!L4 -> 2012-03-05 | F118: 2099-12-31 | H118: 7 | I118: 7 | J118: 0.25 | K118: 0.25 | L118: =[1]Sheet1!K4 -> 91152 | M118: =[1]Sheet1!I4 -> 1 | N118: 1 | O118: =[1]Sheet1!M4 -> 2015-11-05 | P118: =[1]Sheet1!R4 -> 2022-11-05 | Q118: =IF(AJ118>0, IF(AJ118<H118, [1]Sheet1!Q4/L118/M118, 0),0) -> 0.04450022618 | R118: =IF(AJ118>0, IF(AJ118>=H118, [1]Sheet1!O4/L118/M118 -S118, 0),0) -> 0 | S118: =IF(AJ118>H118, [1]Sheet1!Q4/L118/M118, 0) -> 0 | Z118: 37255 | AA118: 1 | AB118: 1 | AC118: 0.1956768219 | AD118: 0 | AE118: 0.1956768219 | AF118: 0.0949 | AG118: 1 | AH118: 58.58333333 | AI118: 4056.284617 | AJ118: 4.822222222 | AK118: 0.04450022618 | AL118: 1 | AM118: 57.58333333
A119: =[1]Sheet1!A5 -> Adams, Stephen B | B119: =[1]Sheet1!B5 -> 8000005 | C119: =[1]Sheet1!C5 -> m | D119: =[1]Sheet1!D5 -> 1957-02-07 | E119: =[1]Sheet1!L5 -> 2011-01-20 | F119: 2099-12-31 | H119: 7 | I119: 7 | J119: 0.25 | K119: 0.25 | L119: =[1]Sheet1!K5 -> 94614 | M119: =[1]Sheet1!I5 -> 1 | N119: 1 | O119: =[1]Sheet1!M5 -> 2013-06-22 | P119: =[1]Sheet1!R5 -> 2020-06-22 | Q119: =IF(AJ119>0, IF(AJ119<H119, [1]Sheet1!Q5/L119/M119, 0),0) -> 0.1275673187 | R119: =IF(AJ119>0, IF(AJ119>=H119, [1]Sheet1!O5/L119/M119 -S119, 0),0) -> 0 | S119: =IF(AJ119>H119, [1]Sheet1!Q5/L119/M119, 0) -> 0 | Z119: 33738 | AA119: 1 | AB119: 1 | AC119: 0 | AD119: 0 | AE119: 0 | AF119: 0.0949 | AG119: 1 | AH119: 59.9 | AI119: 12069.65429 | AJ119: 5.947222222 | AK119: 0.1275673187 | AL119: 1 | AM119: 58.9
A120: =[1]Sheet1!A6 -> Addink, Paul M | B120: =[1]Sheet1!B6 -> 8000006 | C120: =[1]Sheet1!C6 -> m | D120: =[1]Sheet1!D6 -> 1984-11-20 | E120: =[1]Sheet1!L6 -> 2015-01-19 | F120: 2099-12-31 | H120: 7 | I120: 7 | J120: 0.25 | K120: 0.25 | L120: =[1]Sheet1!K6 -> 60781 | M120: =[1]Sheet1!I6 -> 1 | N120: 1 | O120: =[1]Sheet1!M6 -> 2015-06-03 | P120: =[1]Sheet1!R6 -> 2022-06-03 | Q120: =IF(AJ120>0, IF(AJ120<H120, [1]Sheet1!Q6/L120/M120, 0),0) -> 0.05933363828 | R120: =IF(AJ120>0, IF(AJ120>=H120, [1]Sheet1!O6/L120/M120 -S120, 0),0) -> 0 | S120: =IF(AJ120>H120, [1]Sheet1!Q6/L120/M120, 0) -> 0 | Z120: 36827 | AA120: 1 | AB120: 1 | AC120: 0.05321910555 | AD120: 0 | AE120: 0.05321910555 | AF120: 0.0949 | AG120: 1 | AH120: 32.11388889 | AI120: 3606.357868 | AJ120: 1.95 | AK120: 0.05933363828 | AL120: 1 | AM120: 31.11388889
A121: =[1]Sheet1!A7 -> Alfred, Olufemi M | B121: =[1]Sheet1!B7 -> 8000008 | C121: =[1]Sheet1!C7 -> m | D121: =[1]Sheet1!D7 -> 1970-07-31 | E121: =[1]Sheet1!L7 -> 2012-06-28 | F121: 2099-12-31 | H121: 7 | I121: 7 | J121: 0.25 | K121: 0.25 | L121: =[1]Sheet1!K7 -> 109590 | M121: =[1]Sheet1!I7 -> 1 | N121: 1 | O121: =[1]Sheet1!M7 -> 2012-06-16 | P121: =[1]Sheet1!R7 -> 2019-06-16 | Q121: =IF(AJ121>0, IF(AJ121<H121, [1]Sheet1!Q7/L121/M121, 0),0) -> 0.1631675044 | R121: =IF(AJ121>0, IF(AJ121>=H121, [1]Sheet1!O7/L121/M121 -S121, 0),0) -> 0 | S121: =IF(AJ121>H121, [1]Sheet1!Q7/L121/M121, 0) -> 0 | Z121: 37255 | AA121: 1 | AB121: 1 | AC121: 0.0711029392 | AD121: 0 | AE121: 0.0711029392 | AF121: 0.0949 | AG121: 1 | AH121: 46.41666667 | AI121: 17881.52681 | AJ121: 4.508333333 | AK121: 0.1631675044 | AL121: 1 | AM121: 45.41666667
A122: =[1]Sheet1!A8 -> Allen, Craig | B122: =[1]Sheet1!B8 -> 8000010 | C122: =[1]Sheet1!C8 -> m | D122: =[1]Sheet1!D8 -> 1957-08-30 | E122: =[1]Sheet1!L8 -> 2007-05-07 | F122: 2099-12-31 | H122: 7 | I122: 7 | J122: 0.25 | K122: 0.25 | L122: =[1]Sheet1!K8 -> 103122 | M122: =[1]Sheet1!I8 -> 1 | N122: 1 | O122: =[1]Sheet1!M8 -> 2014-09-29 | P122: =[1]Sheet1!R8 -> 2021-09-29 | Q122: =IF(AJ122>0, IF(AJ122<H122, [1]Sheet1!Q8/L122/M122, 0),0) -> 0 | R122: =IF(AJ122>0, IF(AJ122>=H122, [1]Sheet1!O8/L122/M122 -S122, 0),0) -> -0.0830670907 | S122: =IF(AJ122>H122, [1]Sheet1!Q8/L122/M122, 0) -> 0.0830670907 | Z122: 30917 | AA122: 1 | AB122: 1 | AC122: 0 | AD122: 0 | AE122: 0 | AF122: 0.0949 | AG122: 1 | AH122: 59.33333333 | AI122: 0 | AJ122: 9.65 | AK122: 0 | AL122: 1 | AM122: 58.33333333
A123: =[1]Sheet1!A9 -> Alston, Elsa J | B123: =[1]Sheet1!B9 -> 8000013 | C123: =[1]Sheet1!C9 -> f | D123: =[1]Sheet1!D9 -> 1971-06-02 | E123: =[1]Sheet1!L9 -> 2016-09-19 | F123: 2099-12-31 | H123: 7 | I123: 7 | J123: 0.25 | K123: 0.25 | L123: =[1]Sheet1!K9 -> 67896 | M123: =[1]Sheet1!I9 -> 1 | N123: 1 | O123: =[1]Sheet1!M9 -> 2016-11-12 | P123: =[1]Sheet1!R9 -> 2023-11-12 | Q123: =IF(AJ123>0, IF(AJ123<H123, [1]Sheet1!Q9/L123/M123, 0),0) -> 0.0089000456 | R123: =IF(AJ123>0, IF(AJ123>=H123, [1]Sheet1!O9/L123/M123 -S123, 0),0) -> 0 | S123: =IF(AJ123>H123, [1]Sheet1!Q9/L123/M123, 0) -> 0 | Z123: 33738 | AA123: 1 | AB123: 1 | AC123: 0 | AD123: 0 | AE123: 0 | AF123: 0.0949 | AG123: 1 | AH123: 45.58055556 | AI123: 604.2774961 | AJ123: 0.2833333333 | AK123: 0.0089000456 | AL123: 0 | AM123: 0
A124: =[1]Sheet1!A10 -> Amos, Julie K | B124: =[1]Sheet1!B10 -> 8000014 | C124: =[1]Sheet1!C10 -> f | D124: =[1]Sheet1!D10 -> 1968-01-18 | E124: =[1]Sheet1!L10 -> 2015-01-12 | F124: 2099-12-31 | H124: 7 | I124: 7 | J124: 0.25 | K124: 0.25 | L124: =[1]Sheet1!K10 -> 78517 | M124: =[1]Sheet1!I10 -> 1 | N124: 1 | O124: =[1]Sheet1!M10 -> 2015-03-03 | P124: =[1]Sheet1!R10 -> 2022-03-03 | Q124: =IF(AJ124>0, IF(AJ124<H124, [1]Sheet1!Q10/L124/M124, 0),0) -> 0.06823368392 | R124: =IF(AJ124>0, IF(AJ124>=H124, [1]Sheet1!O10/L124/M124 -S124, 0),0) -> 0 | S124: =IF(AJ124>H124, [1]Sheet1!Q10/L124/M124, 0) -> 0 | Z124: 30917 | AA124: 1 | AB124: 1 | AC124: 0 | AD124: 0 | AE124: 0 | AF124: 0.0949 | AG124: 1 | AH124: 48.95277778 | AI124: 5357.504161 | AJ124: 1.969444444 | AK124: 0.06823368392 | AL124: 1 | AM124: 47.95277778
A125: =[1]Sheet1!A11 -> Anderson, Katherine B | B125: =[1]Sheet1!B11 -> 8000015 | C125: =[1]Sheet1!C11 -> f | D125: =[1]Sheet1!D11 -> 1975-12-31 | E125: =[1]Sheet1!L11 -> 2016-09-05 | F125: 2099-12-31 | H125: 7 | I125: 7 | J125: 0.25 | K125: 0.25 | L125: =[1]Sheet1!K11 -> 72204 | M125: =[1]Sheet1!I11 -> 0.5 | N125: 0.5 | O125: =[1]Sheet1!M11 -> 2016-11-12 | P125: =[1]Sheet1!R11 -> 2023-11-12 | Q125: =IF(AJ125>0, IF(AJ125<H125, [1]Sheet1!Q11/L125/M125, 0),0) -> 0.008900045309 | R125: =IF(AJ125>0, IF(AJ125>=H125, [1]Sheet1!O11/L125/M125 -S125, 0),0) -> 0 | S125: =IF(AJ125>H125, [1]Sheet1!Q11/L125/M125, 0) -> 0 | Z125: 30917 | AA125: 1 | AB125: 1 | AC125: 0 | AD125: 0 | AE125: 0 | AF125: 0.0949 | AG125: 1 | AH125: 41 | AI125: 321.3094357 | AJ125: 0.3222222222 | AK125: 0.008900045309 | AL125: 0 | AM125: 0
A126: =[1]Sheet1!A12 -> Anderson, Susan L | B126: =[1]Sheet1!B12 -> 8000016 | C126: =[1]Sheet1!C12 -> f | D126: =[1]Sheet1!D12 -> 1964-05-21 | E126: =[1]Sheet1!L12 -> 2013-10-11 | F126: 2099-12-31 | H126: 7 | I126: 7 | J126: 0.25 | K126: 0.25 | L126: =[1]Sheet1!K12 -> 80797 | M126: =[1]Sheet1!I12 -> 1 | N126: 1 | O126: =[1]Sheet1!M12 -> 2014-08-29 | P126: =[1]Sheet1!R12 -> 2021-08-29 | Q126: =IF(AJ126>0, IF(AJ126<H126, [1]Sheet1!Q12/L126/M126, 0),0) -> 0.08603377616 | R126: =IF(AJ126>0, IF(AJ126>=H126, [1]Sheet1!O12/L126/M126 -S126, 0),0) -> 0 | S126: =IF(AJ126>H126, [1]Sheet1!Q12/L126/M126, 0) -> 0 | Z126: 37255 | AA126: 1 | AB126: 1 | AC126: 0 | AD126: 0.2491477654 | AE126: 0 | AF126: 0.0949 | AG126: 1 | AH126: 52.61111111 | AI126: 6951.271013 | AJ126: 3.222222222 | AK126: 0.08603377616 | AL126: 1 | AM126: 51.61111111
A127: =[1]Sheet1!A13 -> Andrews, Shona C | B127: =[1]Sheet1!B13 -> 8000017 | C127: =[1]Sheet1!C13 -> f | D127: =[1]Sheet1!D13 -> 1959-11-19 | E127: =[1]Sheet1!L13 -> 2007-11-16 | F127: 2099-12-31 | H127: 7 | I127: 7 | J127: 0.25 | K127: 0.25 | L127: =[1]Sheet1!K13 -> 103122 | M127: =[1]Sheet1!I13 -> 1 | N127: 1 | O127: =[1]Sheet1!M13 -> 2016-01-06 | P127: =[1]Sheet1!R13 -> 2023-01-06 | Q127: =IF(AJ127>0, IF(AJ127<H127, [1]Sheet1!Q13/L127/M127, 0),0) -> 0 | R127: =IF(AJ127>0, IF(AJ127>=H127, [1]Sheet1!O13/L127/M127 -S127, 0),0) -> 0.2106344111 | S127: =IF(AJ127>H127, [1]Sheet1!Q13/L127/M127, 0) -> 0.0385668627 | Z127: 36827 | AA127: 1 | AB127: 1 | AC127: 0.03560702745 | AD127: 0 | AE127: 0.03560702745 | AF127: 0.0949 | AG127: 1 | AH127: 57.11666667 | AI127: 25698.13375 | AJ127: 9.125 | AK127: 0.2492012737 | AL127: 1 | AM127: 56.11666667
A128: =[1]Sheet1!A14 -> Arnold, Lea | B128: =[1]Sheet1!B14 -> 8000020 | C128: =[1]Sheet1!C14 -> f | D128: =[1]Sheet1!D14 -> 1986-07-04 | E128: =[1]Sheet1!L14 -> 2011-06-07 | F128: 2099-12-31 | H128: 7 | I128: 7 | J128: 0.25 | K128: 0.25 | L128: =[1]Sheet1!K14 -> 73717 | M128: =[1]Sheet1!I14 -> 0.6 | N128: 0.6 | O128: =[1]Sheet1!M14 -> 2012-02-12 | P128: =[1]Sheet1!R14 -> 2019-02-12 | Q128: =IF(AJ128>0, IF(AJ128<H128, [1]Sheet1!Q14/L128/M128, 0),0) -> 0.1750342318 | R128: =IF(AJ128>0, IF(AJ128>=H128, [1]Sheet1!O14/L128/M128 -S128, 0),0) -> 0 | S128: =IF(AJ128>H128, [1]Sheet1!Q14/L128/M128, 0) -> 0 | Z128: 30304 | AA128: 1 | AB128: 1 | AC128: 0.1611127244 | AD128: 0 | AE128: 0.1611127244 | AF128: 0.0949 | AG128: 1 | AH128: 30.49166667 | AI128: 7741.799079 | AJ128: 5.566666667 | AK128: 0.1750342318 | AL128: 1 | AM128: 29.49166667
A129: =[1]Sheet1!A15 -> Aslin, Michael J | B129: =[1]Sheet1!B15 -> 8000022 | C129: =[1]Sheet1!C15 -> m | D129: =[1]Sheet1!D15 -> 1968-03-16 | E129: =[1]Sheet1!L15 -> 2014-10-13 | F129: 2099-12-31 | H129: 7 | I129: 7 | J129: 0.25 | K129: 0.25 | L129: =[1]Sheet1!K15 -> 94614 | M129: =[1]Sheet1!I15 -> 1 | N129: 1 | O129: =[1]Sheet1!M15 -> 2014-11-30 | P129: =[1]Sheet1!R15 -> 2021-11-30 | Q129: =IF(AJ129>0, IF(AJ129<H129, [1]Sheet1!Q15/L129/M129, 0),0) -> 0.07713372722 | R129: =IF(AJ129>0, IF(AJ129>=H129, [1]Sheet1!O15/L129/M129 -S129, 0),0) -> 0 | S129: =IF(AJ129>H129, [1]Sheet1!Q15/L129/M129, 0) -> 0 | Z129: 16238 | AA129: 1 | AB129: 1 | AC129: 0 | AD129: 0 | AE129: 0 | AF129: 0.0949 | AG129: 1 | AH129: 48.79166667 | AI129: 7297.930468 | AJ129: 2.216666667 | AK129: 0.07713372722 | AL129: 1 | AM129: 47.79166667
A130: =[1]Sheet1!A16 -> Atterby, Kate V | B130: =[1]Sheet1!B16 -> 8000024 | C130: =[1]Sheet1!C16 -> f | D130: =[1]Sheet1!D16 -> 1968-05-15 | E130: =[1]Sheet1!L16 -> 2016-07-29 | F130: 2099-12-31 | H130: 7 | I130: 7 | J130: 0.25 | K130: 0.25 | L130: =[1]Sheet1!K16 -> 69781 | M130: =[1]Sheet1!I16 -> 1 | N130: 1 | O130: =[1]Sheet1!M16 -> 2016-09-11 | P130: =[1]Sheet1!R16 -> 2023-09-11 | Q130: =IF(AJ130>0, IF(AJ130<H130, [1]Sheet1!Q16/L130/M130, 0),0) -> 0.01483340915 | R130: =IF(AJ130>0, IF(AJ130>=H130, [1]Sheet1!O16/L130/M130 -S130, 0),0) -> 0 | S130: =IF(AJ130>H130, [1]Sheet1!Q16/L130/M130, 0) -> 0 | Z130: 10948 | AA130: 1 | AB130: 1 | AC130: 0 | AD130: 0 | AE130: 0 | AF130: 0.0949 | AG130: 1 | AH130: 48.62777778 | AI130: 1035.090124 | AJ130: 0.4222222222 | AK130: 0.01483340915 | AL130: 0 | AM130: 0
A131: =[1]Sheet1!A17 -> Bailey, Kim N | B131: =[1]Sheet1!B17 -> 8000026 | C131: =[1]Sheet1!C17 -> f | D131: =[1]Sheet1!D17 -> 1982-03-28 | E131: =[1]Sheet1!L17 -> 2015-01-01 | F131: 2099-12-31 | H131: 7 | I131: 7 | J131: 0.25 | K131: 0.25 | L131: =[1]Sheet1!K17 -> 60781 | M131: =[1]Sheet1!I17 -> 0.6933 | N131: 0.6933 | O131: =[1]Sheet1!M17 -> 2015-08-04 | P131: =[1]Sheet1!R17 -> 2022-08-04 | Q131: =IF(AJ131>0, IF(AJ131<H131, [1]Sheet1!Q17/L131/M131, 0),0) -> 0.05340027465 | R131: =IF(AJ131>0, IF(AJ131>=H131, [1]Sheet1!O17/L131/M131 -S131, 0),0) -> 0 | S131: =IF(AJ131>H131, [1]Sheet1!Q17/L131/M131, 0) -> 0 | Z131: 6440 | AA131: 1 | AB131: 1 | AC131: 0.1130434783 | AD131: 0 | AE131: 0.1130434783 | AF131: 0.0949 | AG131: 1 | AH131: 34.75833333 | AI131: 2250.259128 | AJ131: 2 | AK131: 0.05340027465 | AL131: 1 | AM131: 33.75833333
A132: =[1]Sheet1!A18 -> Barndon, Katie A | B132: =[1]Sheet1!B18 -> 8000028 | C132: =[1]Sheet1!C18 -> f | D132: =[1]Sheet1!D18 -> 1987-08-30 | E132: =[1]Sheet1!L18 -> 2005-10-26 | F132: 2099-12-31 | H132: 7 | I132: 7 | J132: 0.25 | K132: 0.25 | L132: =[1]Sheet1!K18 -> 64256 | M132: =[1]Sheet1!I18 -> 1 | N132: 1 | O132: =[1]Sheet1!M18 -> 2017-02-13 | P132: =[1]Sheet1!R18 -> 2024-02-13 | Q132: =IF(AJ132>0, IF(AJ132<H132, [1]Sheet1!Q18/L132/M132, 0),0) -> 0 | R132: =IF(AJ132>0, IF(AJ132>=H132, [1]Sheet1!O18/L132/M132 -S132, 0),0) -> -0.04025559158 | S132: =IF(AJ132>H132, [1]Sheet1!Q18/L132/M132, 0) -> 0 | Z132: 13018 | AA132: 1 | AB132: 1 | AC132: 0.1130434783 | AD132: 0 | AE132: 0.1130434783 | AF132: 0.0949 | AG132: 1 | AH132: 29.33333333 | AI132: -2586.663293 | AJ132: 11.18055556 | AK132: -0.04025559158 | AL132: 1 | AM132: 28.33333333
A133: =[1]Sheet1!A19 -> Bartlett, Jennifer R | B133: =[1]Sheet1!B19 -> 8000031 | C133: =[1]Sheet1!C19 -> f | D133: =[1]Sheet1!D19 -> 1986-11-19 | E133: =[1]Sheet1!L19 -> 2014-08-11 | F133: 2099-12-31 | H133: 7 | I133: 7 | J133: 0.25 | K133: 0.25 | L133: =[1]Sheet1!K19 -> 90896 | M133: =[1]Sheet1!I19 -> 1 | N133: 1 | O133: =[1]Sheet1!M19 -> 2014-12-31 | P133: =[1]Sheet1!R19 -> 2021-12-31 | Q133: =IF(AJ133>0, IF(AJ133<H133, [1]Sheet1!Q19/L133/M133, 0),0) -> 0.07416704833 | R133: =IF(AJ133>0, IF(AJ133>=H133, [1]Sheet1!O19/L133/M133 -S133, 0),0) -> 0 | S133: =IF(AJ133>H133, [1]Sheet1!Q19/L133/M133, 0) -> 0 | Z133: 16238 | AA133: 1 | AB133: 1 | AC133: 0 | AD133: 0 | AE133: 0 | AF133: 0.0949 | AG133: 1 | AH133: 30.11666667 | AI133: 6741.488025 | AJ133: 2.388888889 | AK133: 0.07416704833 | AL133: 1 | AM133: 29.11666667
A134: =[1]Sheet1!A20 -> Bassham, Alan T | B134: =[1]Sheet1!B20 -> 8000032 | C134: =[1]Sheet1!C20 -> m | D134: =[1]Sheet1!D20 -> 1953-03-25 | E134: =[1]Sheet1!L20 -> 2015-02-16 | F134: 2099-12-31 | H134: 7 | I134: 7 | J134: 0.25 | K134: 0.25 | L134: =[1]Sheet1!K20 -> 94614 | M134: =[1]Sheet1!I20 -> 1 | N134: 1 | O134: =[1]Sheet1!M20 -> 2015-04-03 | P134: =[1]Sheet1!R20 -> 2022-04-03 | Q134: =IF(AJ134>0, IF(AJ134<H134, [1]Sheet1!Q20/L134/M134, 0),0) -> 0.06526700027 | R134: =IF(AJ134>0, IF(AJ134>=H134, [1]Sheet1!O20/L134/M134 -S134, 0),0) -> 0 | S134: =IF(AJ134>H134, [1]Sheet1!Q20/L134/M134, 0) -> 0 | Z134: 24058 | AA134: 1 | AB134: 1 | AC134: 0.1130434783 | AD134: 0 | AE134: 0.1130434783 | AF134: 0.0949 | AG134: 1 | AH134: 63.76666667 | AI134: 6175.171963 | AJ134: 1.875 | AK134: 0.06526700027 | AL134: 1 | AM134: 62.76666667
A135: =[1]Sheet1!A21 -> Battilana, Kellie F | B135: =[1]Sheet1!B21 -> 8000033 | C135: =[1]Sheet1!C21 -> f | D135: =[1]Sheet1!D21 -> 1964-04-11 | E135: =[1]Sheet1!L21 -> 2006-01-09 | F135: 2099-12-31 | H135: 7 | I135: 7 | J135: 0.25 | K135: 0.25 | L135: =[1]Sheet1!K21 -> 88830 | M135: =[1]Sheet1!I21 -> 0.75 | N135: 0.75 | O135: =[1]Sheet1!M21 -> 2013-05-22 | P135: =[1]Sheet1!R21 -> 2020-05-22 | Q135: =IF(AJ135>0, IF(AJ135<H135, [1]Sheet1!Q21/L135/M135, 0),0) -> 0 | R135: =IF(AJ135>0, IF(AJ135>=H135, [1]Sheet1!O21/L135/M135 -S135, 0),0) -> -0.1305340024 | S135: =IF(AJ135>H135, [1]Sheet1!Q21/L135/M135, 0) -> 0.1305340024 | Z135: 26496 | AA135: 1 | AB135: 1 | AC135: 0.09515398551 | AD135: 0 | AE135: 0.09515398551 | AF135: 0.0949 | AG135: 1 | AH135: 52.72222222 | AI135: 0 | AJ135: 10.97777778 | AK135: 0 | AL135: 1 | AM135: 51.72222222
A136: =[1]Sheet1!A22 -> Baumgarten, Marion J | B136: =[1]Sheet1!B22 -> 8000035 | C136: =[1]Sheet1!C22 -> f | D136: =[1]Sheet1!D22 -> 1966-04-29 | E136: =[1]Sheet1!L22 -> 2016-01-11 | F136: 2099-12-31 | H136: 7 | I136: 7 | J136: 0.25 | K136: 0.25 | L136: =[1]Sheet1!K22 -> 98966 | M136: =[1]Sheet1!I22 -> 1 | N136: 1 | O136: =[1]Sheet1!M22 -> 2016-03-09 | P136: =[1]Sheet1!R22 -> 2023-03-09 | Q136: =IF(AJ136>0, IF(AJ136<H136, [1]Sheet1!Q22/L136/M136, 0),0) -> 0.03263350005 | R136: =IF(AJ136>0, IF(AJ136>=H136, [1]Sheet1!O22/L136/M136 -S136, 0),0) -> 0 | S136: =IF(AJ136>H136, [1]Sheet1!Q22/L136/M136, 0) -> 0 | Z136: 10442 | AA136: 1 | AB136: 1 | AC136: 0.002489944455 | AD136: 0 | AE136: 0.002489944455 | AF136: 0.0949 | AG136: 1 | AH136: 50.67222222 | AI136: 3229.606966 | AJ136: 0.9722222222 | AK136: 0.03263350005 | AL136: 0 | AM136: 0
A137: =[1]Sheet1!A23 -> Beamish, Stephen N | B137: =[1]Sheet1!B23 -> 8000037 | C137: =[1]Sheet1!C23 -> m | D137: =[1]Sheet1!D23 -> 1958-05-10 | E137: =[1]Sheet1!L23 -> 2012-07-23 | F137: 2099-12-31 | H137: 7 | I137: 7 | J137: 0.25 | K137: 0.25 | L137: =[1]Sheet1!K23 -> 103122 | M137: =[1]Sheet1!I23 -> 1 | N137: 1 | O137: =[1]Sheet1!M23 -> 2012-07-17 | P137: =[1]Sheet1!R23 -> 2019-07-17 | Q137: =IF(AJ137>0, IF(AJ137<H137, [1]Sheet1!Q23/L137/M137, 0),0) -> 0.1602008198 | R137: =IF(AJ137>0, IF(AJ137>=H137, [1]Sheet1!O23/L137/M137 -S137, 0),0) -> 0 | S137: =IF(AJ137>H137, [1]Sheet1!Q23/L137/M137, 0) -> 0 | Z137: 8878 | AA137: 1 | AB137: 1 | AC137: 0 | AD137: 0 | AE137: 0 | AF137: 0.0949 | AG137: 1 | AH137: 58.64166667 | AI137: 16520.22893 | AJ137: 4.438888889 | AK137: 0.1602008198 | AL137: 1 | AM137: 57.64166667
A138: =[1]Sheet1!A24 -> Beaver, Ian J | B138: =[1]Sheet1!B24 -> 8000040 | C138: =[1]Sheet1!C24 -> m | D138: =[1]Sheet1!D24 -> 1977-03-03 | E138: =[1]Sheet1!L24 -> 1997-07-29 | F138: 2099-12-31 | H138: 7 | I138: 7 | J138: 0.25 | K138: 0.25 | L138: =[1]Sheet1!K24 -> 80797 | M138: =[1]Sheet1!I24 -> 1 | N138: 1 | O138: =[1]Sheet1!M24 -> 2012-07-17 | P138: =[1]Sheet1!R24 -> 2019-07-17 | Q138: =IF(AJ138>0, IF(AJ138<H138, [1]Sheet1!Q24/L138/M138, 0),0) -> 0 | R138: =IF(AJ138>0, IF(AJ138>=H138, [1]Sheet1!O24/L138/M138 -S138, 0),0) -> -0.1602008231 | S138: =IF(AJ138>H138, [1]Sheet1!Q24/L138/M138, 0) -> 0.1602008231 | Z138: 13432 | AA138: 1 | AB138: 1 | AC138: 0.0009678379988 | AD138: 0 | AE138: 0.0009678379988 | AF138: 0.0949 | AG138: 1 | AH138: 39.82777778 | AI138: 0 | AJ138: 19.42222222 | AK138: 0 | AL138: 1 | AM138: 38.82777778
A139: =[1]Sheet1!A25 -> Begelhole, Alwyn R | B139: =[1]Sheet1!B25 -> 8000041 | C139: =[1]Sheet1!C25 -> m | D139: =[1]Sheet1!D25 -> 1960-03-02 | E139: =[1]Sheet1!L25 -> 2011-08-29 | F139: 2099-12-31 | H139: 7 | I139: 7 | J139: 0.25 | K139: 0.25 | L139: =[1]Sheet1!K25 -> 98211 | M139: =[1]Sheet1!I25 -> 1 | N139: 1 | O139: =[1]Sheet1!M25 -> 2011-10-12 | P139: =[1]Sheet1!R25 -> 2018-10-12 | Q139: =IF(AJ139>0, IF(AJ139<H139, [1]Sheet1!Q25/L139/M139, 0),0) -> 0.1869009553 | R139: =IF(AJ139>0, IF(AJ139>=H139, [1]Sheet1!O25/L139/M139 -S139, 0),0) -> 0 | S139: =IF(AJ139>H139, [1]Sheet1!Q25/L139/M139, 0) -> 0 | Z139: 11040 | AA139: 1 | AB139: 1 | AC139: 0 | AD139: 0 | AE139: 0 | AF139: 0.0949 | AG139: 1 | AH139: 56.83055556 | AI139: 18355.72972 | AJ139: 5.338888889 | AK139: 0.1869009553 | AL139: 1 | AM139: 55.83055556
A140: =[1]Sheet1!A26 -> Bell, Johanna M | B140: =[1]Sheet1!B26 -> 8000042 | C140: =[1]Sheet1!C26 -> f | D140: =[1]Sheet1!D26 -> 1964-05-05 | E140: =[1]Sheet1!L26 -> 2001-04-30 | F140: 2099-12-31 | H140: 7 | I140: 7 | J140: 0.25 | K140: 0.25 | L140: =[1]Sheet1!K26 -> 107041 | M140: =[1]Sheet1!I26 -> 1 | N140: 1 | O140: =[1]Sheet1!M26 -> 2013-06-22 | P140: =[1]Sheet1!R26 -> 2020-06-22 | Q140: =IF(AJ140>0, IF(AJ140<H140, [1]Sheet1!Q26/L140/M140, 0),0) -> 0 | R140: =IF(AJ140>0, IF(AJ140>=H140, [1]Sheet1!O26/L140/M140 -S140, 0),0) -> -0.1275673187 | S140: =IF(AJ140>H140, [1]Sheet1!Q26/L140/M140, 0) -> 0.1275673187 | Z140: 8372 | AA140: 1 | AB140: 1 | AC140: 0 | AD140: 0 | AE140: 0 | AF140: 0.0949 | AG140: 1 | AH140: 52.65555556 | AI140: 0 | AJ140: 15.66666667 | AK140: 0 | AL140: 1 | AM140: 51.65555556
A141: =[1]Sheet1!A27 -> Bellotti, Barry J | B141: =[1]Sheet1!B27 -> 8000044 | C141: =[1]Sheet1!C27 -> m | D141: =[1]Sheet1!D27 -> 1981-09-06 | E141: =[1]Sheet1!L27 -> 2009-03-09 | F141: 2099-12-31 | H141: 7 | I141: 7 | J141: 0.25 | K141: 0.25 | L141: =[1]Sheet1!K27 -> 80797 | M141: =[1]Sheet1!I27 -> 1 | N141: 1 | O141: =[1]Sheet1!M27 -> 2016-05-10 | P141: =[1]Sheet1!R27 -> 2023-05-10 | Q141: =IF(AJ141>0, IF(AJ141<H141, [1]Sheet1!Q27/L141/M141, 0),0) -> 0 | R141: =IF(AJ141>0, IF(AJ141>=H141, [1]Sheet1!O27/L141/M141 -S141, 0),0) -> 0.1841624844 | S141: =IF(AJ141>H141, [1]Sheet1!Q27/L141/M141, 0) -> 0.0267001363 | Z141: 15916 | AA141: 1 | AB141: 1 | AC141: 0 | AD141: 0 | AE141: 0 | AF141: 0.0949 | AG141: 1 | AH141: 35.31944444 | AI141: 17037.06716 | AJ141: 7.811111111 | AK141: 0.2108626207 | AL141: 1 | AM141: 34.31944444
A142: =[1]Sheet1!A28 -> Bennett, Bronwyn M | B142: =[1]Sheet1!B28 -> 8000046 | C142: =[1]Sheet1!C28 -> f | D142: =[1]Sheet1!D28 -> 1964-11-26 | E142: =[1]Sheet1!L28 -> 2010-11-22 | F142: 2099-12-31 | H142: 7 | I142: 7 | J142: 0.25 | K142: 0.25 | L142: =[1]Sheet1!K28 -> 84599 | M142: =[1]Sheet1!I28 -> 1 | N142: 1 | O142: =[1]Sheet1!M28 -> 2011-02-06 | P142: =[1]Sheet1!R28 -> 2018-02-06 | Q142: =IF(AJ142>0, IF(AJ142<H142, [1]Sheet1!Q28/L142/M142, 0),0) -> 0.2106344112 | R142: =IF(AJ142>0, IF(AJ142>=H142, [1]Sheet1!O28/L142/M142 -S142, 0),0) -> 0 | S142: =IF(AJ142>H142, [1]Sheet1!Q28/L142/M142, 0) -> 0 | Z142: 36296 | AA142: 1 | AB142: 1 | AC142: 0 | AD142: 0 | AE142: 0 | AF142: 0.0949 | AG142: 1 | AH142: 52.09722222 | AI142: 17819.46056 | AJ142: 6.108333333 | AK142: 0.2106344112 | AL142: 1 | AM142: 51.09722222
A143: =[1]Sheet1!A29 -> Benzie, Andrew | B143: =[1]Sheet1!B29 -> 8000048 | C143: =[1]Sheet1!C29 -> m | D143: =[1]Sheet1!D29 -> 1963-07-18 | E143: =[1]Sheet1!L29 -> 2015-02-09 | F143: 2099-12-31 | H143: 7 | I143: 7 | J143: 0.25 | K143: 0.25 | L143: =[1]Sheet1!K29 -> 78517 | M143: =[1]Sheet1!I29 -> 1 | N143: 1 | O143: =[1]Sheet1!M29 -> 2015-04-03 | P143: =[1]Sheet1!R29 -> 2022-04-03 | Q143: =IF(AJ143>0, IF(AJ143<H143, [1]Sheet1!Q29/L143/M143, 0),0) -> 0.06526700027 | R143: =IF(AJ143>0, IF(AJ143>=H143, [1]Sheet1!O29/L143/M143 -S143, 0),0) -> 0 | S143: =IF(AJ143>H143, [1]Sheet1!Q29/L143/M143, 0) -> 0 | Z143: 52104 | AA143: 1 | AB143: 1 | AC143: 0 | AD143: 0.25 | AE143: 0 | AF143: 0.0949 | AG143: 1 | AH143: 53.45277778 | AI143: 5124.56906 | AJ143: 1.894444444 | AK143: 0.06526700027 | AL143: 1 | AM143: 52.45277778
A144: =[1]Sheet1!A30 -> Bermingham, Patrick | B144: =[1]Sheet1!B30 -> 8000049 | C144: =[1]Sheet1!C30 -> m | D144: =[1]Sheet1!D30 -> 1983-09-01 | E144: =[1]Sheet1!L30 -> 2013-09-02 | F144: 2099-12-31 | H144: 7 | I144: 7 | J144: 0.25 | K144: 0.25 | L144: =[1]Sheet1!K30 -> 103122 | M144: =[1]Sheet1!I30 -> 1 | N144: 1 | O144: =[1]Sheet1!M30 -> 2013-09-23 | P144: =[1]Sheet1!R30 -> 2020-09-23 | Q144: =IF(AJ144>0, IF(AJ144<H144, [1]Sheet1!Q30/L144/M144, 0),0) -> 0.1186526684 | R144: =IF(AJ144>0, IF(AJ144>=H144, [1]Sheet1!O30/L144/M144 -S144, 0),0) -> 0 | S144: =IF(AJ144>H144, [1]Sheet1!Q30/L144/M144, 0) -> 0 | Z144: 13800 | AA144: 1 | AB144: 1 | AC144: 0.02826086957 | AD144: 0 | AE144: 0.02826086957 | AF144: 0.0949 | AG144: 1 | AH144: 33.33333333 | AI144: 12235.70047 | AJ144: 3.330555556 | AK144: 0.1186526684 | AL144: 1 | AM144: 32.33333333
A145: =[1]Sheet1!A31 -> Bester, Johannes S | B145: =[1]Sheet1!B31 -> 8000051 | C145: =[1]Sheet1!C31 -> m | D145: =[1]Sheet1!D31 -> 1974-08-22 | E145: =[1]Sheet1!L31 -> 2012-04-30 | F145: 2099-12-31 | H145: 7 | I145: 7 | J145: 0.25 | K145: 0.25 | L145: =[1]Sheet1!K31 -> 98211 | M145: =[1]Sheet1!I31 -> 1 | N145: 1 | O145: =[1]Sheet1!M31 -> 2012-05-16 | P145: =[1]Sheet1!R31 -> 2019-05-16 | Q145: =IF(AJ145>0, IF(AJ145<H145, [1]Sheet1!Q31/L145/M145, 0),0) -> 0.1661341832 | R145: =IF(AJ145>0, IF(AJ145>=H145, [1]Sheet1!O31/L145/M145 -S145, 0),0) -> 0 | S145: =IF(AJ145>H145, [1]Sheet1!Q31/L145/M145, 0) -> 0 | Z145: 27456 | AA145: 1 | AB145: 1 | AC145: 0.1054545455 | AD145: 0 | AE145: 0.1054545455 | AF145: 0.0949 | AG145: 1 | AH145: 42.35833333 | AI145: 16316.20427 | AJ145: 4.666666667 | AK145: 0.1661341832 | AL145: 1 | AM145: 41.35833333
A146: =[1]Sheet1!A32 -> Blair, Diane E | B146: =[1]Sheet1!B32 -> 8000057 | C146: =[1]Sheet1!C32 -> f | D146: =[1]Sheet1!D32 -> 1971-04-11 | E146: =[1]Sheet1!L32 -> 2008-02-05 | F146: 2099-12-31 | H146: 7 | I146: 7 | J146: 0.25 | K146: 0.25 | L146: =[1]Sheet1!K32 -> 64256 | M146: =[1]Sheet1!I32 -> 1 | N146: 1 | O146: =[1]Sheet1!M32 -> 2015-09-04 | P146: =[1]Sheet1!R32 -> 2022-09-04 | Q146: =IF(AJ146>0, IF(AJ146<H146, [1]Sheet1!Q32/L146/M146, 0),0) -> 0 | R146: =IF(AJ146>0, IF(AJ146>=H146, [1]Sheet1!O32/L146/M146 -S146, 0),0) -> 0.1987676862 | S146: =IF(AJ146>H146, [1]Sheet1!Q32/L146/M146, 0) -> 0.050433595 | Z146: 10212 | AA146: 1 | AB146: 1 | AC146: 0.02826086957 | AD146: 0 | AE146: 0.02826086957 | AF146: 0.0949 | AG146: 1 | AH146: 45.72222222 | AI146: 16012.67753 | AJ146: 8.905555556 | AK146: 0.2492012812 | AL146: 1 | AM146: 44.72222222
A147: =[1]Sheet1!A33 -> Blechynden, Brian A | B147: =[1]Sheet1!B33 -> 8000058 | C147: =[1]Sheet1!C33 -> m | D147: =[1]Sheet1!D33 -> 1980-03-09 | E147: =[1]Sheet1!L33 -> 2014-01-28 | F147: 2099-12-31 | H147: 7 | I147: 7 | J147: 0.25 | K147: 0.25 | L147: =[1]Sheet1!K33 -> 93994 | M147: =[1]Sheet1!I33 -> 1 | N147: 1 | O147: =[1]Sheet1!M33 -> 2014-02-24 | P147: =[1]Sheet1!R33 -> 2021-02-24 | Q147: =IF(AJ147>0, IF(AJ147<H147, [1]Sheet1!Q33/L147/M147, 0),0) -> 0.103833867 | R147: =IF(AJ147>0, IF(AJ147>=H147, [1]Sheet1!O33/L147/M147 -S147, 0),0) -> 0 | S147: =IF(AJ147>H147, [1]Sheet1!Q33/L147/M147, 0) -> 0 | Z147: 37128 | AA147: 1 | AB147: 1 | AC147: 0 | AD147: 0.25 | AE147: 0 | AF147: 0.0949 | AG147: 1 | AH147: 36.81111111 | AI147: 9759.760494 | AJ147: 2.925 | AK147: 0.103833867 | AL147: 1 | AM147: 35.81111111
A148: =[1]Sheet1!A34 -> Bone, Keith R | B148: =[1]Sheet1!B34 -> 8000059 | C148: =[1]Sheet1!C34 -> m | D148: =[1]Sheet1!D34 -> 1948-06-30 | E148: =[1]Sheet1!L34 -> 2010-01-11 | F148: 2099-12-31 | H148: 7 | I148: 7 | J148: 0.25 | K148: 0.25 | L148: =[1]Sheet1!K34 -> 103122 | M148: =[1]Sheet1!I34 -> 1 | N148: 1 | O148: =[1]Sheet1!M34 -> 2010-01-30 | P148: =[1]Sheet1!R34 -> 2017-01-30 | Q148: =IF(AJ148>0, IF(AJ148<H148, [1]Sheet1!Q34/L148/M148, 0),0) -> 0.2462345921 | R148: =IF(AJ148>0, IF(AJ148>=H148, [1]Sheet1!O34/L148/M148 -S148, 0),0) -> 0 | S148: =IF(AJ148>H148, [1]Sheet1!Q34/L148/M148, 0) -> 0 | Z148: 25806 | AA148: 1 | AB148: 1 | AC148: 0.0847826087 | AD148: 0 | AE148: 0.0847826087 | AF148: 0.0949 | AG148: 1 | AH148: =AG148*YEARFRAC($D148,ValDate) -> 68.5 | AI148: =L148*M148*SUM(Q148:S148) -> 25392.20361 | AJ148: =AG148*YEARFRAC(E148,VaDate) -> 6.972222222 | AK148: =AG148*SUM(Q148:S148) -> 0.2462345921 | AL148: 1 | AM148: =AL148*YEARFRAC($D148,LastYear) -> 67.5
A149: =[1]Sheet1!A35 -> Bone, Tracey A | B149: =[1]Sheet1!B35 -> 8000060 | C149: =[1]Sheet1!C35 -> f | D149: =[1]Sheet1!D35 -> 1963-05-16 | E149: =[1]Sheet1!L35 -> 1996-02-01 | F149: 2099-12-31 | H149: 7 | I149: 7 | J149: 0.25 | K149: 0.25 | L149: =[1]Sheet1!K35 -> 109590 | M149: =[1]Sheet1!I35 -> 1 | N149: 1 | O149: =[1]Sheet1!M35 -> 2014-10-19 | P149: =[1]Sheet1!R35 -> 2021-10-19 | Q149: =IF(AJ149>0, IF(AJ149<H149, [1]Sheet1!Q35/L149/M149, 0),0) -> 0 | R149: =IF(AJ149>0, IF(AJ149>=H149, [1]Sheet1!O35/L149/M149 -S149, 0),0) -> -0.05810059444 | S149: =IF(AJ149>H149, [1]Sheet1!Q35/L149/M149, 0) -> 0.08111145736 | Z149: 37128 | AA149: 1 | AB149: 1 | AC149: 0.125 | AD149: 0 | AE149: 0.125 | AF149: 0.0949 | AG149: 1 | AH149: 53.625 | AI149: 2521.760467 | AJ149: 20.91666667 | AK149: 0.02301086291 | AL149: 1 | AM149: 52.625
A150: =[1]Sheet1!A36 -> Boston, Elizabeth A | B150: =[1]Sheet1!B36 -> 8000062 | C150: =[1]Sheet1!C36 -> f | D150: =[1]Sheet1!D36 -> 1960-01-03 | E150: =[1]Sheet1!L36 -> 2000-04-10 | F150: 2099-12-31 | H150: 7 | I150: 7 | J150: 0.25 | K150: 0.25 | L150: =[1]Sheet1!K36 -> 105816 | M150: =[1]Sheet1!I36 -> 1 | N150: 1 | O150: =[1]Sheet1!M36 -> 2011-10-11 | P150: =[1]Sheet1!R36 -> 2018-10-11 | Q150: =IF(AJ150>0, IF(AJ150<H150, [1]Sheet1!Q36/L150/M150, 0),0) -> 0 | R150: =IF(AJ150>0, IF(AJ150>=H150, [1]Sheet1!O36/L150/M150 -S150, 0),0) -> -0.07571885057 | S150: =IF(AJ150>H150, [1]Sheet1!Q36/L150/M150, 0) -> 0.1869009573 | Z150: 28496 | AA150: 1 | AB150: 1 | AC150: 0 | AD150: 0.25 | AE150: 0 | AF150: 0.0949 | AG150: 1 | AH150: 56.99444444 | AI150: 11764.84581 | AJ150: 16.725 | AK150: 0.1111821068 | AL150: 1 | AM150: 55.99444444
A151: =[1]Sheet1!A37 -> Boston, James | B151: =[1]Sheet1!B37 -> 8000063 | C151: =[1]Sheet1!C37 -> m | D151: =[1]Sheet1!D37 -> 1947-07-08 | E151: =[1]Sheet1!L37 -> 2006-02-15 | F151: 2099-12-31 | H151: 7 | I151: 7 | J151: 0.25 | K151: 0.25 | L151: =[1]Sheet1!K37 -> 84599 | M151: =[1]Sheet1!I37 -> 0.43 | N151: 0.43 | O151: =[1]Sheet1!M37 -> 2016-01-06 | P151: =[1]Sheet1!R37 -> 2023-01-06 | Q151: =IF(AJ151>0, IF(AJ151<H151, [1]Sheet1!Q37/L151/M151, 0),0) -> 0 | R151: =IF(AJ151>0, IF(AJ151>=H151, [1]Sheet1!O37/L151/M151 -S151, 0),0) -> 0.1876312166 | S151: =IF(AJ151>H151, [1]Sheet1!Q37/L151/M151, 0) -> 0.0385668627 | Z151: 13018 | AA151: 1 | AB151: 1 | AC151: 0.2543478261 | AD151: 0 | AE151: 0.2543478261 | AF151: 0.0949 | AG151: 1 | AH151: 69.48055556 | AI151: 8228.536462 | AJ151: 10.87777778 | AK151: 0.2261980793 | AL151: 1 | AM151: 68.48055556
A152: =[1]Sheet1!A38 -> Boston, Penelope F | B152: =[1]Sheet1!B38 -> 8000064 | C152: =[1]Sheet1!C38 -> f | D152: =[1]Sheet1!D38 -> 1955-01-18 | E152: =[1]Sheet1!L38 -> 2005-07-11 | F152: 2099-12-31 | H152: 7 | I152: 7 | J152: 0.25 | K152: 0.25 | L152: =[1]Sheet1!K38 -> 94614 | M152: =[1]Sheet1!I38 -> 1 | N152: 1 | O152: =[1]Sheet1!M38 -> 2013-04-21 | P152: =[1]Sheet1!R38 -> 2020-04-21 | Q152: =IF(AJ152>0, IF(AJ152<H152, [1]Sheet1!Q38/L152/M152, 0),0) -> 0 | R152: =IF(AJ152>0, IF(AJ152>=H152, [1]Sheet1!O38/L152/M152 -S152, 0),0) -> -0.1335006822 | S152: =IF(AJ152>H152, [1]Sheet1!Q38/L152/M152, 0) -> 0.1335006822 | Z152: 9724 | AA152: 1 | AB152: 1 | AC152: 0 | AD152: 0 | AE152: 0 | AF152: 0.0949 | AG152: 1 | AH152: 61.95277778 | AI152: 0 | AJ152: 11.47222222 | AK152: 0 | AL152: 1 | AM152: 60.95277778
A153: =[1]Sheet1!A39 -> Bowen, Janette M | B153: =[1]Sheet1!B39 -> 8000067 | C153: =[1]Sheet1!C39 -> f | D153: =[1]Sheet1!D39 -> 1958-01-20 | E153: =[1]Sheet1!L39 -> 1996-02-20 | F153: 2099-12-31 | H153: 7 | I153: 7 | J153: 0.25 | K153: 0.25 | L153: =[1]Sheet1!K39 -> 111106 | M153: =[1]Sheet1!I39 -> 1 | N153: 1 | O153: =[1]Sheet1!M39 -> 2010-12-06 | P153: =[1]Sheet1!R39 -> 2017-12-06 | Q153: =IF(AJ153>0, IF(AJ153<H153, [1]Sheet1!Q39/L153/M153, 0),0) -> 0 | R153: =IF(AJ153>0, IF(AJ153>=H153, [1]Sheet1!O39/L153/M153 -S153, 0),0) -> -0.2165677747 | S153: =IF(AJ153>H153, [1]Sheet1!Q39/L153/M153, 0) -> 0.2165677747 | Z153: 42172 | AA153: 1 | AB153: 1 | AC153: 0 | AD153: 0.2321153846 | AE153: 0 | AF153: 0.0949 | AG153: 1 | AH153: 58.94722222 | AI153: 0 | AJ153: 20.86388889 | AK153: 0 | AL153: 1 | AM153: 57.94722222
A154: =[1]Sheet1!A40 -> Bowman, Michael J | B154: =[1]Sheet1!B40 -> 8000068 | C154: =[1]Sheet1!C40 -> m | D154: =[1]Sheet1!D40 -> 1975-10-24 | E154: =[1]Sheet1!L40 -> 2016-04-11 | F154: 2099-12-31 | H154: 7 | I154: 7 | J154: 0.25 | K154: 0.25 | L154: =[1]Sheet1!K40 -> 124033 | M154: =[1]Sheet1!I40 -> 1 | N154: 1 | O154: =[1]Sheet1!M40 -> 2012-12-19 | P154: =[1]Sheet1!R40 -> 2019-12-19 | Q154: =IF(AJ154>0, IF(AJ154<H154, [1]Sheet1!Q40/L154/M154, 0),0) -> 0.1453674128 | R154: =IF(AJ154>0, IF(AJ154>=H154, [1]Sheet1!O40/L154/M154 -S154, 0),0) -> 0 | S154: =IF(AJ154>H154, [1]Sheet1!Q40/L154/M154, 0) -> 0 | Z154: 36712 | AA154: 1 | AB154: 1 | AC154: 0.03846153846 | AD154: 0 | AE154: 0.03846153846 | AF154: 0.0949 | AG154: 1 | AH154: 41.18611111 | AI154: 18030.35631 | AJ154: 0.7222222222 | AK154: 0.1453674128 | AL154: 0 | AM154: 0
A155: =[1]Sheet1!A41 -> Boyes, Susan J | B155: =[1]Sheet1!B41 -> 8000069 | C155: =[1]Sheet1!C41 -> f | D155: =[1]Sheet1!D41 -> 1947-01-19 | E155: =[1]Sheet1!L41 -> 2008-07-23 | F155: 2099-12-31 | H155: 7 | I155: 7 | J155: 0.25 | K155: 0.25 | L155: =[1]Sheet1!K41 -> 64256 | M155: =[1]Sheet1!I41 -> 0.6405 | N155: 0.6405 | O155: =[1]Sheet1!M41 -> 2015-12-06 | P155: =[1]Sheet1!R41 -> 2022-12-06 | Q155: =IF(AJ155>0, IF(AJ155<H155, [1]Sheet1!Q41/L155/M155, 0),0) -> 0 | R155: =IF(AJ155>0, IF(AJ155>=H155, [1]Sheet1!O41/L155/M155 -S155, 0),0) -> 0.06198083075 | S155: =IF(AJ155>H155, [1]Sheet1!Q41/L155/M155, 0) -> 0.0415335476 | Z155: 29348 | AA155: 1 | AB155: 1 | AC155: 0.0847826087 | AD155: 0 | AE155: 0.0847826087 | AF155: 0.0949 | AG155: 1 | AH155: 69.95 | AI155: 4260.234443 | AJ155: 8.438888889 | AK155: 0.1035143783 | AL155: 1 | AM155: 68.95
A156: =[1]Sheet1!A42 -> Brady, Andre A | B156: =[1]Sheet1!B42 -> 8000070 | C156: =[1]Sheet1!C42 -> m | D156: =[1]Sheet1!D42 -> 1964-12-19 | E156: =[1]Sheet1!L42 -> 2012-07-06 | F156: 2099-12-31 | H156: 7 | I156: 7 | J156: 0.25 | K156: 0.25 | L156: =[1]Sheet1!K42 -> 98211 | M156: =[1]Sheet1!I42 -> 1 | N156: 1 | O156: =[1]Sheet1!M42 -> 2012-07-17 | P156: =[1]Sheet1!R42 -> 2019-07-17 | Q156: =IF(AJ156>0, IF(AJ156<H156, [1]Sheet1!Q42/L156/M156, 0),0) -> 0.1602008198 | R156: =IF(AJ156>0, IF(AJ156>=H156, [1]Sheet1!O42/L156/M156 -S156, 0),0) -> 0 | S156: =IF(AJ156>H156, [1]Sheet1!Q42/L156/M156, 0) -> 0 | Z156: 28996 | AA156: 1 | AB156: 1 | AC156: 0 | AD156: 0 | AE156: 0 | AF156: 0.0949 | AG156: 1 | AH156: 52.03333333 | AI156: 15733.48271 | AJ156: 4.486111111 | AK156: 0.1602008198 | AL156: 1 | AM156: 51.03333333
A157: =[1]Sheet1!A43 -> Brearley, Samantha D | B157: =[1]Sheet1!B43 -> 8000072 | C157: =[1]Sheet1!C43 -> f | D157: =[1]Sheet1!D43 -> 1971-12-06 | E157: =[1]Sheet1!L43 -> 1988-03-14 | F157: 2099-12-31 | H157: 7 | I157: 7 | J157: 0.25 | K157: 0.25 | L157: =[1]Sheet1!K43 -> 73717 | M157: =[1]Sheet1!I43 -> 0.9 | N157: 0.9 | O157: =[1]Sheet1!M43 -> 2011-12-13 | P157: =[1]Sheet1!R43 -> 2018-12-13 | Q157: =IF(AJ157>0, IF(AJ157<H157, [1]Sheet1!Q43/L157/M157, 0),0) -> 0 | R157: =IF(AJ157>0, IF(AJ157>=H157, [1]Sheet1!O43/L157/M157 -S157, 0),0) -> -0.1617394623 | S157: =IF(AJ157>H157, [1]Sheet1!Q43/L157/M157, 0) -> 0.180945405 | Z157: 9856 | AA157: 1 | AB157: 1 | AC157: 0 | AD157: 0 | AE157: 0 | AF157: 0.0949 | AG157: 1 | AH157: 45.06944444 | AI157: 1274.224033 | AJ157: 28.79722222 | AK157: 0.01920594275 | AL157: 1 | AM157: 44.06944444
A158: =[1]Sheet1!A44 -> Brennan, Linda J | B158: =[1]Sheet1!B44 -> 8000073 | C158: =[1]Sheet1!C44 -> f | D158: =[1]Sheet1!D44 -> 1982-03-21 | E158: =[1]Sheet1!L44 -> 2014-10-01 | F158: 2099-12-31 | H158: 7 | I158: 7 | J158: 0.25 | K158: 0.25 | L158: =[1]Sheet1!K44 -> 71723 | M158: =[1]Sheet1!I44 -> 0.6 | N158: 0.6 | O158: =[1]Sheet1!M44 -> 2014-10-30 | P158: =[1]Sheet1!R44 -> 2021-10-30 | Q158: =IF(AJ158>0, IF(AJ158<H158, [1]Sheet1!Q44/L158/M158, 0),0) -> 0.08010041359 | R158: =IF(AJ158>0, IF(AJ158>=H158, [1]Sheet1!O44/L158/M158 -S158, 0),0) -> 0 | S158: =IF(AJ158>H158, [1]Sheet1!Q44/L158/M158, 0) -> 0 | Z158: 9812 | AA158: 1 | AB158: 1 | AC158: 0 | AD158: 0 | AE158: 0 | AF158: 0.0949 | AG158: 1 | AH158: 34.77777778 | AI158: 3447.025178 | AJ158: 2.25 | AK158: 0.08010041359 | AL158: 1 | AM158: 33.77777778
A159: =[1]Sheet1!A45 -> Brennan, Mitchell M | B159: =[1]Sheet1!B45 -> 8000074 | C159: =[1]Sheet1!C45 -> m | D159: =[1]Sheet1!D45 -> 1985-11-06 | E159: =[1]Sheet1!L45 -> 2011-01-01 | F159: 2099-12-31 | H159: 7 | I159: 7 | J159: 0.25 | K159: 0.25 | L159: =[1]Sheet1!K45 -> 124033 | M159: =[1]Sheet1!I45 -> 1 | N159: 1 | O159: =[1]Sheet1!M45 -> 2011-01-06 | P159: =[1]Sheet1!R45 -> 2018-01-06 | Q159: =IF(AJ159>0, IF(AJ159<H159, [1]Sheet1!Q45/L159/M159, 0),0) -> 0.2136010964 | R159: =IF(AJ159>0, IF(AJ159>=H159, [1]Sheet1!O45/L159/M159 -S159, 0),0) -> 0 | S159: =IF(AJ159>H159, [1]Sheet1!Q45/L159/M159, 0) -> 0 | Z159: 37128 | AA159: 1 | AB159: 1 | AC159: 0 | AD159: 0 | AE159: 0 | AF159: 0.0949 | AG159: 1 | AH159: 31.15277778 | AI159: 26493.58479 | AJ159: 6 | AK159: 0.2136010964 | AL159: 1 | AM159: 30.15277778
A160: =[1]Sheet1!A46 -> Brieden, Thomas | B160: =[1]Sheet1!B46 -> 8000076 | C160: =[1]Sheet1!C46 -> m | D160: =[1]Sheet1!D46 -> 1964-08-11 | E160: =[1]Sheet1!L46 -> 2011-01-10 | F160: 2099-12-31 | H160: 7 | I160: 7 | J160: 0.25 | K160: 0.25 | L160: =[1]Sheet1!K46 -> 107041 | M160: =[1]Sheet1!I46 -> 1 | N160: 1 | O160: =[1]Sheet1!M46 -> 2012-11-18 | P160: =[1]Sheet1!R46 -> 2019-11-18 | Q160: =IF(AJ160>0, IF(AJ160<H160, [1]Sheet1!Q46/L160/M160, 0),0) -> 0.1483340928 | R160: =IF(AJ160>0, IF(AJ160>=H160, [1]Sheet1!O46/L160/M160 -S160, 0),0) -> 0 | S160: =IF(AJ160>H160, [1]Sheet1!Q46/L160/M160, 0) -> 0 | Z160: 9944 | AA160: 1 | AB160: 1 | AC160: 0 | AD160: 0 | AE160: 0 | AF160: 0.0949 | AG160: 1 | AH160: 52.38888889 | AI160: 15877.82963 | AJ160: 5.975 | AK160: 0.1483340928 | AL160: 1 | AM160: 51.38888889
A161: =[1]Sheet1!A47 -> Buhlmann, Thomas | B161: =[1]Sheet1!B47 -> 8000084 | C161: =[1]Sheet1!C47 -> m | D161: =[1]Sheet1!D47 -> 1972-04-07 | E161: =[1]Sheet1!L47 -> 2008-08-18 | F161: 2099-12-31 | H161: 7 | I161: 7 | J161: 0.25 | K161: 0.25 | L161: =[1]Sheet1!K47 -> 111106 | M161: =[1]Sheet1!I47 -> 1 | N161: 1 | O161: =[1]Sheet1!M47 -> 2016-07-11 | P161: =[1]Sheet1!R47 -> 2023-07-11 | Q161: =IF(AJ161>0, IF(AJ161<H161, [1]Sheet1!Q47/L161/M161, 0),0) -> 0 | R161: =IF(AJ161>0, IF(AJ161>=H161, [1]Sheet1!O47/L161/M161 -S161, 0),0) -> -0.02076677409 | S161: =IF(AJ161>H161, [1]Sheet1!Q47/L161/M161, 0) -> 0.02076677409 | Z161: 31017 | AA161: 1 | AB161: 1 | AC161: 0 | AD161: 0 | AE161: 0 | AF161: 0.0949 | AG161: 1 | AH161: 44.73333333 | AI161: 0 | AJ161: 8.369444444 | AK161: 0 | AL161: 1 | AM161: 43.73333333
A162: =[1]Sheet1!A48 -> Bullough, Rose C | B162: =[1]Sheet1!B48 -> 8000085 | C162: =[1]Sheet1!C48 -> f | D162: =[1]Sheet1!D48 -> 1986-05-15 | E162: =[1]Sheet1!L48 -> 2013-03-19 | F162: 2099-12-31 | H162: 7 | I162: 7 | J162: 0.25 | K162: 0.25 | L162: =[1]Sheet1!K48 -> 90896 | M162: =[1]Sheet1!I48 -> 0.6 | N162: 0.6 | O162: =[1]Sheet1!M48 -> 2013-09-22 | P162: =[1]Sheet1!R48 -> 2020-09-22 | Q162: =IF(AJ162>0, IF(AJ162<H162, [1]Sheet1!Q48/L162/M162, 0),0) -> 0.1186672779 | R162: =IF(AJ162>0, IF(AJ162>=H162, [1]Sheet1!O48/L162/M162 -S162, 0),0) -> 0 | S162: =IF(AJ162>H162, [1]Sheet1!Q48/L162/M162, 0) -> 0 | Z162: 34246 | AA162: 1 | AB162: 1 | AC162: 0 | AD162: 0 | AE162: 0 | AF162: 0.0949 | AG162: 1 | AH162: 30.62777778 | AI162: 6471.828536 | AJ162: 3.783333333 | AK162: 0.1186672779 | AL162: 1 | AM162: 29.62777778
A163: =[1]Sheet1!A49 -> Burns, Evan J | B163: =[1]Sheet1!B49 -> 8000086 | C163: =[1]Sheet1!C49 -> m | D163: =[1]Sheet1!D49 -> 1969-09-16 | E163: =[1]Sheet1!L49 -> 2012-01-09 | F163: 2099-12-31 | H163: 7 | I163: 7 | J163: 0.25 | K163: 0.25 | L163: =[1]Sheet1!K49 -> 87815 | M163: =[1]Sheet1!I49 -> 1 | N163: 1 | O163: =[1]Sheet1!M49 -> 2012-02-12 | P163: =[1]Sheet1!R49 -> 2019-02-12 | Q163: =IF(AJ163>0, IF(AJ163<H163, [1]Sheet1!Q49/L163/M163, 0),0) -> 0.1750342265 | R163: =IF(AJ163>0, IF(AJ163>=H163, [1]Sheet1!O49/L163/M163 -S163, 0),0) -> 0 | S163: =IF(AJ163>H163, [1]Sheet1!Q49/L163/M163, 0) -> 0 | Z163: 33847 | AA163: 1 | AB163: 1 | AC163: 0 | AD163: 0 | AE163: 0 | AF163: 0.0949 | AG163: 1 | AH163: 47.29166667 | AI163: 15370.6306 | AJ163: 4.977777778 | AK163: 0.1750342265 | AL163: 1 | AM163: 46.29166667
A164: =[1]Sheet1!A50 -> Burton, Peter F | B164: =[1]Sheet1!B50 -> 8000088 | C164: =[1]Sheet1!C50 -> m | D164: =[1]Sheet1!D50 -> 1958-05-31 | E164: =[1]Sheet1!L50 -> 2016-06-07 | F164: 2099-12-31 | H164: 7 | I164: 7 | J164: 0.25 | K164: 0.25 | L164: =[1]Sheet1!K50 -> 75295 | M164: =[1]Sheet1!I50 -> 1 | N164: 1 | O164: =[1]Sheet1!M50 -> 2016-08-11 | P164: =[1]Sheet1!R50 -> 2023-08-11 | Q164: =IF(AJ164>0, IF(AJ164<H164, [1]Sheet1!Q50/L164/M164, 0),0) -> 0.01780009244 | R164: =IF(AJ164>0, IF(AJ164>=H164, [1]Sheet1!O50/L164/M164 -S164, 0),0) -> 0 | S164: =IF(AJ164>H164, [1]Sheet1!Q50/L164/M164, 0) -> 0 | Z164: 34248 | AA164: 1 | AB164: 1 | AC164: 0 | AD164: 0 | AE164: 0 | AF164: 0.0949 | AG164: 1 | AH164: 58.58333333 | AI164: 1340.25796 | AJ164: 0.5666666667 | AK164: 0.01780009244 | AL164: 0 | AM164: 0
A165: =[1]Sheet1!A51 -> Butchart, Shane A | B165: =[1]Sheet1!B51 -> 8000089 | C165: =[1]Sheet1!C51 -> m | D165: =[1]Sheet1!D51 -> 1970-08-11 | E165: =[1]Sheet1!L51 -> 2011-09-01 | F165: 2099-12-31 | H165: 7 | I165: 7 | J165: 0.25 | K165: 0.25 | L165: =[1]Sheet1!K51 -> 98211 | M165: =[1]Sheet1!I51 -> 1 | N165: 1 | O165: =[1]Sheet1!M51 -> 2012-02-12 | P165: =[1]Sheet1!R51 -> 2019-02-12 | Q165: =IF(AJ165>0, IF(AJ165<H165, [1]Sheet1!Q51/L165/M165, 0),0) -> 0.1750342265 | R165: =IF(AJ165>0, IF(AJ165>=H165, [1]Sheet1!O51/L165/M165 -S165, 0),0) -> 0 | S165: =IF(AJ165>H165, [1]Sheet1!Q51/L165/M165, 0) -> 0 | Z165: 35960 | AA165: 1 | AB165: 1 | AC165: 0 | AD165: 0 | AE165: 0 | AF165: 0.0949 | AG165: 1 | AH165: 46.38888889 | AI165: 17190.28642 | AJ165: 5.333333333 | AK165: 0.1750342265 | AL165: 1 | AM165: 45.38888889
A166: =[1]Sheet1!A52 -> Byfield, Susan P | B166: =[1]Sheet1!B52 -> 8000091 | C166: =[1]Sheet1!C52 -> f | D166: =[1]Sheet1!D52 -> 1953-02-18 | E166: =[1]Sheet1!L52 -> 1997-02-17 | F166: 2099-12-31 | H166: 7 | I166: 7 | J166: 0.25 | K166: 0.25 | L166: =[1]Sheet1!K52 -> 111106 | M166: =[1]Sheet1!I52 -> 1 | N166: 1 | O166: =[1]Sheet1!M52 -> 2011-10-11 | P166: =[1]Sheet1!R52 -> 2018-10-11 | Q166: =IF(AJ166>0, IF(AJ166<H166, [1]Sheet1!Q52/L166/M166, 0),0) -> 0 | R166: =IF(AJ166>0, IF(AJ166>=H166, [1]Sheet1!O52/L166/M166 -S166, 0),0) -> -0.1638977628 | S166: =IF(AJ166>H166, [1]Sheet1!Q52/L166/M166, 0) -> 0.1869009573 | Z166: 20398 | AA166: 1 | AB166: 1 | AC166: 0 | AD166: 0 | AE166: 0 | AF166: 0.0949 | AG166: 1 | AH166: 63.86944444 | AI166: 2555.792928 | AJ166: 19.87222222 | AK166: 0.0230031945 | AL166: 1 | AM166: 62.86944444
A167: =[1]Sheet1!A53 -> Byrne, Benjamin | B167: =[1]Sheet1!B53 -> 8000092 | C167: =[1]Sheet1!C53 -> m | D167: =[1]Sheet1!D53 -> 1978-06-30 | E167: =[1]Sheet1!L53 -> 2011-10-10 | F167: 2099-12-31 | H167: 7 | I167: 7 | J167: 0.25 | K167: 0.25 | L167: =[1]Sheet1!K53 -> 95709 | M167: =[1]Sheet1!I53 -> 1 | N167: 1 | O167: =[1]Sheet1!M53 -> 2013-05-31 | P167: =[1]Sheet1!R53 -> 2020-05-31 | Q167: =IF(AJ167>0, IF(AJ167<H167, [1]Sheet1!Q53/L167/M167, 0),0) -> 0.1296439973 | R167: =IF(AJ167>0, IF(AJ167>=H167, [1]Sheet1!O53/L167/M167 -S167, 0),0) -> 0 | S167: =IF(AJ167>H167, [1]Sheet1!Q53/L167/M167, 0) -> 0 | Z167: 33847 | AA167: 1 | AB167: 1 | AC167: 0 | AD167: 0 | AE167: 0 | AF167: 0.0949 | AG167: 1 | AH167: 38.5 | AI167: 12408.09733 | AJ167: 5.225 | AK167: 0.1296439973 | AL167: 1 | AM167: 37.5
A168: =[1]Sheet1!A54 -> Campbell, Amanda K | B168: =[1]Sheet1!B54 -> 8000095 | C168: =[1]Sheet1!C54 -> f | D168: =[1]Sheet1!D54 -> 1969-11-05 | E168: =[1]Sheet1!L54 -> 2009-03-03 | F168: 2099-12-31 | H168: 7 | I168: 7 | J168: 0.25 | K168: 0.25 | L168: =[1]Sheet1!K54 -> 87815 | M168: =[1]Sheet1!I54 -> 0.5 | N168: 0.5 | O168: =[1]Sheet1!M54 -> 2012-08-17 | P168: =[1]Sheet1!R54 -> 2019-08-17 | Q168: =IF(AJ168>0, IF(AJ168<H168, [1]Sheet1!Q54/L168/M168, 0),0) -> 0 | R168: =IF(AJ168>0, IF(AJ168>=H168, [1]Sheet1!O54/L168/M168 -S168, 0),0) -> -0.1572341361 | S168: =IF(AJ168>H168, [1]Sheet1!Q54/L168/M168, 0) -> 0.1572341361 | Z168: 33847 | AA168: 1 | AB168: 1 | AC168: 0 | AD168: 0 | AE168: 0 | AF168: 0.0949 | AG168: 1 | AH168: 47.15555556 | AI168: 0 | AJ168: 7.827777778 | AK168: 0 | AL168: 1 | AM168: 46.15555556
A169: =[1]Sheet1!A55 -> Campbell, Garry M | B169: =[1]Sheet1!B55 -> 8000096 | C169: =[1]Sheet1!C55 -> m | D169: =[1]Sheet1!D55 -> 1958-01-15 | E169: =[1]Sheet1!L55 -> 2014-07-01 | F169: 2099-12-31 | H169: 7 | I169: 7 | J169: 0.25 | K169: 0.25 | L169: =[1]Sheet1!K55 -> 98211 | M169: =[1]Sheet1!I55 -> 1 | N169: 1 | O169: =[1]Sheet1!M55 -> 2014-12-31 | P169: =[1]Sheet1!R55 -> 2021-12-31 | Q169: =IF(AJ169>0, IF(AJ169<H169, [1]Sheet1!Q55/L169/M169, 0),0) -> 0.0741670474 | R169: =IF(AJ169>0, IF(AJ169>=H169, [1]Sheet1!O55/L169/M169 -S169, 0),0) -> 0 | S169: =IF(AJ169>H169, [1]Sheet1!Q55/L169/M169, 0) -> 0 | Z169: 33847 | AA169: 1 | AB169: 1 | AC169: 0 | AD169: 0 | AE169: 0 | AF169: 0.0949 | AG169: 1 | AH169: 58.96111111 | AI169: 7284.019892 | AJ169: 2.5 | AK169: 0.0741670474 | AL169: 1 | AM169: 57.96111111
A170: =[1]Sheet1!A56 -> Carroll, Ashley P | B170: =[1]Sheet1!B56 -> 8000098 | C170: =[1]Sheet1!C56 -> m | D170: =[1]Sheet1!D56 -> 1960-07-20 | E170: =[1]Sheet1!L56 -> 2008-01-14 | F170: 2099-12-31 | H170: 7 | I170: 7 | J170: 0.25 | K170: 0.25 | L170: =[1]Sheet1!K56 -> 111106 | M170: =[1]Sheet1!I56 -> 1 | N170: 1 | O170: =[1]Sheet1!M56 -> 2015-03-03 | P170: =[1]Sheet1!R56 -> 2022-03-03 | Q170: =IF(AJ170>0, IF(AJ170<H170, [1]Sheet1!Q56/L170/M170, 0),0) -> 0 | R170: =IF(AJ170>0, IF(AJ170>=H170, [1]Sheet1!O56/L170/M170 -S170, 0),0) -> 0.1809675898 | S170: =IF(AJ170>H170, [1]Sheet1!Q56/L170/M170, 0) -> 0.06823368392 | Z170: 33847 | AA170: 1 | AB170: 1 | AC170: 0 | AD170: 0 | AE170: 0 | AF170: 0.0949 | AG170: 1 | AH170: 56.44722222 | AI170: 27687.75672 | AJ170: 8.963888889 | AK170: 0.2492012738 | AL170: 1 | AM170: 55.44722222
A171: =[1]Sheet1!A57 -> Carroll, Sacha K | B171: =[1]Sheet1!B57 -> 8000099 | C171: =[1]Sheet1!C57 -> f | D171: =[1]Sheet1!D57 -> 1975-06-04 | E171: =[1]Sheet1!L57 -> 2011-01-10 | F171: 2099-12-31 | H171: 7 | I171: 7 | J171: 0.25 | K171: 0.25 | L171: =[1]Sheet1!K57 -> 99345 | M171: =[1]Sheet1!I57 -> 0.8 | N171: 0.8 | O171: =[1]Sheet1!M57 -> 2016-07-11 | P171: =[1]Sheet1!R57 -> 2023-07-11 | Q171: =IF(AJ171>0, IF(AJ171<H171, [1]Sheet1!Q57/L171/M171, 0),0) -> 0.02076677226 | R171: =IF(AJ171>0, IF(AJ171>=H171, [1]Sheet1!O57/L171/M171 -S171, 0),0) -> 0 | S171: =IF(AJ171>H171, [1]Sheet1!Q57/L171/M171, 0) -> 0 | Z171: 33847 | AA171: 1 | AB171: 1 | AC171: 0 | AD171: 0 | AE171: 0 | AF171: 0.0949 | AG171: 1 | AH171: 41.575 | AI171: 1650.459993 | AJ171: 5.975 | AK171: 0.02076677226 | AL171: 1 | AM171: 40.575
A172: =[1]Sheet1!A58 -> Carruth, Daena V | B172: =[1]Sheet1!B58 -> 8000100 | C172: =[1]Sheet1!C58 -> f | D172: =[1]Sheet1!D58 -> 1978-09-01 | E172: =[1]Sheet1!L58 -> 2012-04-10 | F172: 2099-12-31 | H172: 7 | I172: 7 | J172: 0.25 | K172: 0.25 | L172: =[1]Sheet1!K58 -> 101943 | M172: =[1]Sheet1!I58 -> 1 | N172: 1 | O172: =[1]Sheet1!M58 -> 2012-05-16 | P172: =[1]Sheet1!R58 -> 2019-05-16 | Q172: =IF(AJ172>0, IF(AJ172<H172, [1]Sheet1!Q58/L172/M172, 0),0) -> 0.1661341832 | R172: =IF(AJ172>0, IF(AJ172>=H172, [1]Sheet1!O58/L172/M172 -S172, 0),0) -> 0 | S172: =IF(AJ172>H172, [1]Sheet1!Q58/L172/M172, 0) -> 0 | Z172: 33847 | AA172: 1 | AB172: 1 | AC172: 0 | AD172: 0 | AE172: 0 | AF172: 0.0949 | AG172: 1 | AH172: 38.33333333 | AI172: 16936.21704 | AJ172: 4.725 | AK172: 0.1661341832 | AL172: 1 | AM172: 37.33333333
A173: =[1]Sheet1!A59 -> Chandler, Sandra A | B173: =[1]Sheet1!B59 -> 8000103 | C173: =[1]Sheet1!C59 -> f | D173: =[1]Sheet1!D59 -> 1957-02-27 | E173: =[1]Sheet1!L59 -> 2015-02-16 | F173: 2099-12-31 | H173: 7 | I173: 7 | J173: 0.25 | K173: 0.25 | L173: =[1]Sheet1!K59 -> 105816 | M173: =[1]Sheet1!I59 -> 1 | N173: 1 | O173: =[1]Sheet1!M59 -> 2010-01-16 | P173: =[1]Sheet1!R59 -> 2017-01-16 | Q173: =IF(AJ173>0, IF(AJ173<H173, [1]Sheet1!Q59/L173/M173, 0),0) -> 0.247643994 | R173: =IF(AJ173>0, IF(AJ173>=H173, [1]Sheet1!O59/L173/M173 -S173, 0),0) -> 0 | S173: =IF(AJ173>H173, [1]Sheet1!Q59/L173/M173, 0) -> 0 | Z173: 33847 | AA173: 1 | AB173: 1 | AC173: 0 | AD173: 0 | AE173: 0 | AF173: 0.0949 | AG173: 1 | AH173: 59.84444444 | AI173: 26204.69687 | AJ173: 1.875 | AK173: 0.247643994 | AL173: 1 | AM173: 58.84444444
A174: =[1]Sheet1!A60 -> Chetcuti, John | B174: =[1]Sheet1!B60 -> 8000104 | C174: =[1]Sheet1!C60 -> m | D174: =[1]Sheet1!D60 -> 1952-05-23 | E174: =[1]Sheet1!L60 -> 2008-03-04 | F174: 2099-12-31 | H174: 7 | I174: 7 | J174: 0.25 | K174: 0.25 | L174: =[1]Sheet1!K60 -> 64256 | M174: =[1]Sheet1!I60 -> 1 | N174: 1 | O174: =[1]Sheet1!M60 -> 2015-06-03 | P174: =[1]Sheet1!R60 -> 2022-06-03 | Q174: =IF(AJ174>0, IF(AJ174<H174, [1]Sheet1!Q60/L174/M174, 0),0) -> 0 | R174: =IF(AJ174>0, IF(AJ174>=H174, [1]Sheet1!O60/L174/M174 -S174, 0),0) -> 0.08251939843 | S174: =IF(AJ174>H174, [1]Sheet1!Q60/L174/M174, 0) -> 0.05933363856 | Z174: 33847 | AA174: 1 | AB174: 1 | AC174: 0 | AD174: 0 | AE174: 0 | AF174: 0.0949 | AG174: 1 | AH174: 64.60555556 | AI174: 9114.908745 | AJ174: 8.825 | AK174: 0.141853037 | AL174: 1 | AM174: 63.60555556
A175: =[1]Sheet1!A61 -> Chiffings, Peter | B175: =[1]Sheet1!B61 -> 8000105 | C175: =[1]Sheet1!C61 -> m | D175: =[1]Sheet1!D61 -> 1949-12-18 | E175: =[1]Sheet1!L61 -> 2000-06-12 | F175: 2099-12-31 | H175: 7 | I175: 7 | J175: 0.25 | K175: 0.25 | L175: =[1]Sheet1!K61 -> 124033 | M175: =[1]Sheet1!I61 -> 1 | N175: 1 | O175: =[1]Sheet1!M61 -> 2014-11-30 | P175: =[1]Sheet1!R61 -> 2021-11-30 | Q175: =IF(AJ175>0, IF(AJ175<H175, [1]Sheet1!Q61/L175/M175, 0),0) -> 0 | R175: =IF(AJ175>0, IF(AJ175>=H175, [1]Sheet1!O61/L175/M175 -S175, 0),0) -> 0.09155636807 | S175: =IF(AJ175>H175, [1]Sheet1!Q61/L175/M175, 0) -> 0.07713372916 | Z175: 33847 | AA175: 1 | AB175: 1 | AC175: 0 | AD175: 0 | AE175: 0 | AF175: 0.0949 | AG175: 1 | AH175: 67.03611111 | AI175: 20923.13883 | AJ175: 16.55277778 | AK175: 0.1686900972 | AL175: 1 | AM175: 66.03611111
A176: =[1]Sheet1!A62 -> Chileshe, Wendy | B176: =[1]Sheet1!B62 -> 8000106 | C176: =[1]Sheet1!C62 -> f | D176: =[1]Sheet1!D62 -> 1973-01-19 | E176: =[1]Sheet1!L62 -> 2013-08-29 | F176: 2099-12-31 | H176: 7 | I176: 7 | J176: 0.25 | K176: 0.25 | L176: =[1]Sheet1!K62 -> 87815 | M176: =[1]Sheet1!I62 -> 0.5 | N176: 0.5 | O176: =[1]Sheet1!M62 -> 2014-04-27 | P176: =[1]Sheet1!R62 -> 2021-04-27 | Q176: =IF(AJ176>0, IF(AJ176<H176, [1]Sheet1!Q62/L176/M176, 0),0) -> 0.09790050131 | R176: =IF(AJ176>0, IF(AJ176>=H176, [1]Sheet1!O62/L176/M176 -S176, 0),0) -> 0 | S176: =IF(AJ176>H176, [1]Sheet1!Q62/L176/M176, 0) -> 0 | Z176: 33847 | AA176: 1 | AB176: 1 | AC176: 0 | AD176: 0 | AE176: 0 | AF176: 0.0949 | AG176: 1 | AH176: 43.95 | AI176: 4298.566261 | AJ176: 3.338888889 | AK176: 0.09790050131 | AL176: 1 | AM176: 42.95
A177: =[1]Sheet1!A63 -> Chitate, Hammond | B177: =[1]Sheet1!B63 -> 8000107 | C177: =[1]Sheet1!C63 -> m | D177: =[1]Sheet1!D63 -> 1973-06-09 | E177: =[1]Sheet1!L63 -> 2012-09-19 | F177: 2099-12-31 | H177: 7 | I177: 7 | J177: 0.25 | K177: 0.25 | L177: =[1]Sheet1!K63 -> 98211 | M177: =[1]Sheet1!I63 -> 1 | N177: 1 | O177: =[1]Sheet1!M63 -> 2012-10-18 | P177: =[1]Sheet1!R63 -> 2019-10-18 | Q177: =IF(AJ177>0, IF(AJ177<H177, [1]Sheet1!Q63/L177/M177, 0),0) -> 0.1513007726 | R177: =IF(AJ177>0, IF(AJ177>=H177, [1]Sheet1!O63/L177/M177 -S177, 0),0) -> 0 | S177: =IF(AJ177>H177, [1]Sheet1!Q63/L177/M177, 0) -> 0 | Z177: 33847 | AA177: 1 | AB177: 1 | AC177: 0 | AD177: 0 | AE177: 0 | AF177: 0.0949 | AG177: 1 | AH177: 43.56111111 | AI177: 14859.40018 | AJ177: 4.283333333 | AK177: 0.1513007726 | AL177: 1 | AM177: 42.56111111
A178: =[1]Sheet1!A64 -> Clarke, Sandra R | B178: =[1]Sheet1!B64 -> 8000109 | C178: =[1]Sheet1!C64 -> f | D178: =[1]Sheet1!D64 -> 1974-05-01 | E178: =[1]Sheet1!L64 -> 1998-09-14 | F178: 2099-12-31 | H178: 7 | I178: 7 | J178: 0.25 | K178: 0.25 | L178: =[1]Sheet1!K64 -> 47116.93 | M178: =[1]Sheet1!I64 -> 0.5 | N178: 0.5 | O178: =[1]Sheet1!M64 -> 2010-06-03 | P178: =[1]Sheet1!R64 -> 2017-06-03 | Q178: =IF(AJ178>0, IF(AJ178<H178, [1]Sheet1!Q64/L178/M178, 0),0) -> 0 | R178: =IF(AJ178>0, IF(AJ178>=H178, [1]Sheet1!O64/L178/M178 -S178, 0),0) -> -0.2343678852 | S178: =IF(AJ178>H178, [1]Sheet1!Q64/L178/M178, 0) -> 0.2343678852 | Z178: 33847 | AA178: 1 | AB178: 1 | AC178: 0 | AD178: 0 | AE178: 0 | AF178: 0.0949 | AG178: 1 | AH178: 42.66666667 | AI178: 0 | AJ178: 18.29722222 | AK178: 0 | AL178: 1 | AM178: 41.66666667
A179: =[1]Sheet1!A65 -> Clune, Katie M | B179: =[1]Sheet1!B65 -> 8000111 | C179: =[1]Sheet1!C65 -> f | D179: =[1]Sheet1!D65 -> 1983-01-27 | E179: =[1]Sheet1!L65 -> 2012-01-09 | F179: 2099-12-31 | H179: 7 | I179: 7 | J179: 0.25 | K179: 0.25 | L179: =[1]Sheet1!K65 -> 99345 | M179: =[1]Sheet1!I65 -> 0.3 | N179: 0.3 | O179: =[1]Sheet1!M65 -> 2012-03-15 | P179: =[1]Sheet1!R65 -> 2019-03-15 | Q179: =IF(AJ179>0, IF(AJ179<H179, [1]Sheet1!Q65/L179/M179, 0),0) -> 0.1720675467 | R179: =IF(AJ179>0, IF(AJ179>=H179, [1]Sheet1!O65/L179/M179 -S179, 0),0) -> 0 | S179: =IF(AJ179>H179, [1]Sheet1!Q65/L179/M179, 0) -> 0 | Z179: 33847 | AA179: 1 | AB179: 1 | AC179: 0 | AD179: 0 | AE179: 0 | AF179: 0.0949 | AG179: 1 | AH179: 33.92777778 | AI179: 5128.215128 | AJ179: 4.977777778 | AK179: 0.1720675467 | AL179: 1 | AM179: 32.92777778
A180: =[1]Sheet1!A66 -> Clune, Raymond W | B180: =[1]Sheet1!B66 -> 8000112 | C180: =[1]Sheet1!C66 -> m | D180: =[1]Sheet1!D66 -> 1954-12-25 | E180: =[1]Sheet1!L66 -> 2016-07-01 | F180: 2099-12-31 | H180: 7 | I180: 7 | J180: 0.25 | K180: 0.25 | L180: =[1]Sheet1!K66 -> 64256 | M180: =[1]Sheet1!I66 -> 1 | N180: 1 | O180: =[1]Sheet1!M66 -> 2015-07-04 | P180: =[1]Sheet1!R66 -> 2022-07-04 | Q180: =IF(AJ180>0, IF(AJ180<H180, [1]Sheet1!Q66/L180/M180, 0),0) -> 0.05636695482 | R180: =IF(AJ180>0, IF(AJ180>=H180, [1]Sheet1!O66/L180/M180 -S180, 0),0) -> 0 | S180: =IF(AJ180>H180, [1]Sheet1!Q66/L180/M180, 0) -> 0 | Z180: 33847 | AA180: 1 | AB180: 1 | AC180: 0 | AD180: 0 | AE180: 0 | AF180: 0.0949 | AG180: 1 | AH180: =AG180*YEARFRAC($D180,ValDate) -> 62.01666667 | AI180: =L180*M180*SUM(Q180:S180) -> 3621.915049 | AJ180: =AG180*YEARFRAC(E180,VaDate) -> 0.5 | AK180: =AG180*SUM(Q180:S180) -> 0.05636695482 | AL180: 0 | AM180: =AL180*YEARFRAC($D180,LastYear) -> 0
A181: =[1]Sheet1!A67 -> Cohen, Brian | B181: =[1]Sheet1!B67 -> 8000114 | C181: =[1]Sheet1!C67 -> m | D181: =[1]Sheet1!D67 -> 1965-02-22 | E181: =[1]Sheet1!L67 -> 2007-07-23 | F181: 2099-12-31 | H181: 7 | I181: 7 | J181: 0.25 | K181: 0.25 | L181: =[1]Sheet1!K67 -> 103122 | M181: =[1]Sheet1!I67 -> 1 | N181: =M181 -> 1 | O181: =[1]Sheet1!M67 -> 2014-08-29 | P181: =[1]Sheet1!R67 -> 2021-08-29 | Q181: =IF(AJ181>0, IF(AJ181<H181, [1]Sheet1!Q67/L181/M181, 0),0) -> 0 | R181: =IF(AJ181>0, IF(AJ181>=H181, [1]Sheet1!O67/L181/M181 -S181, 0),0) -> 0.1516659021 | S181: =IF(AJ181>H181, [1]Sheet1!Q67/L181/M181, 0) -> 0.08603377436 | Z181: 33847 | AA181: 1 | AB181: 1 | AC181: 0 | AD181: 0 | AE181: 0 | AF181: 0.0949 | AG181: 1 | AH181: 51.85833333 | AI181: 24512.06604 | AJ181: 9.438888889 | AK181: 0.2376996765 | AL181: 1 | AM181: 50.85833333
A182: =[1]Sheet1!A68 -> Cohen, David I | B182: =[1]Sheet1!B68 -> 8000115 | C182: =[1]Sheet1!C68 -> m | D182: =[1]Sheet1!D68 -> 1960-11-20 | E182: =[1]Sheet1!L68 -> 1998-06-29 | F182: 2099-12-31 | H182: 7 | I182: 7 | J182: 0.25 | K182: 0.25 | L182: =[1]Sheet1!K68 -> 142609 | M182: =[1]Sheet1!I68 -> 1 | N182: 1 | O182: =[1]Sheet1!M68 -> 2014-01-05 | P182: =[1]Sheet1!R68 -> 2021-01-05 | Q182: =IF(AJ182>0, IF(AJ182<H182, [1]Sheet1!Q68/L182/M182, 0),0) -> 0 | R182: =IF(AJ182>0, IF(AJ182>=H182, [1]Sheet1!O68/L182/M182 -S182, 0),0) -> 0.1405816172 | S182: =IF(AJ182>H182, [1]Sheet1!Q68/L182/M182, 0) -> 0.1086192797 | Z182: 33847 | AA182: 1 | AB182: 1 | AC182: 0 | AD182: 0 | AE182: 0 | AF182: 0.0949 | AG182: 1 | AH182: 56.11388889 | AI182: 35538.2907 | AJ182: 18.50555556 | AK182: 0.2492008969 | AL182: 1 | AM182: 55.11388889
A183: =[1]Sheet1!A69 -> Collard, Charles R | B183: =[1]Sheet1!B69 -> 8000116 | C183: =[1]Sheet1!C69 -> m | D183: =[1]Sheet1!D69 -> 1964-08-11 | E183: =[1]Sheet1!L69 -> 2006-01-16 | F183: 2099-12-31 | H183: 7 | I183: 7 | J183: 0.25 | K183: 0.25 | L183: =[1]Sheet1!K69 -> 80797 | M183: =[1]Sheet1!I69 -> 1 | N183: 1 | O183: =[1]Sheet1!M69 -> 2013-05-22 | P183: =[1]Sheet1!R69 -> 2020-05-22 | Q183: =IF(AJ183>0, IF(AJ183<H183, [1]Sheet1!Q69/L183/M183, 0),0) -> 0 | R183: =IF(AJ183>0, IF(AJ183>=H183, [1]Sheet1!O69/L183/M183 -S183, 0),0) -> -0.1305340051 | S183: =IF(AJ183>H183, [1]Sheet1!Q69/L183/M183, 0) -> 0.1305340051 | Z183: 33847 | AA183: 1 | AB183: 1 | AC183: 0 | AD183: 0 | AE183: 0 | AF183: 0.0949 | AG183: 1 | AH183: 52.38888889 | AI183: 0 | AJ183: 10.95833333 | AK183: 0 | AL183: 1 | AM183: 51.38888889
A184: =[1]Sheet1!A70 -> Cook, Emma J | B184: =[1]Sheet1!B70 -> 8000118 | C184: =[1]Sheet1!C70 -> f | D184: =[1]Sheet1!D70 -> 1975-10-21 | E184: =[1]Sheet1!L70 -> 2013-06-07 | F184: 2099-12-31 | H184: 7 | I184: 7 | J184: 0.25 | K184: 0.25 | L184: =[1]Sheet1!K70 -> 98211 | M184: =[1]Sheet1!I70 -> 1 | N184: 1 | O184: =[1]Sheet1!M70 -> 2015-10-05 | P184: =[1]Sheet1!R70 -> 2022-10-05 | Q184: =IF(AJ184>0, IF(AJ184<H184, [1]Sheet1!Q70/L184/M184, 0),0) -> 0.04746690983 | R184: =IF(AJ184>0, IF(AJ184>=H184, [1]Sheet1!O70/L184/M184 -S184, 0),0) -> 0 | S184: =IF(AJ184>H184, [1]Sheet1!Q70/L184/M184, 0) -> 0 | Z184: 33847 | AA184: 1 | AB184: 1 | AC184: 0 | AD184: 0 | AE184: 0 | AF184: 0.0949 | AG184: 1 | AH184: 41.19444444 | AI184: 4661.772682 | AJ184: 3.566666667 | AK184: 0.04746690983 | AL184: 1 | AM184: 40.19444444
A185: =[1]Sheet1!A71 -> Cook, Leah J | B185: =[1]Sheet1!B71 -> 8000119 | C185: =[1]Sheet1!C71 -> f | D185: =[1]Sheet1!D71 -> 1969-12-15 | E185: =[1]Sheet1!L71 -> 2011-01-01 | F185: 2099-12-31 | H185: 7 | I185: 7 | J185: 0.25 | K185: 0.25 | L185: =[1]Sheet1!K71 -> 101943 | M185: =[1]Sheet1!I71 -> 1 | N185: 1 | O185: =[1]Sheet1!M71 -> 2011-01-06 | P185: =[1]Sheet1!R71 -> 2018-01-06 | Q185: =IF(AJ185>0, IF(AJ185<H185, [1]Sheet1!Q71/L185/M185, 0),0) -> 0 | R185: =IF(AJ185>0, IF(AJ185>=H185, [1]Sheet1!O71/L185/M185 -S185, 0),0) -> 0 | S185: =IF(AJ185>H185, [1]Sheet1!Q71/L185/M185, 0) -> 0 | Z185: 33847 | AA185: 1 | AB185: 1 | AC185: 0 | AD185: 0 | AE185: 0 | AF185: 0.0949
A186: =[1]Sheet1!A72 -> Cooper, Kristy L | B186: =[1]Sheet1!B72 -> 8000123 | C186: =[1]Sheet1!C72 -> f | D186: =[1]Sheet1!D72 -> 1980-09-10 | E186: =[1]Sheet1!L72 -> 1998-01-20 | F186: 2099-12-31 | H186: 7 | I186: 7 | J186: 0.25 | K186: 0.25 | L186: =[1]Sheet1!K72 -> 73717 | M186: =[1]Sheet1!I72 -> 1 | N186: 1 | O186: =[1]Sheet1!M72 -> 2012-10-18 | P186: =[1]Sheet1!R72 -> 2019-10-18 | Q186: =IF(AJ186>0, IF(AJ186<H186, [1]Sheet1!Q72/L186/M186, 0),0) -> 0 | R186: =IF(AJ186>0, IF(AJ186>=H186, [1]Sheet1!O72/L186/M186 -S186, 0),0) -> 0 | S186: =IF(AJ186>H186, [1]Sheet1!Q72/L186/M186, 0) -> 0 | Z186: 33847 | AA186: 1 | AB186: 1 | AC186: 0 | AD186: 0 | AE186: 0 | AF186: 0.0949
A187: =[1]Sheet1!A73 -> Cooper, Stephen P | B187: =[1]Sheet1!B73 -> 8000124 | C187: =[1]Sheet1!C73 -> m | D187: =[1]Sheet1!D73 -> 1958-05-31 | E187: =[1]Sheet1!L73 -> 1996-01-08 | F187: 2099-12-31 | H187: 7 | I187: 7 | J187: 0.25 | K187: 0.25 | L187: =[1]Sheet1!K73 -> 142609 | M187: =[1]Sheet1!I73 -> 1 | N187: 1 | O187: =[1]Sheet1!M73 -> 2012-06-16 | P187: =[1]Sheet1!R73 -> 2019-06-16 | Q187: =IF(AJ187>0, IF(AJ187<H187, [1]Sheet1!Q73/L187/M187, 0),0) -> 0 | R187: =IF(AJ187>0, IF(AJ187>=H187, [1]Sheet1!O73/L187/M187 -S187, 0),0) -> 0 | S187: =IF(AJ187>H187, [1]Sheet1!Q73/L187/M187, 0) -> 0 | Z187: 33847 | AA187: 1 | AB187: 1 | AC187: 0 | AD187: 0 | AE187: 0 | AF187: 0.0949
A188: =[1]Sheet1!A74 -> Copley, Tanya L | B188: =[1]Sheet1!B74 -> 8000125 | C188: =[1]Sheet1!C74 -> f | D188: =[1]Sheet1!D74 -> 1969-10-28 | E188: =[1]Sheet1!L74 -> 2002-01-14 | F188: 2099-12-31 | H188: 7 | I188: 7 | J188: 0.25 | K188: 0.25 | L188: =[1]Sheet1!K74 -> 111106 | M188: =[1]Sheet1!I74 -> 1 | N188: 1 | O188: =[1]Sheet1!M74 -> 2015-02-26 | P188: =[1]Sheet1!R74 -> 2022-02-26 | Q188: =IF(AJ188>0, IF(AJ188<H188, [1]Sheet1!Q74/L188/M188, 0),0) -> 0 | R188: =IF(AJ188>0, IF(AJ188>=H188, [1]Sheet1!O74/L188/M188 -S188, 0),0) -> 0 | S188: =IF(AJ188>H188, [1]Sheet1!Q74/L188/M188, 0) -> 0 | Z188: 33847 | AA188: 1 | AB188: 1 | AC188: 0 | AD188: 0 | AE188: 0 | AF188: 0.0949
A189: =[1]Sheet1!A75 -> Corkhill, Damian | B189: =[1]Sheet1!B75 -> 8000126 | C189: =[1]Sheet1!C75 -> m | D189: =[1]Sheet1!D75 -> 1969-01-28 | E189: =[1]Sheet1!L75 -> 2014-02-03 | F189: 2099-12-31 | H189: 7 | I189: 7 | J189: 0.25 | K189: 0.25 | L189: =[1]Sheet1!K75 -> 98211 | M189: =[1]Sheet1!I75 -> 1 | N189: 1 | O189: =[1]Sheet1!M75 -> 2014-03-27 | P189: =[1]Sheet1!R75 -> 2021-03-27 | Q189: =IF(AJ189>0, IF(AJ189<H189, [1]Sheet1!Q75/L189/M189, 0),0) -> 0 | R189: =IF(AJ189>0, IF(AJ189>=H189, [1]Sheet1!O75/L189/M189 -S189, 0),0) -> 0 | S189: =IF(AJ189>H189, [1]Sheet1!Q75/L189/M189, 0) -> 0 | Z189: 33847 | AA189: 1 | AB189: 1 | AC189: 0 | AD189: 0 | AE189: 0 | AF189: 0.0949
A190: =[1]Sheet1!A76 -> Courtney, Samantha E | B190: =[1]Sheet1!B76 -> 8000129 | C190: =[1]Sheet1!C76 -> f | D190: =[1]Sheet1!D76 -> 1986-05-24 | E190: =[1]Sheet1!L76 -> 2014-04-28 | F190: 2099-12-31 | H190: 7 | I190: 7 | J190: 0.25 | K190: 0.25 | L190: =[1]Sheet1!K76 -> 62482 | M190: =[1]Sheet1!I76 -> 1 | N190: 1 | O190: =[1]Sheet1!M76 -> 2014-05-28 | P190: =[1]Sheet1!R76 -> 2021-05-28 | Q190: =IF(AJ190>0, IF(AJ190<H190, [1]Sheet1!Q76/L190/M190, 0),0) -> 0 | R190: =IF(AJ190>0, IF(AJ190>=H190, [1]Sheet1!O76/L190/M190 -S190, 0),0) -> 0 | S190: =IF(AJ190>H190, [1]Sheet1!Q76/L190/M190, 0) -> 0 | Z190: 33847 | AA190: 1 | AB190: 1 | AC190: 0 | AD190: 0 | AE190: 0 | AF190: 0.0949
A191: =[1]Sheet1!A77 -> Crafter, Belinda J | B191: =[1]Sheet1!B77 -> 8000131 | C191: =[1]Sheet1!C77 -> f | D191: =[1]Sheet1!D77 -> 1965-06-14 | E191: =[1]Sheet1!L77 -> 2001-11-13 | F191: 2099-12-31 | H191: 7 | I191: 7 | J191: 0.25 | K191: 0.25 | L191: =[1]Sheet1!K77 -> 109590 | M191: =[1]Sheet1!I77 -> 1 | N191: 1 | O191: =[1]Sheet1!M77 -> 2016-06-10 | P191: =[1]Sheet1!R77 -> 2023-06-10 | Q191: =IF(AJ191>0, IF(AJ191<H191, [1]Sheet1!Q77/L191/M191, 0),0) -> 0 | R191: =IF(AJ191>0, IF(AJ191>=H191, [1]Sheet1!O77/L191/M191 -S191, 0),0) -> 0 | S191: =IF(AJ191>H191, [1]Sheet1!Q77/L191/M191, 0) -> 0 | Z191: 33847 | AA191: 1 | AB191: 1 | AC191: 0 | AD191: 0 | AE191: 0 | AF191: 0.0949
A192: =[1]Sheet1!A78 -> Cruickshank, Serena M | B192: =[1]Sheet1!B78 -> 8000134 | C192: =[1]Sheet1!C78 -> f | D192: =[1]Sheet1!D78 -> 1970-09-01 | E192: =[1]Sheet1!L78 -> 1999-05-31 | F192: 2099-12-31 | H192: 7 | I192: 7 | J192: 0.25 | K192: 0.25 | L192: =[1]Sheet1!K78 -> 124033 | M192: =[1]Sheet1!I78 -> 1 | N192: 1 | O192: =[1]Sheet1!M78 -> 2015-07-04 | P192: =[1]Sheet1!R78 -> 2022-07-04 | Q192: =IF(AJ192>0, IF(AJ192<H192, [1]Sheet1!Q78/L192/M192, 0),0) -> 0 | R192: =IF(AJ192>0, IF(AJ192>=H192, [1]Sheet1!O78/L192/M192 -S192, 0),0) -> 0 | S192: =IF(AJ192>H192, [1]Sheet1!Q78/L192/M192, 0) -> 0 | Z192: 33847 | AA192: 1 | AB192: 1 | AC192: 0 | AD192: 0 | AE192: 0 | AF192: 0.0949
A193: =[1]Sheet1!A79 -> Curley, Larissa M D | B193: =[1]Sheet1!B79 -> 8000138 | C193: =[1]Sheet1!C79 -> f | D193: =[1]Sheet1!D79 -> 1975-06-24 | E193: =[1]Sheet1!L79 -> 2005-08-15 | F193: 2099-12-31 | H193: 7 | I193: 7 | J193: 0.25 | K193: 0.25 | L193: =[1]Sheet1!K79 -> 73717 | M193: =[1]Sheet1!I79 -> 0.8 | N193: 0.8 | O193: =[1]Sheet1!M79 -> 2014-07-29 | P193: =[1]Sheet1!R79 -> 2021-07-29 | Q193: =IF(AJ193>0, IF(AJ193<H193, [1]Sheet1!Q79/L193/M193, 0),0) -> 0 | R193: =IF(AJ193>0, IF(AJ193>=H193, [1]Sheet1!O79/L193/M193 -S193, 0),0) -> 0 | S193: =IF(AJ193>H193, [1]Sheet1!Q79/L193/M193, 0) -> 0 | Z193: 33847 | AA193: 1 | AB193: 1 | AC193: 0 | AD193: 0 | AE193: 0 | AF193: 0.0949
A194: =[1]Sheet1!A80 -> Currie, Elaine M | B194: =[1]Sheet1!B80 -> 8000139 | C194: =[1]Sheet1!C80 -> f | D194: =[1]Sheet1!D80 -> 1944-01-12 | E194: =[1]Sheet1!L80 -> 2011-03-16 | F194: 2099-12-31 | H194: 7 | I194: 7 | J194: 0.25 | K194: 0.25 | L194: =[1]Sheet1!K80 -> 101943 | M194: =[1]Sheet1!I80 -> 1 | N194: 1 | O194: =[1]Sheet1!M80 -> 2012-12-31 | P194: =[1]Sheet1!R80 -> 2019-12-31 | Q194: =IF(AJ194>0, IF(AJ194<H194, [1]Sheet1!Q80/L194/M194, 0),0) -> 0 | R194: =IF(AJ194>0, IF(AJ194>=H194, [1]Sheet1!O80/L194/M194 -S194, 0),0) -> 0 | S194: =IF(AJ194>H194, [1]Sheet1!Q80/L194/M194, 0) -> 0 | Z194: 33847 | AA194: 1 | AB194: 1 | AC194: 0 | AD194: 0 | AE194: 0 | AF194: 0.0949
A195: =[1]Sheet1!A81 -> Daintith, Michael | B195: =[1]Sheet1!B81 -> 8000140 | C195: =[1]Sheet1!C81 -> m | D195: =[1]Sheet1!D81 -> 1972-02-18 | E195: =[1]Sheet1!L81 -> 2011-07-08 | F195: 2099-12-31 | H195: 7 | I195: 7 | J195: 0.25 | K195: 0.25 | L195: =[1]Sheet1!K81 -> 98211 | M195: =[1]Sheet1!I81 -> 1 | N195: 1 | O195: =[1]Sheet1!M81 -> 2011-08-11 | P195: =[1]Sheet1!R81 -> 2018-08-11 | Q195: =IF(AJ195>0, IF(AJ195<H195, [1]Sheet1!Q81/L195/M195, 0),0) -> 0 | R195: =IF(AJ195>0, IF(AJ195>=H195, [1]Sheet1!O81/L195/M195 -S195, 0),0) -> 0 | S195: =IF(AJ195>H195, [1]Sheet1!Q81/L195/M195, 0) -> 0 | Z195: 33847 | AA195: 1 | AB195: 1 | AC195: 0 | AD195: 0 | AE195: 0 | AF195: 0.0949
A196: =[1]Sheet1!A82 -> Dalgety, Shanarla | B196: =[1]Sheet1!B82 -> 8000141 | C196: =[1]Sheet1!C82 -> f | D196: =[1]Sheet1!D82 -> 1984-10-06 | E196: =[1]Sheet1!L82 -> 2015-04-01 | F196: 2099-12-31 | H196: 7 | I196: 7 | J196: 0.25 | K196: 0.25 | L196: =[1]Sheet1!K82 -> 78593 | M196: =[1]Sheet1!I82 -> 1 | N196: 1 | O196: =[1]Sheet1!M82 -> 2016-01-09 | P196: =[1]Sheet1!R82 -> 2023-01-09 | Q196: =IF(AJ196>0, IF(AJ196<H196, [1]Sheet1!Q82/L196/M196, 0),0) -> 0 | R196: =IF(AJ196>0, IF(AJ196>=H196, [1]Sheet1!O82/L196/M196 -S196, 0),0) -> 0 | S196: =IF(AJ196>H196, [1]Sheet1!Q82/L196/M196, 0) -> 0 | Z196: 33847 | AA196: 1 | AB196: 1 | AC196: 0 | AD196: 0 | AE196: 0 | AF196: 0.0949
A197: =[1]Sheet1!A83 -> Dalton, Lara | B197: =[1]Sheet1!B83 -> 8000142 | C197: =[1]Sheet1!C83 -> f | D197: =[1]Sheet1!D83 -> 1970-05-23 | E197: =[1]Sheet1!L83 -> 2014-10-01 | F197: 2099-12-31 | H197: 7 | I197: 7 | J197: 0.25 | K197: 0.25 | L197: =[1]Sheet1!K83 -> 84599 | M197: =[1]Sheet1!I83 -> 1 | N197: 1 | O197: =[1]Sheet1!M83 -> 2015-01-31 | P197: =[1]Sheet1!R83 -> 2022-01-31 | Q197: =IF(AJ197>0, IF(AJ197<H197, [1]Sheet1!Q83/L197/M197, 0),0) -> 0 | R197: =IF(AJ197>0, IF(AJ197>=H197, [1]Sheet1!O83/L197/M197 -S197, 0),0) -> 0 | S197: =IF(AJ197>H197, [1]Sheet1!Q83/L197/M197, 0) -> 0 | Z197: 33847 | AA197: 1 | AB197: 1 | AC197: 0 | AD197: 0 | AE197: 0 | AF197: 0.0949
A198: =[1]Sheet1!A84 -> Daniels, Gregory P | B198: =[1]Sheet1!B84 -> 8000144 | C198: =[1]Sheet1!C84 -> m | D198: =[1]Sheet1!D84 -> 1953-07-09 | E198: =[1]Sheet1!L84 -> 2011-11-23 | F198: 2099-12-31 | H198: 7 | I198: 7 | J198: 0.25 | K198: 0.25 | L198: =[1]Sheet1!K84 -> 64256 | M198: =[1]Sheet1!I84 -> 1 | N198: 1 | O198: =[1]Sheet1!M84 -> 2011-12-12 | P198: =[1]Sheet1!R84 -> 2018-12-12 | Q198: =IF(AJ198>0, IF(AJ198<H198, [1]Sheet1!Q84/L198/M198, 0),0) -> 0 | R198: =IF(AJ198>0, IF(AJ198>=H198, [1]Sheet1!O84/L198/M198 -S198, 0),0) -> 0 | S198: =IF(AJ198>H198, [1]Sheet1!Q84/L198/M198, 0) -> 0 | Z198: 33847 | AA198: 1 | AB198: 1 | AC198: 0 | AD198: 0 | AE198: 0 | AF198: 0.0949
A199: =[1]Sheet1!A85 -> Darby, Stephen H | B199: =[1]Sheet1!B85 -> 8000146 | C199: =[1]Sheet1!C85 -> m | D199: =[1]Sheet1!D85 -> 1965-11-23 | E199: =[1]Sheet1!L85 -> 2008-02-23 | F199: 2099-12-31 | H199: 7 | I199: 7 | J199: 0.25 | K199: 0.25 | L199: =[1]Sheet1!K85 -> 98211 | M199: =[1]Sheet1!I85 -> 1 | N199: 1 | O199: =[1]Sheet1!M85 -> 2014-12-28 | P199: =[1]Sheet1!R85 -> 2021-12-28 | Q199: =IF(AJ199>0, IF(AJ199<H199, [1]Sheet1!Q85/L199/M199, 0),0) -> 0 | R199: =IF(AJ199>0, IF(AJ199>=H199, [1]Sheet1!O85/L199/M199 -S199, 0),0) -> 0 | S199: =IF(AJ199>H199, [1]Sheet1!Q85/L199/M199, 0) -> 0 | Z199: 33847 | AA199: 1 | AB199: 1 | AC199: 0 | AD199: 0 | AE199: 0 | AF199: 0.0949
A200: =[1]Sheet1!A86 -> Darcy, William R | B200: =[1]Sheet1!B86 -> 8000147 | C200: =[1]Sheet1!C86 -> m | D200: =[1]Sheet1!D86 -> 1956-05-20 | E200: =[1]Sheet1!L86 -> 2014-10-01 | F200: 2099-12-31 | H200: 7 | I200: 7 | J200: 0.25 | K200: 0.25 | L200: =[1]Sheet1!K86 -> 94614 | M200: =[1]Sheet1!I86 -> 1 | N200: 1 | O200: =[1]Sheet1!M86 -> 2015-11-05 | P200: =[1]Sheet1!R86 -> 2022-11-05 | Q200: =IF(AJ200>0, IF(AJ200<H200, [1]Sheet1!Q86/L200/M200, 0),0) -> 0 | R200: =IF(AJ200>0, IF(AJ200>=H200, [1]Sheet1!O86/L200/M200 -S200, 0),0) -> 0 | S200: =IF(AJ200>H200, [1]Sheet1!Q86/L200/M200, 0) -> 0 | Z200: 33847 | AA200: 1 | AB200: 1 | AC200: 0 | AD200: 0 | AE200: 0 | AF200: 0.0949
A201: =[1]Sheet1!A87 -> Daulby, Vicki | B201: =[1]Sheet1!B87 -> 8000148 | C201: =[1]Sheet1!C87 -> f | D201: =[1]Sheet1!D87 -> 1956-08-07 | E201: =[1]Sheet1!L87 -> 2009-07-20 | F201: 2099-12-31 | H201: 7 | I201: 7 | J201: 0.25 | K201: 0.25 | L201: =[1]Sheet1!K87 -> 57376 | M201: =[1]Sheet1!I87 -> 1 | N201: 1 | O201: =[1]Sheet1!M87 -> 2010-01-30 | P201: =[1]Sheet1!R87 -> 2017-01-30 | Q201: =IF(AJ201>0, IF(AJ201<H201, [1]Sheet1!Q87/L201/M201, 0),0) -> 0 | R201: =IF(AJ201>0, IF(AJ201>=H201, [1]Sheet1!O87/L201/M201 -S201, 0),0) -> 0 | S201: =IF(AJ201>H201, [1]Sheet1!Q87/L201/M201, 0) -> 0 | Z201: 33847 | AA201: 1 | AB201: 1 | AC201: 0 | AD201: 0 | AE201: 0 | AF201: 0.0949
A202: =[1]Sheet1!A88 -> Davis, Deborah | B202: =[1]Sheet1!B88 -> 8000149 | C202: =[1]Sheet1!C88 -> f | D202: =[1]Sheet1!D88 -> 1971-04-17 | E202: =[1]Sheet1!L88 -> 2015-07-01 | F202: 2099-12-31 | H202: 7 | I202: 7 | J202: 0.25 | K202: 0.25 | L202: =[1]Sheet1!K88 -> 59172 | M202: =[1]Sheet1!I88 -> 1 | N202: 1 | O202: =[1]Sheet1!M88 -> 2016-09-11 | P202: =[1]Sheet1!R88 -> 2023-09-11 | Q202: =IF(AJ202>0, IF(AJ202<H202, [1]Sheet1!Q88/L202/M202, 0),0) -> 0 | R202: =IF(AJ202>0, IF(AJ202>=H202, [1]Sheet1!O88/L202/M202 -S202, 0),0) -> 0 | S202: =IF(AJ202>H202, [1]Sheet1!Q88/L202/M202, 0) -> 0 | Z202: 33847 | AA202: 1 | AB202: 1 | AC202: 0 | AD202: 0 | AE202: 0 | AF202: 0.0949
A203: =[1]Sheet1!A89 -> De Kalbermatten, Muriel G | B203: =[1]Sheet1!B89 -> 8000150 | C203: =[1]Sheet1!C89 -> f | D203: =[1]Sheet1!D89 -> 1973-10-23 | E203: =[1]Sheet1!L89 -> 2014-02-12 | F203: 2099-12-31 | H203: 7 | I203: 7 | J203: 0.25 | K203: 0.25 | L203: =[1]Sheet1!K89 -> 46349 | M203: =[1]Sheet1!I89 -> 0.6 | N203: 0.6 | O203: =[1]Sheet1!M89 -> 2016-09-11 | P203: =[1]Sheet1!R89 -> 2023-09-11 | Q203: =IF(AJ203>0, IF(AJ203<H203, [1]Sheet1!Q89/L203/M203, 0),0) -> 0 | R203: =IF(AJ203>0, IF(AJ203>=H203, [1]Sheet1!O89/L203/M203 -S203, 0),0) -> 0 | S203: =IF(AJ203>H203, [1]Sheet1!Q89/L203/M203, 0) -> 0 | Z203: 33847 | AA203: 1 | AB203: 1 | AC203: 0 | AD203: 0 | AE203: 0 | AF203: 0.0949
A204: =[1]Sheet1!A90 -> De Lange, Barend J | B204: =[1]Sheet1!B90 -> 8000151 | C204: =[1]Sheet1!C90 -> m | D204: =[1]Sheet1!D90 -> 1970-02-19 | E204: =[1]Sheet1!L90 -> 2012-01-09 | F204: 2099-12-31 | H204: 7 | I204: 7 | J204: 0.25 | K204: 0.25 | L204: =[1]Sheet1!K90 -> 91152 | M204: =[1]Sheet1!I90 -> 1 | N204: 1 | O204: =[1]Sheet1!M90 -> 2011-06-10 | P204: =[1]Sheet1!R90 -> 2018-06-10 | Q204: =IF(AJ204>0, IF(AJ204<H204, [1]Sheet1!Q90/L204/M204, 0),0) -> 0 | R204: =IF(AJ204>0, IF(AJ204>=H204, [1]Sheet1!O90/L204/M204 -S204, 0),0) -> 0 | S204: =IF(AJ204>H204, [1]Sheet1!Q90/L204/M204, 0) -> 0 | Z204: 33847 | AA204: 1 | AB204: 1 | AC204: 0 | AD204: 0 | AE204: 0 | AF204: 0.0949
A205: =[1]Sheet1!A91 -> De Pina, Tracy A | B205: =[1]Sheet1!B91 -> 8000152 | C205: =[1]Sheet1!C91 -> f | D205: =[1]Sheet1!D91 -> 1968-07-16 | E205: =[1]Sheet1!L91 -> 2008-08-28 | F205: 2099-12-31 | H205: 7 | I205: 7 | J205: 0.25 | K205: 0.25 | L205: =[1]Sheet1!K91 -> 47116.93 | M205: =[1]Sheet1!I91 -> 0.5 | N205: 0.5 | O205: =[1]Sheet1!M91 -> 2011-05-13 | P205: =[1]Sheet1!R91 -> 2018-05-13 | Q205: =IF(AJ205>0, IF(AJ205<H205, [1]Sheet1!Q91/L205/M205, 0),0) -> 0 | R205: =IF(AJ205>0, IF(AJ205>=H205, [1]Sheet1!O91/L205/M205 -S205, 0),0) -> 0 | S205: =IF(AJ205>H205, [1]Sheet1!Q91/L205/M205, 0) -> 0 | Z205: 33847 | AA205: 1 | AB205: 1 | AC205: 0 | AD205: 0 | AE205: 0 | AF205: 0.0949
A206: =[1]Sheet1!A92 -> De Ree, Benjamin H | B206: =[1]Sheet1!B92 -> 8000153 | C206: =[1]Sheet1!C92 -> m | D206: =[1]Sheet1!D92 -> 1978-09-12 | E206: =[1]Sheet1!L92 -> 2002-06-17 | F206: 2099-12-31 | H206: 7 | I206: 7 | J206: 0.25 | K206: 0.25 | L206: =[1]Sheet1!K92 -> 84599 | M206: =[1]Sheet1!I92 -> 1 | N206: 1 | O206: =[1]Sheet1!M92 -> 2010-01-30 | P206: =[1]Sheet1!R92 -> 2017-01-30 | Q206: =IF(AJ206>0, IF(AJ206<H206, [1]Sheet1!Q92/L206/M206, 0),0) -> 0 | R206: =IF(AJ206>0, IF(AJ206>=H206, [1]Sheet1!O92/L206/M206 -S206, 0),0) -> 0 | S206: =IF(AJ206>H206, [1]Sheet1!Q92/L206/M206, 0) -> 0 | Z206: 33847 | AA206: 1 | AB206: 1 | AC206: 0 | AD206: 0 | AE206: 0 | AF206: 0.0949
A207: =[1]Sheet1!A93 -> Del Rosario, Maria S | B207: =[1]Sheet1!B93 -> 8000154 | C207: =[1]Sheet1!C93 -> f | D207: =[1]Sheet1!D93 -> 1981-12-10 | E207: =[1]Sheet1!L93 -> 2014-10-06 | F207: 2099-12-31 | H207: 7 | I207: 7 | J207: 0.25 | K207: 0.25 | L207: =[1]Sheet1!K93 -> 71723 | M207: =[1]Sheet1!I93 -> 0.6 | N207: 0.6 | O207: =[1]Sheet1!M93 -> 2014-11-30 | P207: =[1]Sheet1!R93 -> 2021-11-30 | Q207: =IF(AJ207>0, IF(AJ207<H207, [1]Sheet1!Q93/L207/M207, 0),0) -> 0 | R207: =IF(AJ207>0, IF(AJ207>=H207, [1]Sheet1!O93/L207/M207 -S207, 0),0) -> 0 | S207: =IF(AJ207>H207, [1]Sheet1!Q93/L207/M207, 0) -> 0 | Z207: 33847 | AA207: 1 | AB207: 1 | AC207: 0 | AD207: 0 | AE207: 0 | AF207: 0.0949
A208: =[1]Sheet1!A94 -> Desmond, Minnetta | B208: =[1]Sheet1!B94 -> 8000156 | C208: =[1]Sheet1!C94 -> f | D208: =[1]Sheet1!D94 -> 1973-05-27 | E208: =[1]Sheet1!L94 -> 2010-10-25 | F208: 2099-12-31 | H208: 7 | I208: 7 | J208: 0.25 | K208: 0.25 | L208: =[1]Sheet1!K94 -> 99345 | M208: =[1]Sheet1!I94 -> 1 | N208: 1 | O208: =[1]Sheet1!M94 -> 2011-03-09 | P208: =[1]Sheet1!R94 -> 2018-03-09 | Q208: =IF(AJ208>0, IF(AJ208<H208, [1]Sheet1!Q94/L208/M208, 0),0) -> 0 | R208: =IF(AJ208>0, IF(AJ208>=H208, [1]Sheet1!O94/L208/M208 -S208, 0),0) -> 0 | S208: =IF(AJ208>H208, [1]Sheet1!Q94/L208/M208, 0) -> 0 | Z208: 33847 | AA208: 1 | AB208: 1 | AC208: 0 | AD208: 0 | AE208: 0 | AF208: 0.0949
A209: =[1]Sheet1!A95 -> Ditchfield, Kristen | B209: =[1]Sheet1!B95 -> 8000160 | C209: =[1]Sheet1!C95 -> f | D209: =[1]Sheet1!D95 -> 1978-01-11 | E209: =[1]Sheet1!L95 -> 2008-12-19 | F209: 2099-12-31 | H209: 7 | I209: 7 | J209: 0.25 | K209: 0.25 | L209: =[1]Sheet1!K95 -> 64256 | M209: =[1]Sheet1!I95 -> 0.8 | N209: 0.8 | O209: =[1]Sheet1!M95 -> 2016-07-11 | P209: =[1]Sheet1!R95 -> 2023-07-11 | Q209: =IF(AJ209>0, IF(AJ209<H209, [1]Sheet1!Q95/L209/M209, 0),0) -> 0 | R209: =IF(AJ209>0, IF(AJ209>=H209, [1]Sheet1!O95/L209/M209 -S209, 0),0) -> 0 | S209: =IF(AJ209>H209, [1]Sheet1!Q95/L209/M209, 0) -> 0 | Z209: 33847 | AA209: 1 | AB209: 1 | AC209: 0 | AD209: 0 | AE209: 0 | AF209: 0.0949
A210: =[1]Sheet1!A96 -> Dodds, Larissa N | B210: =[1]Sheet1!B96 -> 8000161 | C210: =[1]Sheet1!C96 -> f | D210: =[1]Sheet1!D96 -> 1984-12-26 | E210: =[1]Sheet1!L96 -> 2012-09-28 | F210: 2099-12-31 | H210: 7 | I210: 7 | J210: 0.25 | K210: 0.25 | L210: =[1]Sheet1!K96 -> 93994 | M210: =[1]Sheet1!I96 -> 1 | N210: 1 | O210: =[1]Sheet1!M96 -> 2012-10-18 | P210: =[1]Sheet1!R96 -> 2019-10-18 | Q210: =IF(AJ210>0, IF(AJ210<H210, [1]Sheet1!Q96/L210/M210, 0),0) -> 0 | R210: =IF(AJ210>0, IF(AJ210>=H210, [1]Sheet1!O96/L210/M210 -S210, 0),0) -> 0 | S210: =IF(AJ210>H210, [1]Sheet1!Q96/L210/M210, 0) -> 0 | Z210: 33847 | AA210: 1 | AB210: 1 | AC210: 0 | AD210: 0 | AE210: 0 | AF210: 0.0949
A211: =[1]Sheet1!A97 -> Donald, Paula J | B211: =[1]Sheet1!B97 -> 8000162 | C211: =[1]Sheet1!C97 -> f | D211: =[1]Sheet1!D97 -> 1962-07-18 | E211: =[1]Sheet1!L97 -> 1995-02-02 | F211: 2099-12-31 | H211: 7 | I211: 7 | J211: 0.25 | K211: 0.25 | L211: =[1]Sheet1!K97 -> 111106 | M211: =[1]Sheet1!I97 -> 1 | N211: 1 | O211: =[1]Sheet1!M97 -> 2017-02-13 | P211: =[1]Sheet1!R97 -> 2024-02-13 | Q211: =IF(AJ211>0, IF(AJ211<H211, [1]Sheet1!Q97/L211/M211, 0),0) -> 0 | R211: =IF(AJ211>0, IF(AJ211>=H211, [1]Sheet1!O97/L211/M211 -S211, 0),0) -> 0 | S211: =IF(AJ211>H211, [1]Sheet1!Q97/L211/M211, 0) -> 0 | Z211: 33847 | AA211: 1 | AB211: 1 | AC211: 0 | AD211: 0 | AE211: 0 | AF211: 0.0949
A212: =[1]Sheet1!A98 -> Draper, Mark | B212: =[1]Sheet1!B98 -> 8000164 | C212: =[1]Sheet1!C98 -> m | D212: =[1]Sheet1!D98 -> 1967-01-28 | E212: =[1]Sheet1!L98 -> 2014-12-02 | F212: 2099-12-31 | H212: 7 | I212: 7 | J212: 0.25 | K212: 0.25 | L212: =[1]Sheet1!K98 -> 93994 | M212: =[1]Sheet1!I98 -> 1 | N212: 1 | O212: =[1]Sheet1!M98 -> 2011-09-11 | P212: =[1]Sheet1!R98 -> 2018-09-11 | Q212: =IF(AJ212>0, IF(AJ212<H212, [1]Sheet1!Q98/L212/M212, 0),0) -> 0 | R212: =IF(AJ212>0, IF(AJ212>=H212, [1]Sheet1!O98/L212/M212 -S212, 0),0) -> 0 | S212: =IF(AJ212>H212, [1]Sheet1!Q98/L212/M212, 0) -> 0 | Z212: 33847 | AA212: 1 | AB212: 1 | AC212: 0 | AD212: 0 | AE212: 0 | AF212: 0.0949
A213: =[1]Sheet1!A99 -> Drummond, Eric J | B213: =[1]Sheet1!B99 -> 8000165 | C213: =[1]Sheet1!C99 -> m | D213: =[1]Sheet1!D99 -> 1975-10-15 | E213: =[1]Sheet1!L99 -> 2013-06-10 | F213: 2099-12-31 | H213: 7 | I213: 7 | J213: 0.25 | K213: 0.25 | L213: =[1]Sheet1!K99 -> 81502 | M213: =[1]Sheet1!I99 -> 1 | N213: 1 | O213: =[1]Sheet1!M99 -> 2013-07-23 | P213: =[1]Sheet1!R99 -> 2020-07-23 | Q213: =IF(AJ213>0, IF(AJ213<H213, [1]Sheet1!Q99/L213/M213, 0),0) -> 0 | R213: =IF(AJ213>0, IF(AJ213>=H213, [1]Sheet1!O99/L213/M213 -S213, 0),0) -> 0 | S213: =IF(AJ213>H213, [1]Sheet1!Q99/L213/M213, 0) -> 0 | Z213: 33847 | AA213: 1 | AB213: 1 | AC213: 0 | AD213: 0 | AE213: 0 | AF213: 0.0949
A214: =[1]Sheet1!A100 -> Duddy, Samantha L G | B214: =[1]Sheet1!B100 -> 8000166 | C214: =[1]Sheet1!C100 -> f | D214: =[1]Sheet1!D100 -> 1970-06-20 | E214: =[1]Sheet1!L100 -> 2015-03-09 | F214: 2099-12-31 | H214: 7 | I214: 7 | J214: 0.25 | K214: 0.25 | L214: =[1]Sheet1!K100 -> 91152 | M214: =[1]Sheet1!I100 -> 1 | N214: 1 | O214: =[1]Sheet1!M100 -> 2015-05-04 | P214: =[1]Sheet1!R100 -> 2022-05-04 | Q214: =IF(AJ214>0, IF(AJ214<H214, [1]Sheet1!Q100/L214/M214, 0),0) -> 0 | R214: =IF(AJ214>0, IF(AJ214>=H214, [1]Sheet1!O100/L214/M214 -S214, 0),0) -> 0 | S214: =IF(AJ214>H214, [1]Sheet1!Q100/L214/M214, 0) -> 0 | Z214: 33847 | AA214: 1 | AB214: 1 | AC214: 0 | AD214: 0 | AE214: 0 | AF214: 0.0949
A215: =[1]Sheet1!A101 -> Duffy, Lorraine | B215: =[1]Sheet1!B101 -> 8000167 | C215: =[1]Sheet1!C101 -> f | D215: =[1]Sheet1!D101 -> 1962-11-15 | E215: =[1]Sheet1!L101 -> 2016-08-12 | F215: 2099-12-31 | H215: 7 | I215: 7 | J215: 0.25 | K215: 0.25 | L215: =[1]Sheet1!K101 -> 80797 | M215: =[1]Sheet1!I101 -> 1 | N215: 1 | O215: =[1]Sheet1!M101 -> 2016-10-12 | P215: =[1]Sheet1!R101 -> 2023-10-12 | Q215: =IF(AJ215>0, IF(AJ215<H215, [1]Sheet1!Q101/L215/M215, 0),0) -> 0 | R215: =IF(AJ215>0, IF(AJ215>=H215, [1]Sheet1!O101/L215/M215 -S215, 0),0) -> 0 | S215: =IF(AJ215>H215, [1]Sheet1!Q101/L215/M215, 0) -> 0 | Z215: 33847 | AA215: 1 | AB215: 1 | AC215: 0 | AD215: 0 | AE215: 0 | AF215: 0.0949
A216: =[1]Sheet1!A102 -> Dulihanty, Graham | B216: =[1]Sheet1!B102 -> 8000168 | C216: =[1]Sheet1!C102 -> m | D216: =[1]Sheet1!D102 -> 1953-09-09 | E216: =[1]Sheet1!L102 -> 2011-08-29 | F216: 2099-12-31 | H216: 7 | I216: 7 | J216: 0.25 | K216: 0.25 | L216: =[1]Sheet1!K102 -> 98211 | M216: =[1]Sheet1!I102 -> 1 | N216: 1 | O216: =[1]Sheet1!M102 -> 2011-09-11 | P216: =[1]Sheet1!R102 -> 2018-09-11 | Q216: =IF(AJ216>0, IF(AJ216<H216, [1]Sheet1!Q102/L216/M216, 0),0) -> 0 | R216: =IF(AJ216>0, IF(AJ216>=H216, [1]Sheet1!O102/L216/M216 -S216, 0),0) -> 0 | S216: =IF(AJ216>H216, [1]Sheet1!Q102/L216/M216, 0) -> 0 | Z216: 33847 | AA216: 1 | AB216: 1 | AC216: 0 | AD216: 0 | AE216: 0 | AF216: 0.0949
A217: =[1]Sheet1!A103 -> Dunn, Wendy | B217: =[1]Sheet1!B103 -> 8000169 | C217: =[1]Sheet1!C103 -> f | D217: =[1]Sheet1!D103 -> 1967-12-13 | E217: =[1]Sheet1!L103 -> 2008-07-21 | F217: 2099-12-31 | H217: 7 | I217: 7 | J217: 0.25 | K217: 0.25 | L217: =[1]Sheet1!K103 -> 99345 | M217: =[1]Sheet1!I103 -> 0.5 | N217: 0.5 | O217: =[1]Sheet1!M103 -> 2015-10-05 | P217: =[1]Sheet1!R103 -> 2022-10-05 | Q217: =IF(AJ217>0, IF(AJ217<H217, [1]Sheet1!Q103/L217/M217, 0),0) -> 0 | R217: =IF(AJ217>0, IF(AJ217>=H217, [1]Sheet1!O103/L217/M217 -S217, 0),0) -> 0 | S217: =IF(AJ217>H217, [1]Sheet1!Q103/L217/M217, 0) -> 0 | Z217: 33847 | AA217: 1 | AB217: 1 | AC217: 0 | AD217: 0 | AE217: 0 | AF217: 0.0949
A218: =[1]Sheet1!A104 -> Dunstone, Alan | B218: =[1]Sheet1!B104 -> 8000171 | C218: =[1]Sheet1!C104 -> m | D218: =[1]Sheet1!D104 -> 1969-04-19 | E218: =[1]Sheet1!L104 -> 2014-03-04 | F218: 2099-12-31 | H218: 7 | I218: 7 | J218: 0.25 | K218: 0.25 | L218: =[1]Sheet1!K104 -> 84599 | M218: =[1]Sheet1!I104 -> 1 | N218: 1 | O218: =[1]Sheet1!M104 -> 2014-04-27 | P218: =[1]Sheet1!R104 -> 2021-04-27 | Q218: =IF(AJ218>0, IF(AJ218<H218, [1]Sheet1!Q104/L218/M218, 0),0) -> 0 | R218: =IF(AJ218>0, IF(AJ218>=H218, [1]Sheet1!O104/L218/M218 -S218, 0),0) -> 0 | S218: =IF(AJ218>H218, [1]Sheet1!Q104/L218/M218, 0) -> 0 | Z218: 33847 | AA218: 1 | AB218: 1 | AC218: 0 | AD218: 0 | AE218: 0 | AF218: 0.0949
A219: =[1]Sheet1!A105 -> Durkin, Michelle | B219: =[1]Sheet1!B105 -> 8000172 | C219: =[1]Sheet1!C105 -> f | D219: =[1]Sheet1!D105 -> 1968-01-03 | E219: =[1]Sheet1!L105 -> 2011-01-01 | F219: 2099-12-31 | H219: 7 | I219: 7 | J219: 0.25 | K219: 0.25 | L219: =[1]Sheet1!K105 -> 80797 | M219: =[1]Sheet1!I105 -> 1 | N219: 1 | O219: =[1]Sheet1!M105 -> 2011-01-06 | P219: =[1]Sheet1!R105 -> 2018-01-06 | Q219: =IF(AJ219>0, IF(AJ219<H219, [1]Sheet1!Q105/L219/M219, 0),0) -> 0 | R219: =IF(AJ219>0, IF(AJ219>=H219, [1]Sheet1!O105/L219/M219 -S219, 0),0) -> 0 | S219: =IF(AJ219>H219, [1]Sheet1!Q105/L219/M219, 0) -> 0 | Z219: 33847 | AA219: 1 | AB219: 1 | AC219: 0 | AD219: 0 | AE219: 0 | AF219: 0.0949
A220: =[1]Sheet1!A106 -> Dymond, Wendy | B220: =[1]Sheet1!B106 -> 8000174 | C220: =[1]Sheet1!C106 -> f | D220: =[1]Sheet1!D106 -> 1963-09-06 | E220: =[1]Sheet1!L106 -> 2013-05-23 | F220: 2099-12-31 | H220: 7 | I220: 7 | J220: 0.25 | K220: 0.25 | L220: =[1]Sheet1!K106 -> 99345 | M220: =[1]Sheet1!I106 -> 0.38 | N220: 0.38 | O220: =[1]Sheet1!M106 -> 2015-09-04 | P220: =[1]Sheet1!R106 -> 2022-09-04 | Q220: =IF(AJ220>0, IF(AJ220<H220, [1]Sheet1!Q106/L220/M220, 0),0) -> 0 | R220: =IF(AJ220>0, IF(AJ220>=H220, [1]Sheet1!O106/L220/M220 -S220, 0),0) -> 0 | S220: =IF(AJ220>H220, [1]Sheet1!Q106/L220/M220, 0) -> 0 | Z220: 33847 | AA220: 1 | AB220: 1 | AC220: 0 | AD220: 0 | AE220: 0 | AF220: 0.0949
A221: =[1]Sheet1!A107 -> Edwards, Michele A | B221: =[1]Sheet1!B107 -> 8000179 | C221: =[1]Sheet1!C107 -> f | D221: =[1]Sheet1!D107 -> 1970-08-04 | E221: =[1]Sheet1!L107 -> 2005-01-11 | F221: 2099-12-31 | H221: 7 | I221: 7 | J221: 0.25 | K221: 0.25 | L221: =[1]Sheet1!K107 -> 111106 | M221: =[1]Sheet1!I107 -> 1 | N221: 1 | O221: =[1]Sheet1!M107 -> 2012-05-16 | P221: =[1]Sheet1!R107 -> 2019-05-16 | Q221: =IF(AJ221>0, IF(AJ221<H221, [1]Sheet1!Q107/L221/M221, 0),0) -> 0 | R221: =IF(AJ221>0, IF(AJ221>=H221, [1]Sheet1!O107/L221/M221 -S221, 0),0) -> 0 | S221: =IF(AJ221>H221, [1]Sheet1!Q107/L221/M221, 0) -> 0 | Z221: 33847 | AA221: 1 | AB221: 1 | AC221: 0 | AD221: 0 | AE221: 0 | AF221: 0.0949
A222: =[1]Sheet1!A108 -> Edwards, Nina K | B222: =[1]Sheet1!B108 -> 8000180 | C222: =[1]Sheet1!C108 -> f | D222: =[1]Sheet1!D108 -> 1978-02-09 | E222: =[1]Sheet1!L108 -> 2015-12-14 | F222: 2099-12-31 | H222: 7 | I222: 7 | J222: 0.25 | K222: 0.25 | L222: =[1]Sheet1!K108 -> 84599 | M222: =[1]Sheet1!I108 -> 1 | N222: 1 | O222: =[1]Sheet1!M108 -> 2016-02-06 | P222: =[1]Sheet1!R108 -> 2023-02-06 | Q222: =IF(AJ222>0, IF(AJ222<H222, [1]Sheet1!Q108/L222/M222, 0),0) -> 0 | R222: =IF(AJ222>0, IF(AJ222>=H222, [1]Sheet1!O108/L222/M222 -S222, 0),0) -> 0 | S222: =IF(AJ222>H222, [1]Sheet1!Q108/L222/M222, 0) -> 0 | Z222: 33847 | AA222: 1 | AB222: 1 | AC222: 0 | AD222: 0 | AE222: 0 | AF222: 0.0949
A223: =[1]Sheet1!A109 -> Egloff, Jurg | B223: =[1]Sheet1!B109 -> 8000182 | C223: =[1]Sheet1!C109 -> m | D223: =[1]Sheet1!D109 -> 1962-08-29 | E223: =[1]Sheet1!L109 -> 2006-07-31 | F223: 2099-12-31 | H223: 7 | I223: 7 | J223: 0.25 | K223: 0.25 | L223: =[1]Sheet1!K109 -> 87815 | M223: =[1]Sheet1!I109 -> 1 | N223: 1 | O223: =[1]Sheet1!M109 -> 2013-10-23 | P223: =[1]Sheet1!R109 -> 2020-10-23 | Q223: =IF(AJ223>0, IF(AJ223<H223, [1]Sheet1!Q109/L223/M223, 0),0) -> 0 | R223: =IF(AJ223>0, IF(AJ223>=H223, [1]Sheet1!O109/L223/M223 -S223, 0),0) -> 0 | S223: =IF(AJ223>H223, [1]Sheet1!Q109/L223/M223, 0) -> 0 | Z223: 33847 | AA223: 1 | AB223: 1 | AC223: 0 | AD223: 0 | AE223: 0 | AF223: 0.0949
A224: =[1]Sheet1!A110 -> Ellis, Elizabeth M | B224: =[1]Sheet1!B110 -> 8000184 | C224: =[1]Sheet1!C110 -> f | D224: =[1]Sheet1!D110 -> 1966-12-30 | E224: =[1]Sheet1!L110 -> 2010-08-04 | F224: 2099-12-31 | H224: 7 | I224: 7 | J224: 0.25 | K224: 0.25 | L224: =[1]Sheet1!K110 -> 107041 | M224: =[1]Sheet1!I110 -> 1 | N224: 1 | O224: =[1]Sheet1!M110 -> 2010-09-04 | P224: =[1]Sheet1!R110 -> 2017-09-04 | Q224: =IF(AJ224>0, IF(AJ224<H224, [1]Sheet1!Q110/L224/M224, 0),0) -> 0 | R224: =IF(AJ224>0, IF(AJ224>=H224, [1]Sheet1!O110/L224/M224 -S224, 0),0) -> 0 | S224: =IF(AJ224>H224, [1]Sheet1!Q110/L224/M224, 0) -> 0 | Z224: 33847 | AA224: 1 | AB224: 1 | AC224: 0 | AD224: 0 | AE224: 0 | AF224: 0.0949
A225: =[1]Sheet1!A111 -> Ellis, Yvonne M | B225: =[1]Sheet1!B111 -> 8000185 | C225: =[1]Sheet1!C111 -> f | D225: =[1]Sheet1!D111 -> 1953-04-01 | E225: =[1]Sheet1!L111 -> 1995-01-23 | F225: 2099-12-31 | H225: 7 | I225: 7 | J225: 0.25 | K225: 0.25 | L225: =[1]Sheet1!K111 -> 105816 | M225: =[1]Sheet1!I111 -> 1 | N225: 1 | O225: =[1]Sheet1!M111 -> 2016-09-10 | P225: =[1]Sheet1!R111 -> 2023-09-10 | Q225: =IF(AJ225>0, IF(AJ225<H225, [1]Sheet1!Q111/L225/M225, 0),0) -> 0 | R225: =IF(AJ225>0, IF(AJ225>=H225, [1]Sheet1!O111/L225/M225 -S225, 0),0) -> 0 | S225: =IF(AJ225>H225, [1]Sheet1!Q111/L225/M225, 0) -> 0 | Z225: 33847 | AA225: 1 | AB225: 1 | AC225: 0 | AD225: 0 | AE225: 0 | AF225: 0.0949
A226: =[1]Sheet1!A112 -> Evans, Benjamin | B226: =[1]Sheet1!B112 -> 8000186 | C226: =[1]Sheet1!C112 -> m | D226: =[1]Sheet1!D112 -> 1979-05-18 | E226: =[1]Sheet1!L112 -> 2014-02-03 | F226: 2099-12-31 | H226: 7 | I226: 7 | J226: 0.25 | K226: 0.25 | L226: =[1]Sheet1!K112 -> 78517 | M226: =[1]Sheet1!I112 -> 1 | N226: 1 | O226: =[1]Sheet1!M112 -> 2014-09-29 | P226: =[1]Sheet1!R112 -> 2021-09-29 | Q226: =IF(AJ226>0, IF(AJ226<H226, [1]Sheet1!Q112/L226/M226, 0),0) -> 0 | R226: =IF(AJ226>0, IF(AJ226>=H226, [1]Sheet1!O112/L226/M226 -S226, 0),0) -> 0 | S226: =IF(AJ226>H226, [1]Sheet1!Q112/L226/M226, 0) -> 0 | Z226: 33847 | AA226: 1 | AB226: 1 | AC226: 0 | AD226: 0 | AE226: 0 | AF226: 0.0949
A227: =[1]Sheet1!A113 -> Everett, Frances | B227: =[1]Sheet1!B113 -> 8000188 | C227: =[1]Sheet1!C113 -> f | D227: =[1]Sheet1!D113 -> 1961-03-24 | E227: =[1]Sheet1!L113 -> 2016-04-21 | F227: 2099-12-31 | H227: 7 | I227: 7 | J227: 0.25 | K227: 0.25 | L227: =[1]Sheet1!K113 -> 124033 | M227: =[1]Sheet1!I113 -> 1 | N227: 1 | O227: =[1]Sheet1!M113 -> 2016-10-12 | P227: =[1]Sheet1!R113 -> 2023-10-12 | Q227: =IF(AJ227>0, IF(AJ227<H227, [1]Sheet1!Q113/L227/M227, 0),0) -> 0 | R227: =IF(AJ227>0, IF(AJ227>=H227, [1]Sheet1!O113/L227/M227 -S227, 0),0) -> 0 | S227: =IF(AJ227>H227, [1]Sheet1!Q113/L227/M227, 0) -> 0 | Z227: 33847 | AA227: 1 | AB227: 1 | AC227: 0 | AD227: 0 | AE227: 0 | AF227: 0.0949
A228: =[1]Sheet1!A114 -> Fariss, Melita D | B228: =[1]Sheet1!B114 -> 8000190 | C228: =[1]Sheet1!C114 -> f | D228: =[1]Sheet1!D114 -> 1976-06-26 | E228: =[1]Sheet1!L114 -> 2016-07-29 | F228: 2099-12-31 | H228: 7 | I228: 7 | J228: 0.25 | K228: 0.25 | L228: =[1]Sheet1!K114 -> 64256 | M228: =[1]Sheet1!I114 -> 1 | N228: 1 | O228: =[1]Sheet1!M114 -> 2016-09-11 | P228: =[1]Sheet1!R114 -> 2023-09-11 | Q228: =IF(AJ228>0, IF(AJ228<H228, [1]Sheet1!Q114/L228/M228, 0),0) -> 0 | R228: =IF(AJ228>0, IF(AJ228>=H228, [1]Sheet1!O114/L228/M228 -S228, 0),0) -> 0 | S228: =IF(AJ228>H228, [1]Sheet1!Q114/L228/M228, 0) -> 0 | Z228: 33847 | AA228: 1 | AB228: 1 | AC228: 0 | AD228: 0 | AE228: 0 | AF228: 0.0949
A229: =[1]Sheet1!A115 -> Fergusson, Brian | B229: =[1]Sheet1!B115 -> 8000193 | C229: =[1]Sheet1!C115 -> m | D229: =[1]Sheet1!D115 -> 1955-09-03 | E229: =[1]Sheet1!L115 -> 2011-01-01 | F229: 2099-12-31 | H229: 7 | I229: 7 | J229: 0.25 | K229: 0.25 | L229: =[1]Sheet1!K115 -> 109838 | M229: =[1]Sheet1!I115 -> 1 | N229: 1 | O229: =[1]Sheet1!M115 -> 2011-01-06 | P229: =[1]Sheet1!R115 -> 2018-01-06 | Q229: =IF(AJ229>0, IF(AJ229<H229, [1]Sheet1!Q115/L229/M229, 0),0) -> 0 | R229: =IF(AJ229>0, IF(AJ229>=H229, [1]Sheet1!O115/L229/M229 -S229, 0),0) -> 0 | S229: =IF(AJ229>H229, [1]Sheet1!Q115/L229/M229, 0) -> 0 | Z229: 33847 | AA229: 1 | AB229: 1 | AC229: 0 | AD229: 0 | AE229: 0 | AF229: 0.0949
A230: =[1]Sheet1!A116 -> Fiegert, Michael S | B230: =[1]Sheet1!B116 -> 8000194 | C230: =[1]Sheet1!C116 -> m | D230: =[1]Sheet1!D116 -> 1965-02-12 | E230: =[1]Sheet1!L116 -> 2009-02-05 | F230: 2099-12-31 | H230: 7 | I230: 7 | J230: 0.25 | K230: 0.25 | L230: =[1]Sheet1!K116 -> 87815 | M230: =[1]Sheet1!I116 -> 1 | N230: 1 | O230: =[1]Sheet1!M116 -> 2016-04-09 | P230: =[1]Sheet1!R116 -> 2023-04-09 | Q230: =IF(AJ230>0, IF(AJ230<H230, [1]Sheet1!Q116/L230/M230, 0),0) -> 0 | R230: =IF(AJ230>0, IF(AJ230>=H230, [1]Sheet1!O116/L230/M230 -S230, 0),0) -> 0 | S230: =IF(AJ230>H230, [1]Sheet1!Q116/L230/M230, 0) -> 0 | Z230: 33847 | AA230: 1 | AB230: 1 | AC230: 0 | AD230: 0 | AE230: 0 | AF230: 0.0949
A231: =[1]Sheet1!A117 -> Fiorenza, Kayelene D | B231: =[1]Sheet1!B117 -> 8000195 | C231: =[1]Sheet1!C117 -> f | D231: =[1]Sheet1!D117 -> 1953-09-02 | E231: =[1]Sheet1!L117 -> 2005-02-09 | F231: 2099-12-31 | H231: 7 | I231: 7 | J231: 0.25 | K231: 0.25 | L231: =[1]Sheet1!K117 -> 60781 | M231: =[1]Sheet1!I117 -> 1 | N231: 1 | O231: =[1]Sheet1!M117 -> 2011-09-11 | P231: =[1]Sheet1!R117 -> 2018-09-11 | Q231: =IF(AJ231>0, IF(AJ231<H231, [1]Sheet1!Q117/L231/M231, 0),0) -> 0 | R231: =IF(AJ231>0, IF(AJ231>=H231, [1]Sheet1!O117/L231/M231 -S231, 0),0) -> 0 | S231: =IF(AJ231>H231, [1]Sheet1!Q117/L231/M231, 0) -> 0 | Z231: 33847 | AA231: 1 | AB231: 1 | AC231: 0 | AD231: 0 | AE231: 0 | AF231: 0.0949
A232: =[1]Sheet1!A118 -> Fisher, James S A | B232: =[1]Sheet1!B118 -> 8000197 | C232: =[1]Sheet1!C118 -> m | D232: =[1]Sheet1!D118 -> 1965-09-30 | E232: =[1]Sheet1!L118 -> 2013-10-22 | F232: 2099-12-31 | H232: 7 | I232: 7 | J232: 0.25 | K232: 0.25 | L232: =[1]Sheet1!K118 -> 115329 | M232: =[1]Sheet1!I118 -> 0.5 | N232: 0.5 | O232: =[1]Sheet1!M118 -> 2015-03-03 | P232: =[1]Sheet1!R118 -> 2022-03-03 | Q232: =IF(AJ232>0, IF(AJ232<H232, [1]Sheet1!Q118/L232/M232, 0),0) -> 0 | R232: =IF(AJ232>0, IF(AJ232>=H232, [1]Sheet1!O118/L232/M232 -S232, 0),0) -> 0 | S232: =IF(AJ232>H232, [1]Sheet1!Q118/L232/M232, 0) -> 0 | Z232: 33847 | AA232: 1 | AB232: 1 | AC232: 0 | AD232: 0 | AE232: 0 | AF232: 0.0949
A233: =[1]Sheet1!A119 -> Fitzpatrick, Leeanne | B233: =[1]Sheet1!B119 -> 8000198 | C233: =[1]Sheet1!C119 -> f | D233: =[1]Sheet1!D119 -> 1956-06-04 | E233: =[1]Sheet1!L119 -> 2014-12-12 | F233: 2099-12-31 | H233: 7 | I233: 7 | J233: 0.25 | K233: 0.25 | L233: =[1]Sheet1!K119 -> 91152 | M233: =[1]Sheet1!I119 -> 1 | N233: 1 | O233: =[1]Sheet1!M119 -> 2015-09-01 | P233: =[1]Sheet1!R119 -> 2022-09-01 | Q233: =IF(AJ233>0, IF(AJ233<H233, [1]Sheet1!Q119/L233/M233, 0),0) -> 0 | R233: =IF(AJ233>0, IF(AJ233>=H233, [1]Sheet1!O119/L233/M233 -S233, 0),0) -> 0 | S233: =IF(AJ233>H233, [1]Sheet1!Q119/L233/M233, 0) -> 0 | Z233: 33847 | AA233: 1 | AB233: 1 | AC233: 0 | AD233: 0 | AE233: 0 | AF233: 0.0949
A234: =[1]Sheet1!A120 -> Fleeton, Beverley I | B234: =[1]Sheet1!B120 -> 8000199 | C234: =[1]Sheet1!C120 -> f | D234: =[1]Sheet1!D120 -> 1959-05-01 | E234: =[1]Sheet1!L120 -> 2012-09-10 | F234: 2099-12-31 | H234: 7 | I234: 7 | J234: 0.25 | K234: 0.25 | L234: =[1]Sheet1!K120 -> 64256 | M234: =[1]Sheet1!I120 -> 1 | N234: 1 | O234: =[1]Sheet1!M120 -> 2012-11-18 | P234: =[1]Sheet1!R120 -> 2019-11-18 | Q234: =IF(AJ234>0, IF(AJ234<H234, [1]Sheet1!Q120/L234/M234, 0),0) -> 0 | R234: =IF(AJ234>0, IF(AJ234>=H234, [1]Sheet1!O120/L234/M234 -S234, 0),0) -> 0 | S234: =IF(AJ234>H234, [1]Sheet1!Q120/L234/M234, 0) -> 0 | Z234: 33847 | AA234: 1 | AB234: 1 | AC234: 0 | AD234: 0 | AE234: 0 | AF234: 0.0949
A235: =[1]Sheet1!A121 -> Fleming, Thomas C | B235: =[1]Sheet1!B121 -> 8000200 | C235: =[1]Sheet1!C121 -> m | D235: =[1]Sheet1!D121 -> 1950-05-12 | E235: =[1]Sheet1!L121 -> 2007-05-07 | F235: 2099-12-31 | H235: 7 | I235: 7 | J235: 0.25 | K235: 0.25 | L235: =[1]Sheet1!K121 -> 87815 | M235: =[1]Sheet1!I121 -> 1 | N235: 1 | O235: =[1]Sheet1!M121 -> 2014-09-29 | P235: =[1]Sheet1!R121 -> 2021-09-29 | Q235: =IF(AJ235>0, IF(AJ235<H235, [1]Sheet1!Q121/L235/M235, 0),0) -> 0 | R235: =IF(AJ235>0, IF(AJ235>=H235, [1]Sheet1!O121/L235/M235 -S235, 0),0) -> 0 | S235: =IF(AJ235>H235, [1]Sheet1!Q121/L235/M235, 0) -> 0 | Z235: 33847 | AA235: 1 | AB235: 1 | AC235: 0 | AD235: 0 | AE235: 0 | AF235: 0.0949
A236: =[1]Sheet1!A122 -> Forbes, Peter L | B236: =[1]Sheet1!B122 -> 8000201 | C236: =[1]Sheet1!C122 -> m | D236: =[1]Sheet1!D122 -> 1952-05-06 | E236: =[1]Sheet1!L122 -> 1994-02-03 | F236: 2099-12-31 | H236: 7 | I236: 7 | J236: 0.25 | K236: 0.25 | L236: =[1]Sheet1!K122 -> 105816 | M236: =[1]Sheet1!I122 -> 1 | N236: 1 | O236: =[1]Sheet1!M122 -> 2016-06-10 | P236: =[1]Sheet1!R122 -> 2023-06-10 | Q236: =IF(AJ236>0, IF(AJ236<H236, [1]Sheet1!Q122/L236/M236, 0),0) -> 0 | R236: =IF(AJ236>0, IF(AJ236>=H236, [1]Sheet1!O122/L236/M236 -S236, 0),0) -> 0 | S236: =IF(AJ236>H236, [1]Sheet1!Q122/L236/M236, 0) -> 0 | Z236: 33847 | AA236: 1 | AB236: 1 | AC236: 0 | AD236: 0 | AE236: 0 | AF236: 0.0949
A237: =[1]Sheet1!A123 -> Forrester, Michelle J | B237: =[1]Sheet1!B123 -> 8000202 | C237: =[1]Sheet1!C123 -> f | D237: =[1]Sheet1!D123 -> 1974-07-08 | E237: =[1]Sheet1!L123 -> 2015-06-02 | F237: 2099-12-31 | H237: 7 | I237: 7 | J237: 0.25 | K237: 0.25 | L237: =[1]Sheet1!K123 -> 81502 | M237: =[1]Sheet1!I123 -> 1 | N237: 1 | O237: =[1]Sheet1!M123 -> 2015-08-04 | P237: =[1]Sheet1!R123 -> 2022-08-04 | Q237: =IF(AJ237>0, IF(AJ237<H237, [1]Sheet1!Q123/L237/M237, 0),0) -> 0 | R237: =IF(AJ237>0, IF(AJ237>=H237, [1]Sheet1!O123/L237/M237 -S237, 0),0) -> 0 | S237: =IF(AJ237>H237, [1]Sheet1!Q123/L237/M237, 0) -> 0 | Z237: 33847 | AA237: 1 | AB237: 1 | AC237: 0 | AD237: 0 | AE237: 0 | AF237: 0.0949
A238: =[1]Sheet1!A124 -> Forsyth, Dale E | B238: =[1]Sheet1!B124 -> 8000203 | C238: =[1]Sheet1!C124 -> m | D238: =[1]Sheet1!D124 -> 1965-07-21 | E238: =[1]Sheet1!L124 -> 1993-07-26 | F238: 2099-12-31 | H238: 7 | I238: 7 | J238: 0.25 | K238: 0.25 | L238: =[1]Sheet1!K124 -> 78517 | M238: =[1]Sheet1!I124 -> 1 | N238: 1 | O238: =[1]Sheet1!M124 -> 2015-05-04 | P238: =[1]Sheet1!R124 -> 2022-05-04 | Q238: =IF(AJ238>0, IF(AJ238<H238, [1]Sheet1!Q124/L238/M238, 0),0) -> 0 | R238: =IF(AJ238>0, IF(AJ238>=H238, [1]Sheet1!O124/L238/M238 -S238, 0),0) -> 0 | S238: =IF(AJ238>H238, [1]Sheet1!Q124/L238/M238, 0) -> 0 | Z238: 33847 | AA238: 1 | AB238: 1 | AC238: 0 | AD238: 0 | AE238: 0 | AF238: 0.0949
A239: =[1]Sheet1!A125 -> Forsyth, Judith | B239: =[1]Sheet1!B125 -> 8000204 | C239: =[1]Sheet1!C125 -> f | D239: =[1]Sheet1!D125 -> 1960-02-15 | E239: =[1]Sheet1!L125 -> 2006-06-19 | F239: 2099-12-31 | H239: 7 | I239: 7 | J239: 0.25 | K239: 0.25 | L239: =[1]Sheet1!K125 -> 99345 | M239: =[1]Sheet1!I125 -> 1 | N239: 1 | O239: =[1]Sheet1!M125 -> 2014-10-30 | P239: =[1]Sheet1!R125 -> 2021-10-30 | Q239: =IF(AJ239>0, IF(AJ239<H239, [1]Sheet1!Q125/L239/M239, 0),0) -> 0 | R239: =IF(AJ239>0, IF(AJ239>=H239, [1]Sheet1!O125/L239/M239 -S239, 0),0) -> 0 | S239: =IF(AJ239>H239, [1]Sheet1!Q125/L239/M239, 0) -> 0 | Z239: 33847 | AA239: 1 | AB239: 1 | AC239: 0 | AD239: 0 | AE239: 0 | AF239: 0.0949
A240: =[1]Sheet1!A126 -> Forward, Darryl W | B240: =[1]Sheet1!B126 -> 8000206 | C240: =[1]Sheet1!C126 -> m | D240: =[1]Sheet1!D126 -> 1957-05-28 | E240: =[1]Sheet1!L126 -> 2016-09-23 | F240: 2099-12-31 | H240: 7 | I240: 7 | J240: 0.25 | K240: 0.25 | L240: =[1]Sheet1!K126 -> 93994 | M240: =[1]Sheet1!I126 -> 1 | N240: 1 | O240: =[1]Sheet1!M126 -> 2013-09-22 | P240: =[1]Sheet1!R126 -> 2020-09-22 | Q240: =IF(AJ240>0, IF(AJ240<H240, [1]Sheet1!Q126/L240/M240, 0),0) -> 0 | R240: =IF(AJ240>0, IF(AJ240>=H240, [1]Sheet1!O126/L240/M240 -S240, 0),0) -> 0 | S240: =IF(AJ240>H240, [1]Sheet1!Q126/L240/M240, 0) -> 0 | Z240: 33847 | AA240: 1 | AB240: 1 | AC240: 0 | AD240: 0 | AE240: 0 | AF240: 0.0949
A241: =[1]Sheet1!A127 -> Frain, Andrea | B241: =[1]Sheet1!B127 -> 8000208 | C241: =[1]Sheet1!C127 -> f | D241: =[1]Sheet1!D127 -> 1994-06-27 | E241: =[1]Sheet1!L127 -> 2016-09-09 | F241: 2099-12-31 | H241: 7 | I241: 7 | J241: 0.25 | K241: 0.25 | L241: =[1]Sheet1!K127 -> 60781 | M241: =[1]Sheet1!I127 -> 1 | N241: 1 | O241: =[1]Sheet1!M127 -> 2016-11-12 | P241: =[1]Sheet1!R127 -> 2023-11-12 | Q241: =IF(AJ241>0, IF(AJ241<H241, [1]Sheet1!Q127/L241/M241, 0),0) -> 0 | R241: =IF(AJ241>0, IF(AJ241>=H241, [1]Sheet1!O127/L241/M241 -S241, 0),0) -> 0 | S241: =IF(AJ241>H241, [1]Sheet1!Q127/L241/M241, 0) -> 0 | Z241: 33847 | AA241: 1 | AB241: 1 | AC241: 0 | AD241: 0 | AE241: 0 | AF241: 0.0949
A242: =[1]Sheet1!A128 -> Francis, Pamela M | B242: =[1]Sheet1!B128 -> 8000209 | C242: =[1]Sheet1!C128 -> f | D242: =[1]Sheet1!D128 -> 1950-12-08 | E242: =[1]Sheet1!L128 -> 2001-05-21 | F242: 2099-12-31 | H242: 7 | I242: 7 | J242: 0.25 | K242: 0.25 | L242: =[1]Sheet1!K128 -> 73717 | M242: =[1]Sheet1!I128 -> 1 | N242: 1 | O242: =[1]Sheet1!M128 -> 2015-10-05 | P242: =[1]Sheet1!R128 -> 2022-10-05 | Q242: =IF(AJ242>0, IF(AJ242<H242, [1]Sheet1!Q128/L242/M242, 0),0) -> 0 | R242: =IF(AJ242>0, IF(AJ242>=H242, [1]Sheet1!O128/L242/M242 -S242, 0),0) -> 0 | S242: =IF(AJ242>H242, [1]Sheet1!Q128/L242/M242, 0) -> 0 | Z242: 33847 | AA242: 1 | AB242: 1 | AC242: 0 | AD242: 0 | AE242: 0 | AF242: 0.0949
A243: =[1]Sheet1!A129 -> Franz, Daisy J M | B243: =[1]Sheet1!B129 -> 8000211 | C243: =[1]Sheet1!C129 -> f | D243: =[1]Sheet1!D129 -> 1987-05-11 | E243: =[1]Sheet1!L129 -> 2013-07-22 | F243: 2099-12-31 | H243: 7 | I243: 7 | J243: 0.25 | K243: 0.25 | L243: =[1]Sheet1!K129 -> 90896 | M243: =[1]Sheet1!I129 -> 1 | N243: 1 | O243: =[1]Sheet1!M129 -> 2014-03-27 | P243: =[1]Sheet1!R129 -> 2021-03-27 | Q243: =IF(AJ243>0, IF(AJ243<H243, [1]Sheet1!Q129/L243/M243, 0),0) -> 0 | R243: =IF(AJ243>0, IF(AJ243>=H243, [1]Sheet1!O129/L243/M243 -S243, 0),0) -> 0 | S243: =IF(AJ243>H243, [1]Sheet1!Q129/L243/M243, 0) -> 0 | Z243: 33847 | AA243: 1 | AB243: 1 | AC243: 0 | AD243: 0 | AE243: 0 | AF243: 0.0949
A244: =[1]Sheet1!A130 -> Freer, Benjamin | B244: =[1]Sheet1!B130 -> 8000213 | C244: =[1]Sheet1!C130 -> m | D244: =[1]Sheet1!D130 -> 1972-12-01 | E244: =[1]Sheet1!L130 -> 2011-01-10 | F244: 2099-12-31 | H244: 7 | I244: 7 | J244: 0.25 | K244: 0.25 | L244: =[1]Sheet1!K130 -> 91152 | M244: =[1]Sheet1!I130 -> 1 | N244: 1 | O244: =[1]Sheet1!M130 -> 2011-02-06 | P244: =[1]Sheet1!R130 -> 2018-02-06 | Q244: =IF(AJ244>0, IF(AJ244<H244, [1]Sheet1!Q130/L244/M244, 0),0) -> 0 | R244: =IF(AJ244>0, IF(AJ244>=H244, [1]Sheet1!O130/L244/M244 -S244, 0),0) -> 0 | S244: =IF(AJ244>H244, [1]Sheet1!Q130/L244/M244, 0) -> 0 | Z244: 33847 | AA244: 1 | AB244: 1 | AC244: 0 | AD244: 0 | AE244: 0 | AF244: 0.0949
A245: =[1]Sheet1!A131 -> Fullarton, Simon | B245: =[1]Sheet1!B131 -> 8000217 | C245: =[1]Sheet1!C131 -> m | D245: =[1]Sheet1!D131 -> 1985-10-19 | E245: =[1]Sheet1!L131 -> 2014-02-03 | F245: 2099-12-31 | H245: 7 | I245: 7 | J245: 0.25 | K245: 0.25 | L245: =[1]Sheet1!K131 -> 78517 | M245: =[1]Sheet1!I131 -> 1 | N245: =M245 -> 1 | O245: =[1]Sheet1!M131 -> 2014-03-27 | P245: =[1]Sheet1!R131 -> 2021-03-27 | Q245: =IF(AJ245>0, IF(AJ245<H245, [1]Sheet1!Q131/L245/M245, 0),0) -> 0 | R245: =IF(AJ245>0, IF(AJ245>=H245, [1]Sheet1!O131/L245/M245 -S245, 0),0) -> 0 | S245: =IF(AJ245>H245, [1]Sheet1!Q131/L245/M245, 0) -> 0 | Z245: 33847 | AA245: 1 | AB245: 1 | AC245: 0 | AD245: 0 | AE245: 0 | AF245: 0.0949
A246: =[1]Sheet1!A132 -> Galloway, Cheryl A | B246: =[1]Sheet1!B132 -> 8000218 | C246: =[1]Sheet1!C132 -> f | D246: =[1]Sheet1!D132 -> 1955-10-31 | E246: =[1]Sheet1!L132 -> 1996-02-01 | F246: 2099-12-31 | H246: 7 | I246: 7 | J246: 0.25 | K246: 0.25 | L246: =[1]Sheet1!K132 -> 111106 | M246: =[1]Sheet1!I132 -> 1 | N246: 1 | O246: =[1]Sheet1!M132 -> 2011-08-11 | P246: =[1]Sheet1!R132 -> 2018-08-11 | Q246: =IF(AJ246>0, IF(AJ246<H246, [1]Sheet1!Q132/L246/M246, 0),0) -> 0 | R246: =IF(AJ246>0, IF(AJ246>=H246, [1]Sheet1!O132/L246/M246 -S246, 0),0) -> 0 | S246: =IF(AJ246>H246, [1]Sheet1!Q132/L246/M246, 0) -> 0 | Z246: 33847 | AA246: 1 | AB246: 1 | AC246: 0 | AD246: 0 | AE246: 0 | AF246: 0.0949
A247: =[1]Sheet1!A133 -> Galvin, Bernadette F | B247: =[1]Sheet1!B133 -> 8000219 | C247: =[1]Sheet1!C133 -> f | D247: =[1]Sheet1!D133 -> 1960-03-20 | E247: =[1]Sheet1!L133 -> 1995-11-03 | F247: 2099-12-31 | H247: 7 | I247: 7 | J247: 0.25 | K247: 0.25 | L247: =[1]Sheet1!K133 -> 57376 | M247: =[1]Sheet1!I133 -> 1 | N247: 1 | O247: =[1]Sheet1!M133 -> 2012-03-15 | P247: =[1]Sheet1!R133 -> 2019-03-15 | Q247: =IF(AJ247>0, IF(AJ247<H247, [1]Sheet1!Q133/L247/M247, 0),0) -> 0 | R247: =IF(AJ247>0, IF(AJ247>=H247, [1]Sheet1!O133/L247/M247 -S247, 0),0) -> 0 | S247: =IF(AJ247>H247, [1]Sheet1!Q133/L247/M247, 0) -> 0 | Z247: 33847 | AA247: 1 | AB247: 1 | AC247: 0 | AD247: 0 | AE247: 0 | AF247: 0.0949
A248: =[1]Sheet1!A134 -> Gardner, Elizabeth K | B248: =[1]Sheet1!B134 -> 8000220 | C248: =[1]Sheet1!C134 -> f | D248: =[1]Sheet1!D134 -> 1962-12-06 | E248: =[1]Sheet1!L134 -> 2006-09-02 | F248: 2099-12-31 | H248: 7 | I248: 7 | J248: 0.25 | K248: 0.25 | L248: =[1]Sheet1!K134 -> 107041 | M248: =[1]Sheet1!I134 -> 1 | N248: 1 | O248: =[1]Sheet1!M134 -> 2015-10-05 | P248: =[1]Sheet1!R134 -> 2022-10-05 | Q248: =IF(AJ248>0, IF(AJ248<H248, [1]Sheet1!Q134/L248/M248, 0),0) -> 0 | R248: =IF(AJ248>0, IF(AJ248>=H248, [1]Sheet1!O134/L248/M248 -S248, 0),0) -> 0 | S248: =IF(AJ248>H248, [1]Sheet1!Q134/L248/M248, 0) -> 0 | Z248: 33847 | AA248: 1 | AB248: 1 | AC248: 0 | AD248: 0 | AE248: 0 | AF248: 0.0949
A249: =[1]Sheet1!A135 -> Gerada, Kellie | B249: =[1]Sheet1!B135 -> 8000222 | C249: =[1]Sheet1!C135 -> f | D249: =[1]Sheet1!D135 -> 1978-03-20 | E249: =[1]Sheet1!L135 -> 2013-09-11 | F249: 2099-12-31 | H249: 7 | I249: 7 | J249: 0.25 | K249: 0.25 | L249: =[1]Sheet1!K135 -> 64256 | M249: =[1]Sheet1!I135 -> 0.8 | N249: 0.8 | O249: =[1]Sheet1!M135 -> 2013-10-23 | P249: =[1]Sheet1!R135 -> 2020-10-23 | Q249: =IF(AJ249>0, IF(AJ249<H249, [1]Sheet1!Q135/L249/M249, 0),0) -> 0 | R249: =IF(AJ249>0, IF(AJ249>=H249, [1]Sheet1!O135/L249/M249 -S249, 0),0) -> 0 | S249: =IF(AJ249>H249, [1]Sheet1!Q135/L249/M249, 0) -> 0 | Z249: 33847 | AA249: 1 | AB249: 1 | AC249: 0 | AD249: 0 | AE249: 0 | AF249: 0.0949
A250: =[1]Sheet1!A136 -> Gerard, Janine A | B250: =[1]Sheet1!B136 -> 8000223 | C250: =[1]Sheet1!C136 -> f | D250: =[1]Sheet1!D136 -> 1962-06-13 | E250: =[1]Sheet1!L136 -> 1994-06-13 | F250: 2099-12-31 | H250: 7 | I250: 7 | J250: 0.25 | K250: 0.25 | L250: =[1]Sheet1!K136 -> 111106 | M250: =[1]Sheet1!I136 -> 1 | N250: 1 | O250: =[1]Sheet1!M136 -> 2016-12-17 | P250: =[1]Sheet1!R136 -> 2023-12-17 | Q250: =IF(AJ250>0, IF(AJ250<H250, [1]Sheet1!Q136/L250/M250, 0),0) -> 0 | R250: =IF(AJ250>0, IF(AJ250>=H250, [1]Sheet1!O136/L250/M250 -S250, 0),0) -> 0 | S250: =IF(AJ250>H250, [1]Sheet1!Q136/L250/M250, 0) -> 0 | Z250: 33847 | AA250: 1 | AB250: 1 | AC250: 0 | AD250: 0 | AE250: 0 | AF250: 0.0949
A251: =[1]Sheet1!A137 -> Ghinis, Chris | B251: =[1]Sheet1!B137 -> 8000225 | C251: =[1]Sheet1!C137 -> m | D251: =[1]Sheet1!D137 -> 1973-04-13 | E251: =[1]Sheet1!L137 -> 2014-08-29 | F251: 2099-12-31 | H251: 7 | I251: 7 | J251: 0.25 | K251: 0.25 | L251: =[1]Sheet1!K137 -> 85577 | M251: =[1]Sheet1!I137 -> 1 | N251: 1 | O251: =[1]Sheet1!M137 -> 2014-09-29 | P251: =[1]Sheet1!R137 -> 2021-09-29 | Q251: =IF(AJ251>0, IF(AJ251<H251, [1]Sheet1!Q137/L251/M251, 0),0) -> 0 | R251: =IF(AJ251>0, IF(AJ251>=H251, [1]Sheet1!O137/L251/M251 -S251, 0),0) -> 0 | S251: =IF(AJ251>H251, [1]Sheet1!Q137/L251/M251, 0) -> 0 | Z251: 33847 | AA251: 1 | AB251: 1 | AC251: 0 | AD251: 0 | AE251: 0 | AF251: 0.0949
A252: =[1]Sheet1!A138 -> Gibson, Cathy L | B252: =[1]Sheet1!B138 -> 8000227 | C252: =[1]Sheet1!C138 -> f | D252: =[1]Sheet1!D138 -> 1960-04-26 | E252: =[1]Sheet1!L138 -> 1995-10-31 | F252: 2099-12-31 | H252: 7 | I252: 7 | J252: 0.25 | K252: 0.25 | L252: =[1]Sheet1!K138 -> 73717 | M252: =[1]Sheet1!I138 -> 1 | N252: 1 | O252: =[1]Sheet1!M138 -> 2010-06-03 | P252: =[1]Sheet1!R138 -> 2017-06-03 | Q252: =IF(AJ252>0, IF(AJ252<H252, [1]Sheet1!Q138/L252/M252, 0),0) -> 0 | R252: =IF(AJ252>0, IF(AJ252>=H252, [1]Sheet1!O138/L252/M252 -S252, 0),0) -> 0 | S252: =IF(AJ252>H252, [1]Sheet1!Q138/L252/M252, 0) -> 0 | Z252: 33847 | AA252: 1 | AB252: 1 | AC252: 0 | AD252: 0 | AE252: 0 | AF252: 0.0949
A253: =[1]Sheet1!A139 -> Gilchrist, Julie A | B253: =[1]Sheet1!B139 -> 8000229 | C253: =[1]Sheet1!C139 -> f | D253: =[1]Sheet1!D139 -> 1969-05-10 | E253: =[1]Sheet1!L139 -> 2009-08-31 | F253: 2099-12-31 | H253: 7 | I253: 7 | J253: 0.25 | K253: 0.25 | L253: =[1]Sheet1!K139 -> 62482 | M253: =[1]Sheet1!I139 -> 1 | N253: 1 | O253: =[1]Sheet1!M139 -> 2016-10-12 | P253: =[1]Sheet1!R139 -> 2023-10-12 | Q253: =IF(AJ253>0, IF(AJ253<H253, [1]Sheet1!Q139/L253/M253, 0),0) -> 0 | R253: =IF(AJ253>0, IF(AJ253>=H253, [1]Sheet1!O139/L253/M253 -S253, 0),0) -> 0 | S253: =IF(AJ253>H253, [1]Sheet1!Q139/L253/M253, 0) -> 0 | Z253: 33847 | AA253: 1 | AB253: 1 | AC253: 0 | AD253: 0 | AE253: 0 | AF253: 0.0949
A254: =[1]Sheet1!A140 -> Gillespie, Hayden J | B254: =[1]Sheet1!B140 -> 8000230 | C254: =[1]Sheet1!C140 -> m | D254: =[1]Sheet1!D140 -> 1984-08-14 | E254: =[1]Sheet1!L140 -> 2012-01-16 | F254: 2099-12-31 | H254: 7 | I254: 7 | J254: 0.25 | K254: 0.25 | L254: =[1]Sheet1!K140 -> 92205 | M254: =[1]Sheet1!I140 -> 1 | N254: 1 | O254: =[1]Sheet1!M140 -> 2012-02-12 | P254: =[1]Sheet1!R140 -> 2019-02-12 | Q254: =IF(AJ254>0, IF(AJ254<H254, [1]Sheet1!Q140/L254/M254, 0),0) -> 0 | R254: =IF(AJ254>0, IF(AJ254>=H254, [1]Sheet1!O140/L254/M254 -S254, 0),0) -> 0 | S254: =IF(AJ254>H254, [1]Sheet1!Q140/L254/M254, 0) -> 0 | Z254: 33847 | AA254: 1 | AB254: 1 | AC254: 0 | AD254: 0 | AE254: 0 | AF254: 0.0949
A255: =[1]Sheet1!A141 -> Gillett, Natasha | B255: =[1]Sheet1!B141 -> 8000231 | C255: =[1]Sheet1!C141 -> f | D255: =[1]Sheet1!D141 -> 1994-04-07 | E255: =[1]Sheet1!L141 -> 2012-05-02 | F255: 2099-12-31 | H255: 7 | I255: 7 | J255: 0.25 | K255: 0.25 | L255: =[1]Sheet1!K141 -> 48930 | M255: =[1]Sheet1!I141 -> 1 | N255: 1 | O255: =[1]Sheet1!M141 -> 2012-06-16 | P255: =[1]Sheet1!R141 -> 2019-06-16 | Q255: =IF(AJ255>0, IF(AJ255<H255, [1]Sheet1!Q141/L255/M255, 0),0) -> 0 | R255: =IF(AJ255>0, IF(AJ255>=H255, [1]Sheet1!O141/L255/M255 -S255, 0),0) -> 0 | S255: =IF(AJ255>H255, [1]Sheet1!Q141/L255/M255, 0) -> 0 | Z255: 33847 | AA255: 1 | AB255: 1 | AC255: 0 | AD255: 0 | AE255: 0 | AF255: 0.0949
A256: =[1]Sheet1!A142 -> Gillies, Laura | B256: =[1]Sheet1!B142 -> 8000232 | C256: =[1]Sheet1!C142 -> f | D256: =[1]Sheet1!D142 -> 1979-02-07 | E256: =[1]Sheet1!L142 -> 2012-02-01 | F256: 2099-12-31 | H256: 7 | I256: 7 | J256: 0.25 | K256: 0.25 | L256: =[1]Sheet1!K142 -> 62482 | M256: =[1]Sheet1!I142 -> 1 | N256: 1 | O256: =[1]Sheet1!M142 -> 2013-12-24 | P256: =[1]Sheet1!R142 -> 2020-12-24 | Q256: =IF(AJ256>0, IF(AJ256<H256, [1]Sheet1!Q142/L256/M256, 0),0) -> 0 | R256: =IF(AJ256>0, IF(AJ256>=H256, [1]Sheet1!O142/L256/M256 -S256, 0),0) -> 0 | S256: =IF(AJ256>H256, [1]Sheet1!Q142/L256/M256, 0) -> 0 | Z256: 33847 | AA256: 1 | AB256: 1 | AC256: 0 | AD256: 0 | AE256: 0 | AF256: 0.0949
A257: =[1]Sheet1!A143 -> Girak, Maria I | B257: =[1]Sheet1!B143 -> 8000233 | C257: =[1]Sheet1!C143 -> f | D257: =[1]Sheet1!D143 -> 1963-09-11 | E257: =[1]Sheet1!L143 -> 2002-04-03 | F257: 2099-12-31 | H257: 7 | I257: 7 | J257: 0.25 | K257: 0.25 | L257: =[1]Sheet1!K143 -> 101943 | M257: =[1]Sheet1!I143 -> 1 | N257: 1 | O257: =[1]Sheet1!M143 -> 2011-05-10 | P257: =[1]Sheet1!R143 -> 2018-05-10 | Q257: =IF(AJ257>0, IF(AJ257<H257, [1]Sheet1!Q143/L257/M257, 0),0) -> 0 | R257: =IF(AJ257>0, IF(AJ257>=H257, [1]Sheet1!O143/L257/M257 -S257, 0),0) -> 0 | S257: =IF(AJ257>H257, [1]Sheet1!Q143/L257/M257, 0) -> 0 | Z257: 33847 | AA257: 1 | AB257: 1 | AC257: 0 | AD257: 0 | AE257: 0 | AF257: 0.0949
A258: =[1]Sheet1!A144 -> Glynn, Megan J | B258: =[1]Sheet1!B144 -> 8000235 | C258: =[1]Sheet1!C144 -> f | D258: =[1]Sheet1!D144 -> 1974-10-19 | E258: =[1]Sheet1!L144 -> 1998-02-09 | F258: 2099-12-31 | H258: 7 | I258: 7 | J258: 0.25 | K258: 0.25 | L258: =[1]Sheet1!K144 -> 93994 | M258: =[1]Sheet1!I144 -> 0.4 | N258: 0.4 | O258: =[1]Sheet1!M144 -> 2014-05-28 | P258: =[1]Sheet1!R144 -> 2021-05-28 | Q258: =IF(AJ258>0, IF(AJ258<H258, [1]Sheet1!Q144/L258/M258, 0),0) -> 0 | R258: =IF(AJ258>0, IF(AJ258>=H258, [1]Sheet1!O144/L258/M258 -S258, 0),0) -> 0 | S258: =IF(AJ258>H258, [1]Sheet1!Q144/L258/M258, 0) -> 0 | Z258: 33847 | AA258: 1 | AB258: 1 | AC258: 0 | AD258: 0 | AE258: 0 | AF258: 0.0949
A259: =[1]Sheet1!A145 -> Godfrey, Alison M | B259: =[1]Sheet1!B145 -> 8000236 | C259: =[1]Sheet1!C145 -> f | D259: =[1]Sheet1!D145 -> 1961-07-28 | E259: =[1]Sheet1!L145 -> 2015-10-14 | F259: 2099-12-31 | H259: 7 | I259: 7 | J259: 0.25 | K259: 0.25 | L259: =[1]Sheet1!K145 -> 75295 | M259: =[1]Sheet1!I145 -> 1 | N259: 1 | O259: =[1]Sheet1!M145 -> 2015-12-06 | P259: =[1]Sheet1!R145 -> 2022-12-06 | Q259: =IF(AJ259>0, IF(AJ259<H259, [1]Sheet1!Q145/L259/M259, 0),0) -> 0 | R259: =IF(AJ259>0, IF(AJ259>=H259, [1]Sheet1!O145/L259/M259 -S259, 0),0) -> 0 | S259: =IF(AJ259>H259, [1]Sheet1!Q145/L259/M259, 0) -> 0 | Z259: 33847 | AA259: 1 | AB259: 1 | AC259: 0 | AD259: 0 | AE259: 0 | AF259: 0.0949
A260: =[1]Sheet1!A146 -> Godfrey, Felicity E | B260: =[1]Sheet1!B146 -> 8000237 | C260: =[1]Sheet1!C146 -> f | D260: =[1]Sheet1!D146 -> 1979-03-08 | E260: =[1]Sheet1!L146 -> 2009-04-29 | F260: 2099-12-31 | H260: 7 | I260: 7 | J260: 0.25 | K260: 0.25 | L260: =[1]Sheet1!K146 -> 87815 | M260: =[1]Sheet1!I146 -> 0.8 | N260: 0.8 | O260: =[1]Sheet1!M146 -> 2010-08-04 | P260: =[1]Sheet1!R146 -> 2017-08-04 | Q260: =IF(AJ260>0, IF(AJ260<H260, [1]Sheet1!Q146/L260/M260, 0),0) -> 0 | R260: =IF(AJ260>0, IF(AJ260>=H260, [1]Sheet1!O146/L260/M260 -S260, 0),0) -> 0 | S260: =IF(AJ260>H260, [1]Sheet1!Q146/L260/M260, 0) -> 0 | Z260: 33847 | AA260: 1 | AB260: 1 | AC260: 0 | AD260: 0 | AE260: 0 | AF260: 0.0949
A261: =[1]Sheet1!A147 -> Golding, David W | B261: =[1]Sheet1!B147 -> 8000238 | C261: =[1]Sheet1!C147 -> m | D261: =[1]Sheet1!D147 -> 1961-09-24 | E261: =[1]Sheet1!L147 -> 2008-02-04 | F261: 2099-12-31 | H261: 7 | I261: 7 | J261: 0.25 | K261: 0.25 | L261: =[1]Sheet1!K147 -> 84599 | M261: =[1]Sheet1!I147 -> 0.33 | N261: 0.33 | O261: =[1]Sheet1!M147 -> 2015-05-03 | P261: =[1]Sheet1!R147 -> 2022-05-03 | Q261: =IF(AJ261>0, IF(AJ261<H261, [1]Sheet1!Q147/L261/M261, 0),0) -> 0 | R261: =IF(AJ261>0, IF(AJ261>=H261, [1]Sheet1!O147/L261/M261 -S261, 0),0) -> 0 | S261: =IF(AJ261>H261, [1]Sheet1!Q147/L261/M261, 0) -> 0 | Z261: 33847 | AA261: 1 | AB261: 1 | AC261: 0 | AD261: 0 | AE261: 0 | AF261: 0.0949
A262: =[1]Sheet1!A148 -> Gooneratne, Adrian D | B262: =[1]Sheet1!B148 -> 8000243 | C262: =[1]Sheet1!C148 -> m | D262: =[1]Sheet1!D148 -> 1969-02-20 | E262: =[1]Sheet1!L148 -> 2012-05-14 | F262: 2099-12-31 | H262: 7 | I262: 7 | J262: 0.25 | K262: 0.25 | L262: =[1]Sheet1!K148 -> 98211 | M262: =[1]Sheet1!I148 -> 1 | N262: 1 | O262: =[1]Sheet1!M148 -> 2012-06-16 | P262: =[1]Sheet1!R148 -> 2019-06-16 | Q262: =IF(AJ262>0, IF(AJ262<H262, [1]Sheet1!Q148/L262/M262, 0),0) -> 0 | R262: =IF(AJ262>0, IF(AJ262>=H262, [1]Sheet1!O148/L262/M262 -S262, 0),0) -> 0 | S262: =IF(AJ262>H262, [1]Sheet1!Q148/L262/M262, 0) -> 0 | Z262: 33847 | AA262: 1 | AB262: 1 | AC262: 0 | AD262: 0 | AE262: 0 | AF262: 0.0949
A263: =[1]Sheet1!A149 -> Gouws, Cornelia P | B263: =[1]Sheet1!B149 -> 8000244 | C263: =[1]Sheet1!C149 -> f | D263: =[1]Sheet1!D149 -> 1967-12-19 | E263: =[1]Sheet1!L149 -> 2015-04-20 | F263: 2099-12-31 | H263: 7 | I263: 7 | J263: 0.25 | K263: 0.25 | L263: =[1]Sheet1!K149 -> 50315 | M263: =[1]Sheet1!I149 -> 0.25 | N263: 0.25 | O263: =[1]Sheet1!M149 -> 2015-06-03 | P263: =[1]Sheet1!R149 -> 2022-06-03 | Q263: =IF(AJ263>0, IF(AJ263<H263, [1]Sheet1!Q149/L263/M263, 0),0) -> 0 | R263: =IF(AJ263>0, IF(AJ263>=H263, [1]Sheet1!O149/L263/M263 -S263, 0),0) -> 0 | S263: =IF(AJ263>H263, [1]Sheet1!Q149/L263/M263, 0) -> 0 | Z263: 33847 | AA263: 1 | AB263: 1 | AC263: 0 | AD263: 0 | AE263: 0 | AF263: 0.0949
A264: =[1]Sheet1!A150 -> Graham, Sarah J | B264: =[1]Sheet1!B150 -> 8000247 | C264: =[1]Sheet1!C150 -> f | D264: =[1]Sheet1!D150 -> 1987-03-05 | E264: =[1]Sheet1!L150 -> 2011-06-11 | F264: 2099-12-31 | H264: 7 | I264: 7 | J264: 0.25 | K264: 0.25 | L264: =[1]Sheet1!K150 -> 62482 | M264: =[1]Sheet1!I150 -> 1 | N264: 1 | O264: =[1]Sheet1!M150 -> 2011-10-12 | P264: =[1]Sheet1!R150 -> 2018-10-12 | Q264: =IF(AJ264>0, IF(AJ264<H264, [1]Sheet1!Q150/L264/M264, 0),0) -> 0 | R264: =IF(AJ264>0, IF(AJ264>=H264, [1]Sheet1!O150/L264/M264 -S264, 0),0) -> 0 | S264: =IF(AJ264>H264, [1]Sheet1!Q150/L264/M264, 0) -> 0 | Z264: 33847 | AA264: 1 | AB264: 1 | AC264: 0 | AD264: 0 | AE264: 0 | AF264: 0.0949
A265: =[1]Sheet1!A151 -> Gray, Maryke T | B265: =[1]Sheet1!B151 -> 8000250 | C265: =[1]Sheet1!C151 -> f | D265: =[1]Sheet1!D151 -> 1969-03-23 | E265: =[1]Sheet1!L151 -> 2014-05-05 | F265: 2099-12-31 | H265: 7 | I265: 7 | J265: 0.25 | K265: 0.25 | L265: =[1]Sheet1!K151 -> 93994 | M265: =[1]Sheet1!I151 -> 1 | N265: 1 | O265: =[1]Sheet1!M151 -> 2014-05-28 | P265: =[1]Sheet1!R151 -> 2021-05-28 | Q265: =IF(AJ265>0, IF(AJ265<H265, [1]Sheet1!Q151/L265/M265, 0),0) -> 0 | R265: =IF(AJ265>0, IF(AJ265>=H265, [1]Sheet1!O151/L265/M265 -S265, 0),0) -> 0 | S265: =IF(AJ265>H265, [1]Sheet1!Q151/L265/M265, 0) -> 0 | Z265: 33847 | AA265: 1 | AB265: 1 | AC265: 0 | AD265: 0 | AE265: 0 | AF265: 0.0949
A266: =[1]Sheet1!A152 -> Guiloy, Maureen | B266: =[1]Sheet1!B152 -> 8000257 | C266: =[1]Sheet1!C152 -> f | D266: =[1]Sheet1!D152 -> 1982-09-23 | E266: =[1]Sheet1!L152 -> 2016-08-01 | F266: 2099-12-31 | H266: 7 | I266: 7 | J266: 0.25 | K266: 0.25 | L266: =[1]Sheet1!K152 -> 59172 | M266: =[1]Sheet1!I152 -> 1 | N266: 1 | O266: =[1]Sheet1!M152 -> 2015-03-22 | P266: =[1]Sheet1!R152 -> 2022-03-22 | Q266: =IF(AJ266>0, IF(AJ266<H266, [1]Sheet1!Q152/L266/M266, 0),0) -> 0 | R266: =IF(AJ266>0, IF(AJ266>=H266, [1]Sheet1!O152/L266/M266 -S266, 0),0) -> 0 | S266: =IF(AJ266>H266, [1]Sheet1!Q152/L266/M266, 0) -> 0 | Z266: 33847 | AA266: 1 | AB266: 1 | AC266: 0 | AD266: 0 | AE266: 0 | AF266: 0.0949
A267: =[1]Sheet1!A153 -> Gutierrez Serrano, Juan | B267: =[1]Sheet1!B153 -> 8000258 | C267: =[1]Sheet1!C153 -> m | D267: =[1]Sheet1!D153 -> 1975-04-26 | E267: =[1]Sheet1!L153 -> 2012-03-06 | F267: 2099-12-31 | H267: 7 | I267: 7 | J267: 0.25 | K267: 0.25 | L267: =[1]Sheet1!K153 -> 93994 | M267: =[1]Sheet1!I153 -> 1 | N267: 1 | O267: =[1]Sheet1!M153 -> 2012-04-15 | P267: =[1]Sheet1!R153 -> 2019-04-15 | Q267: =IF(AJ267>0, IF(AJ267<H267, [1]Sheet1!Q153/L267/M267, 0),0) -> 0 | R267: =IF(AJ267>0, IF(AJ267>=H267, [1]Sheet1!O153/L267/M267 -S267, 0),0) -> 0 | S267: =IF(AJ267>H267, [1]Sheet1!Q153/L267/M267, 0) -> 0 | Z267: 33847 | AA267: 1 | AB267: 1 | AC267: 0 | AD267: 0 | AE267: 0 | AF267: 0.0949
A268: =[1]Sheet1!A154 -> Hall, Anna L | B268: =[1]Sheet1!B154 -> 8000260 | C268: =[1]Sheet1!C154 -> f | D268: =[1]Sheet1!D154 -> 1960-09-11 | E268: =[1]Sheet1!L154 -> 2011-03-18 | F268: 2099-12-31 | H268: 7 | I268: 7 | J268: 0.25 | K268: 0.25 | L268: =[1]Sheet1!K154 -> 98211 | M268: =[1]Sheet1!I154 -> 1 | N268: 1 | O268: =[1]Sheet1!M154 -> 2011-04-09 | P268: =[1]Sheet1!R154 -> 2018-04-09 | Q268: =IF(AJ268>0, IF(AJ268<H268, [1]Sheet1!Q154/L268/M268, 0),0) -> 0 | R268: =IF(AJ268>0, IF(AJ268>=H268, [1]Sheet1!O154/L268/M268 -S268, 0),0) -> 0 | S268: =IF(AJ268>H268, [1]Sheet1!Q154/L268/M268, 0) -> 0 | Z268: 33847 | AA268: 1 | AB268: 1 | AC268: 0 | AD268: 0 | AE268: 0 | AF268: 0.0949
A269: =[1]Sheet1!A155 -> Hall, Peter M | B269: =[1]Sheet1!B155 -> 8000261 | C269: =[1]Sheet1!C155 -> m | D269: =[1]Sheet1!D155 -> 1951-09-23 | E269: =[1]Sheet1!L155 -> 2010-10-18 | F269: 2099-12-31 | H269: 7 | I269: 7 | J269: 0.25 | K269: 0.25 | L269: =[1]Sheet1!K155 -> 103122 | M269: =[1]Sheet1!I155 -> 1 | N269: 1 | O269: =[1]Sheet1!M155 -> 2010-11-05 | P269: =[1]Sheet1!R155 -> 2017-11-05 | Q269: =IF(AJ269>0, IF(AJ269<H269, [1]Sheet1!Q155/L269/M269, 0),0) -> 0 | R269: =IF(AJ269>0, IF(AJ269>=H269, [1]Sheet1!O155/L269/M269 -S269, 0),0) -> 0 | S269: =IF(AJ269>H269, [1]Sheet1!Q155/L269/M269, 0) -> 0 | Z269: 33847 | AA269: 1 | AB269: 1 | AC269: 0 | AD269: 0 | AE269: 0 | AF269: 0.0949
A270: =[1]Sheet1!A156 -> Hall, Susan N | B270: =[1]Sheet1!B156 -> 8000262 | C270: =[1]Sheet1!C156 -> f | D270: =[1]Sheet1!D156 -> 1963-11-24 | E270: =[1]Sheet1!L156 -> 2006-09-12 | F270: 2099-12-31 | H270: 7 | I270: 7 | J270: 0.25 | K270: 0.25 | L270: =[1]Sheet1!K156 -> 98211 | M270: =[1]Sheet1!I156 -> 0.5 | N270: 0.5 | O270: =[1]Sheet1!M156 -> 2014-04-27 | P270: =[1]Sheet1!R156 -> 2021-04-27 | Q270: =IF(AJ270>0, IF(AJ270<H270, [1]Sheet1!Q156/L270/M270, 0),0) -> 0 | R270: =IF(AJ270>0, IF(AJ270>=H270, [1]Sheet1!O156/L270/M270 -S270, 0),0) -> 0 | S270: =IF(AJ270>H270, [1]Sheet1!Q156/L270/M270, 0) -> 0 | Z270: 33847 | AA270: 1 | AB270: 1 | AC270: 0 | AD270: 0 | AE270: 0 | AF270: 0.0949
A271: =[1]Sheet1!A157 -> Hardy, Louanne M | B271: =[1]Sheet1!B157 -> 8000264 | C271: =[1]Sheet1!C157 -> f | D271: =[1]Sheet1!D157 -> 1968-11-12 | E271: =[1]Sheet1!L157 -> 1999-02-15 | F271: 2099-12-31 | H271: 7 | I271: 7 | J271: 0.25 | K271: 0.25 | L271: =[1]Sheet1!K157 -> 103122 | M271: =[1]Sheet1!I157 -> 0.7 | N271: 0.7 | O271: =[1]Sheet1!M157 -> 2010-05-10 | P271: =[1]Sheet1!R157 -> 2017-05-10 | Q271: =IF(AJ271>0, IF(AJ271<H271, [1]Sheet1!Q157/L271/M271, 0),0) -> 0 | R271: =IF(AJ271>0, IF(AJ271>=H271, [1]Sheet1!O157/L271/M271 -S271, 0),0) -> 0 | S271: =IF(AJ271>H271, [1]Sheet1!Q157/L271/M271, 0) -> 0 | Z271: 33847 | AA271: 1 | AB271: 1 | AC271: 0 | AD271: 0 | AE271: 0 | AF271: 0.0949
... 259 more rows
